Workbook

Sheet Sheet1
A1: pCO2* | B1: latitude | C1: longitude | D1: time | E1: sampleTime | F1: EquilPumpOn pco2 | G1: EquilPumpOn Temp | H1: EquilPumpOn Pressure | I1: EquilPumpOff pco2 | J1: EquilPumpOff Temp | K1: EquilPumpOff Pressure | L1: EquilPumpOff Humidity | M1: ZeroPumpOn pco2 | N1: ZeroPumpOn Temp | O1: ZeroPumpOn Pressure | P1: ZeroPumpOff pco2 | Q1: ZeroPumpOff Temp | R1: ZeroPumpOff Pressure | S1: AirPumpOn pco2 | T1: AirPumpOn Temp | U1: AirPumpOn Pressure | V1: AirPumpOff pco2 | W1: AirPumpOff Temp | X1: AirPumpOff Pressure | Y1: AirPumpOff Humidity | Z1: StandardFlowOn Pressure | AA1: StandardFlowOff pco2 | AB1: StandardFlowOff Temp | AC1: StandardFlowOff Pressure | AD1: StandardFlowOff pco2 Humidity | AE1: Durafet pH 1 | AF1: Durafet pH 2 | AG1: Durafet pH 3 | AH1: Durafet pH 4 | AI1: Durafet pH 5 | AJ1: Durafet pH 6 | AK1: Can Humidity
A2: pCO2 | B2: 36.80778333 | C2: -121.8528433 | D2: 2013-03-15T18:09:22Z | E2: 2013-03-15T17:10:22Z | F2: 457.23 | G2: 14.834 | H2: 84.598 | I2: 447.12 | J2: 14.904 | K2: 102.07 | L2: 1.9647 | M2: 0.23103 | N2: 15.095 | O2: 93.599 | P2: 0.59548 | Q2: 15.125 | R2: 102.43 | S2: 545.65 | T2: 15.307 | U2: 86.609 | V2: 457.49 | W2: 15.377 | X2: 102.07 | Y2: 1.935 | Z2: 0 | AA2: 0 | AB2: 0 | AC2: 0 | AD2: 0 | AE2: 22.42 | AF2: 18.53 | AG2: 19.62 | AH2: 20.79 | AI2: 21.11 | AJ2: 21.97 | AK2: 1.3487 | AL2: 0 | AM2: 0
A3: pCO2 | B3: 36.80342 | C3: -121.87255 | D3: 2013-03-15T19:09:21Z | E3: 2013-03-15T18:10:24Z | F3: 407.39 | G3: 13.353 | H3: 84.639 | I3: 400.95 | J3: 13.412 | K3: 101.23 | L3: 1.9224 | M3: 0.94771 | N3: 13.57 | O3: 92.542 | P3: 1.1046 | Q3: 13.6 | R3: 101.51 | S3: 431.21 | T3: 13.738 | U3: 86.402 | V3: 425.06 | W3: 13.798 | X3: 102.08 | Y3: 1.9341 | Z3: 0 | AA3: 0 | AB3: 0 | AC3: 0 | AD3: 0 | AE3: 22.89 | AF3: 23.6 | AG3: 24.21 | AH3: 24.8 | AI3: 25.39 | AJ3: 26.03 | AK3: 1.3771 | AL3: 0 | AM3: 0
A4: pCO2 | B4: 36.79614667 | C4: -121.8976517 | D4: 2013-03-15T20:09:22Z | E4: 2013-03-15T19:10:24Z | F4: 445.56 | G4: 12.616 | H4: 84.706 | I4: 438.12 | J4: 12.684 | K4: 101.5 | L4: 1.9069 | M4: 1.2579 | N4: 12.861 | O4: 92.623 | P4: 1.3706 | Q4: 12.89 | R4: 101.46 | S4: 413.69 | T4: 13.047 | U4: 86.349 | V4: 407.91 | W4: 13.107 | X4: 102.02 | Y4: 1.9175 | Z4: 0 | AA4: 0 | AB4: 0 | AC4: 0 | AD4: 0 | AE4: 26.5 | AF4: 27.27 | AG4: 27.79 | AH4: 28.36 | AI4: 28.97 | AJ4: 29.58 | AK4: 1.3698 | AL4: 0 | AM4: 0
A5: pCO2 | B5: 36.78836167 | C5: -121.9248117 | D5: 2013-03-15T21:09:21Z | E5: 2013-03-15T20:10:24Z | F5: 457.56 | G5: 12.43 | H5: 84.289 | I5: 450.68 | J5: 12.498 | K5: 100.66 | L5: 1.9101 | M5: 1.2734 | N5: 12.684 | O5: 92.367 | P5: 1.3975 | Q5: 12.714 | R5: 101.09 | S5: 413.58 | T5: 12.881 | U5: 86.268 | V5: 407.22 | W5: 12.949 | X5: 101.94 | Y5: 1.9258 | Z5: 0 | AA5: 0 | AB5: 0 | AC5: 0 | AD5: 0 | AE5: 30.27 | AF5: 30.7 | AG5: 31.38 | AH5: 31.86 | AI5: 32.33 | AJ5: 32.87 | AK5: 1.3595 | AL5: 0 | AM5: 0
A6: pCO2 | B6: 36.78119667 | C6: -121.949645 | D6: 2013-03-15T22:09:21Z | E6: 2013-03-15T21:10:24Z | F6: 474.81 | G6: 12.547 | H6: 84.315 | I6: 467 | J6: 12.616 | K6: 100.8 | L6: 1.9199 | M6: 1.0707 | N6: 12.802 | O6: 92.435 | P6: 1.6115 | Q6: 12.831 | R6: 101.23 | S6: 414.9 | T6: 12.998 | U6: 86.12 | V6: 408.47 | W6: 13.067 | X6: 101.93 | Y6: 1.9362 | Z6: 0 | AA6: 0 | AB6: 0 | AC6: 0 | AD6: 0 | AE6: 33.31 | AF6: 33.87 | AG6: 34.47 | AH6: 35 | AI6: 35.63 | AJ6: 36.37 | AK6: 1.3543 | AL6: 0 | AM6: 0
A7: pCO2 | B7: 36.78405333 | C7: -121.97295 | D7: 2013-03-15T23:09:22Z | E7: 2013-03-15T22:10:22Z | F7: 474.74 | G7: 12.469 | H7: 83.413 | I7: 468.13 | J7: 12.528 | K7: 100.42 | L7: 1.9167 | M7: 1.3286 | N7: 12.704 | O7: 91.64 | P7: 1.6316 | Q7: 12.733 | R7: 100.35 | S7: 414.29 | T7: 12.91 | U7: 86.201 | V7: 407.7 | W7: 12.969 | X7: 101.87 | Y7: 1.93 | Z7: 0 | AA7: 0 | AB7: 0 | AC7: 0 | AD7: 0 | AE7: 36.97 | AF7: 37.38 | AG7: 38.23 | AH7: 39 | AI7: 39.86 | AJ7: 40.58 | AK7: 1.3554 | AL7: 0 | AM7: 0
A8: pCO2 | B8: 36.79072167 | C8: -121.9935433 | D8: 2013-03-16T00:09:21Z | E8: 2013-03-15T23:10:24Z | F8: 412.71 | G8: 12.274 | H8: 82.673 | I8: 406.62 | J8: 12.332 | K8: 99.827 | L8: 1.9194 | M8: 1.3137 | N8: 12.508 | O8: 91.506 | P8: 1.4581 | Q8: 12.538 | R8: 100.24 | S8: 413.09 | T8: 12.714 | U8: 86.174 | V8: 406.57 | W8: 12.773 | X8: 101.85 | Y8: 1.9287 | Z8: 0 | AA8: 0 | AB8: 0 | AC8: 0 | AD8: 0 | AE8: 41.26 | AF8: 42.2 | AG8: 43.57 | AH8: 44.5 | AI8: 45.07 | AJ8: 45.37 | AK8: 1.3492 | AL8: 0 | AM8: 0
A9: pCO2 | B9: 36.799075 | C9: -122.018725 | D9: 2013-03-16T01:09:20Z | E9: 2013-03-16T00:10:22Z | F9: 346.57 | G9: 12.205 | H9: 83.238 | I9: 341.38 | J9: 12.274 | K9: 99.49 | L9: 1.9179 | M9: 1.3441 | N9: 12.459 | O9: 91.236 | P9: 1.2893 | Q9: 12.479 | R9: 99.988 | S9: 412.48 | T9: 12.655 | U9: 86.079 | V9: 406.01 | W9: 12.724 | X9: 101.85 | Y9: 1.9272 | Z9: 0 | AA9: 0 | AB9: 0 | AC9: 0 | AD9: 0 | AE9: 46.15 | AF9: 46.76 | AG9: 47.4 | AH9: 48.66 | AI9: 49.78 | AJ9: 50.45 | AK9: 1.3438 | AL9: 0 | AM9: 0
A10: pCO2 | B10: 36.79027333 | C10: -122.0480767 | D10: 2013-03-16T02:09:21Z | E10: 2013-03-16T01:10:22Z | F10: 484.26 | G10: 12.049 | H10: 74.513 | I10: 473.69 | J10: 12.118 | K10: 99.423 | L10: 1.9142 | M10: 1.5358 | N10: 12.293 | O10: 91.102 | P10: 1.7082 | Q10: 12.323 | R10: 99.894 | S10: 412.26 | T10: 12.489 | U10: 86.106 | V10: 405.94 | W10: 12.557 | X10: 101.82 | Y10: 1.9156 | Z10: 0 | AA10: 0 | AB10: 0 | AC10: 0 | AD10: 0 | AE10: 52.24 | AF10: 54.26 | AG10: 55.54 | AH10: 57.06 | AI10: 57.91 | AJ10: 58.57 | AK10: 1.3401 | AL10: 0 | AM10: 0
A11: pCO2 | B11: 36.78674333 | C11: -122.079245 | D11: 2013-03-16T03:09:23Z | E11: 2013-03-16T02:10:22Z | F11: 550.91 | G11: 11.864 | H11: 70.703 | I11: 535.63 | J11: 11.933 | K11: 99.477 | L11: 1.9476 | M11: 1.5807 | N11: 12.118 | O11: 91.129 | P11: 1.7173 | Q11: 12.147 | R11: 99.921 | S11: 412.66 | T11: 12.313 | U11: 86.133 | V11: 405.51 | W11: 12.371 | X11: 101.85 | Y11: 1.9144 | Z11: 0 | AA11: 0 | AB11: 0 | AC11: 0 | AD11: 0 | AE11: 59.28 | AF11: 59.85 | AG11: 60.5 | AH11: 61.11 | AI11: 61.36 | AJ11: 61.8 | AK11: 1.3459 | AL11: 0 | AM11: 0
A12: pCO2 | B12: 36.79006833 | C12: -122.1099067 | D12: 2013-03-16T04:09:21Z | E12: 2013-03-16T03:10:24Z | F12: 541.75 | G12: 11.69 | H12: 73.436 | I12: 529.52 | J12: 11.767 | K12: 99.059 | L12: 1.9154 | M12: 1.6196 | N12: 11.942 | O12: 90.954 | P12: 2.0419 | Q12: 11.972 | R12: 99.8 | S12: 411.95 | T12: 12.147 | U12: 86.012 | V12: 405.41 | W12: 12.196 | X12: 101.89 | Y12: 1.9091 | Z12: 0 | AA12: 0 | AB12: 0 | AC12: 0 | AD12: 0 | AE12: 62.11 | AF12: 62.26 | AG12: 62.44 | AH12: 62.57 | AI12: 62.79 | AJ12: 62.98 | AK12: 1.345 | AL12: 0 | AM12: 0
A13: pCO2 | B13: 36.784555 | C13: -122.1410333 | D13: 2013-03-16T05:09:21Z | E13: 2013-03-16T04:10:22Z | F13: 538.35 | G13: 11.622 | H13: 66.434 | I13: 522.32 | J13: 11.69 | K13: 99.396 | L13: 1.955 | M13: 1.5991 | N13: 11.865 | O13: 91.102 | P13: 1.8226 | Q13: 11.894 | R13: 99.975 | S13: 411.78 | T13: 12.069 | U13: 85.999 | V13: 405.3 | W13: 12.137 | X13: 101.89 | Y13: 1.9097 | Z13: 0 | AA13: 0 | AB13: 0 | AC13: 0 | AD13: 0 | AE13: 63.22 | AF13: 63.48 | AG13: 63.59 | AH13: 63.72 | AI13: 63.78 | AJ13: 63.9 | AK13: 1.3423 | AL13: 0 | AM13: 0
A14: pCO2 | B14: 36.77494 | C14: -122.1743133 | D14: 2013-03-16T06:09:22Z | E14: 2013-03-16T05:10:22Z | F14: 519.44 | G14: 11.622 | H14: 75.967 | I14: 507.26 | J14: 11.69 | K14: 99.584 | L14: 1.9266 | M14: 1.6272 | N14: 11.874 | O14: 91.506 | P14: 1.8381 | Q14: 11.894 | R14: 100.54 | S14: 411.32 | T14: 12.069 | U14: 86.039 | V14: 404.56 | W14: 12.137 | X14: 101.99 | Y14: 1.915 | Z14: 0 | AA14: 0 | AB14: 0 | AC14: 0 | AD14: 0 | AE14: 63.9 | AF14: 64.06 | AG14: 64.23 | AH14: 64.46 | AI14: 64.64 | AJ14: 64.84 | AK14: 1.3396 | AL14: 0 | AM14: 0
A15: pCO2 | B15: 36.76576167 | C15: -122.2063517 | D15: 2013-03-16T07:09:21Z | E15: 2013-03-16T06:10:23Z | F15: 562.62 | G15: 11.593 | H15: 61.358 | I15: 543.07 | J15: 11.67 | K15: 99.275 | L15: 1.9514 | M15: 1.9222 | N15: 11.845 | O15: 91.263 | P15: 1.8187 | Q15: 11.874 | R15: 100.18 | S15: 411.29 | T15: 12.04 | U15: 86.066 | V15: 404.34 | W15: 12.108 | X15: 101.95 | Y15: 1.896 | Z15: 0 | AA15: 0 | AB15: 0 | AC15: 0 | AD15: 0 | AE15: 65.08 | AF15: 65.34 | AG15: 65.59 | AH15: 65.73 | AI15: 65.83 | AJ15: 65.96 | AK15: 1.3391 | AL15: 0 | AM15: 0
A16: pCO2 | B16: 36.75613833 | C16: -122.2395283 | D16: 2013-03-16T08:09:20Z | E16: 2013-03-16T07:10:22Z | F16: 520.66 | G16: 11.554 | H16: 71.376 | I16: 505.99 | J16: 11.631 | K16: 99.477 | L16: 1.9216 | M16: 1.4815 | N16: 11.806 | O16: 91.425 | P16: 1.8823 | Q16: 11.835 | R16: 100.3 | S16: 411.03 | T16: 12.011 | U16: 86.093 | V16: 404.74 | W16: 12.079 | X16: 101.97 | Y16: 1.9005 | Z16: 0 | AA16: 0 | AB16: 0 | AC16: 0 | AD16: 0 | AE16: 65.99 | AF16: 66 | AG16: 66.21 | AH16: 66.48 | AI16: 66.8 | AJ16: 67.13 | AK16: 1.3437 | AL16: 0 | AM16: 0
A17: pCO2 | B17: 36.74699667 | C17: -122.2711283 | D17: 2013-03-16T09:09:21Z | E17: 2013-03-16T08:10:22Z | F17: 505.26 | G17: 11.651 | H17: 54.168 | I17: 486.08 | J17: 11.728 | K17: 96.743 | L17: 1.9387 | M17: 1.6999 | N17: 11.903 | O17: 90.738 | P17: 1.8341 | Q17: 11.933 | R17: 99.504 | S17: 410.66 | T17: 12.108 | U17: 86.174 | V17: 404.14 | W17: 12.176 | X17: 101.93 | Y17: 1.8728 | Z17: 0 | AA17: 0 | AB17: 0 | AC17: 0 | AD17: 0 | AE17: 67.31 | AF17: 67.77 | AG17: 68.35 | AH17: 68.78 | AI17: 68.87 | AJ17: 69.09 | AK17: 1.3372 | AL17: 0 | AM17: 0
A18: pCO2 | B18: 36.73802667 | C18: -122.301925 | D18: 2013-03-16T10:09:21Z | E18: 2013-03-16T09:10:22Z | F18: 470.82 | G18: 11.826 | H18: 64.953 | I18: 453.97 | J18: 11.894 | K18: 99.127 | L18: 1.9649 | M18: 1.6234 | N18: 12.079 | O18: 91.156 | P18: 1.7097 | Q18: 12.108 | R18: 100.03 | S18: 410.33 | T18: 12.284 | U18: 86.12 | V18: 404.26 | W18: 12.342 | X18: 101.93 | Y18: 1.8999 | Z18: 0 | AA18: 0 | AB18: 0 | AC18: 0 | AD18: 0 | AE18: 69.26 | AF18: 69.6 | AG18: 69.84 | AH18: 69.98 | AI18: 70.11 | AJ18: 70.33 | AK18: 1.3321 | AL18: 0 | AM18: 0
A19: pCO2 | B19: 36.72910833 | C19: -122.3329033 | D19: 2013-03-16T11:09:20Z | E19: 2013-03-16T10:10:22Z | F19: 461.52 | G19: 11.933 | H19: 68.414 | I19: 448.8 | J19: 12.001 | K19: 99.356 | L19: 1.9127 | M19: 1.5318 | N19: 12.176 | O19: 91.223 | P19: 1.7076 | Q19: 12.205 | R19: 100.15 | S19: 411.07 | T19: 12.381 | U19: 86.025 | V19: 404.74 | W19: 12.45 | X19: 101.94 | Y19: 1.8932 | Z19: 0 | AA19: 0 | AB19: 0 | AC19: 0 | AD19: 0 | AE19: 70.52 | AF19: 70.6 | AG19: 70.73 | AH19: 70.87 | AI19: 70.97 | AJ19: 70.97 | AK19: 1.3334 | AL19: 0 | AM19: 0
A20: pCO2 | B20: 36.72063167 | C20: -122.36218 | D20: 2013-03-16T12:09:21Z | E20: 2013-03-16T11:10:22Z | F20: 477.28 | G20: 11.952 | H20: 59.54 | I20: 460.71 | J20: 12.02 | K20: 98.992 | L20: 1.9507 | M20: 1.6297 | N20: 12.196 | O20: 91.196 | P20: 1.7242 | Q20: 12.225 | R20: 100.03 | S20: 410.94 | T20: 12.401 | U20: 86.039 | V20: 404.68 | W20: 12.459 | X20: 101.9 | Y20: 1.8824 | Z20: 0 | AA20: 0 | AB20: 0 | AC20: 0 | AD20: 0 | AE20: 71.02 | AF20: 71.11 | AG20: 71.2 | AH20: 71.31 | AI20: 71.47 | AJ20: 71.45 | AK20: 1.3319 | AL20: 0 | AM20: 0
A21: pCO2 | B21: 36.70485333 | C21: -122.3817283 | D21: 2013-03-16T13:09:21Z | E21: 2013-03-16T12:10:23Z | F21: 485.07 | G21: 11.942 | H21: 57.144 | I21: 469.51 | J21: 12.01 | K21: 98.844 | L21: 1.9623 | M21: 1.5245 | N21: 12.196 | O21: 91.102 | P21: 1.704 | Q21: 12.225 | R21: 99.975 | S21: 411.82 | T21: 12.401 | U21: 85.904 | V21: 404.86 | W21: 12.459 | X21: 101.87 | Y21: 1.889 | Z21: 0 | AA21: 0 | AB21: 0 | AC21: 0 | AD21: 0 | AE21: 71.53 | AF21: 71.47 | AG21: 71.46 | AH21: 71.45 | AI21: 71.53 | AJ21: 71.58 | AK21: 1.3299 | AL21: 0 | AM21: 0
A22: pCO2 | B22: 36.707925 | C22: -122.37757 | D22: 2013-03-16T14:09:20Z | E22: 2013-03-16T13:10:23Z | F22: 472.52 | G22: 11.942 | H22: 65.451 | I22: 457.76 | J22: 12.01 | K22: 98.992 | L22: 1.9168 | M22: 1.4805 | N22: 12.196 | O22: 91.034 | P22: 1.6915 | Q22: 12.225 | R22: 99.921 | S22: 411.78 | T22: 12.401 | U22: 85.999 | V22: 405.84 | W22: 12.459 | X22: 101.91 | Y22: 1.8864 | Z22: 103.11 | AA22: 447.02 | AB22: 12.684 | AC22: 101.91 | AD22: 1.7532 | AE22: 71.67 | AF22: 71.78 | AG22: 71.9 | AH22: 71.97 | AI22: 72.05 | AJ22: 72.15 | AK22: 1.3258 | AL22: 0 | AM22: 0
A23: pCO2 | B23: 36.72021333 | C23: -122.357105 | D23: 2013-03-16T15:09:21Z | E23: 2013-03-16T14:10:22Z | F23: 452.99 | G23: 12.02 | H23: 83.346 | I23: 444.75 | J23: 12.088 | K23: 99.894 | L23: 1.8843 | M23: 1.77 | N23: 12.274 | O23: 92.179 | P23: 1.6048 | Q23: 12.303 | R23: 100.65 | S23: 412.42 | T23: 12.469 | U23: 85.958 | V23: 405.46 | W23: 12.538 | X23: 101.93 | Y23: 1.8949 | Z23: 0 | AA23: 0 | AB23: 0 | AC23: 0 | AD23: 0 | AE23: 72.12 | AF23: 72.18 | AG23: 72.21 | AH23: 72.57 | AI23: 72.67 | AJ23: 72.54 | AK23: 1.318 | AL23: 0 | AM23: 0
A24: pCO2 | B24: 36.72617833 | C24: -122.3269283 | D24: 2013-03-16T16:09:22Z | E24: 2013-03-16T15:10:22Z | F24: 454.2 | G24: 11.962 | H24: 83.615 | I24: 445.52 | J24: 12.02 | K24: 99.315 | L24: 1.88 | M24: 1.3019 | N24: 12.205 | O24: 91.654 | P24: 1.5837 | Q24: 12.235 | R24: 100.08 | S24: 412.46 | T24: 12.41 | U24: 86.012 | V24: 406.11 | W24: 12.469 | X24: 101.95 | Y24: 1.9064 | Z24: 0 | AA24: 0 | AB24: 0 | AC24: 0 | AD24: 0 | AE24: 72.67 | AF24: 73.03 | AG24: 73.34 | AH24: 73.45 | AI24: 73.68 | AJ24: 73.77 | AK24: 1.3178 | AL24: 0 | AM24: 0
A25: pCO2 | B25: 36.73263833 | C25: -122.293695 | D25: 2013-03-16T17:09:21Z | E25: 2013-03-16T16:10:23Z | F25: 469.67 | G25: 11.933 | H25: 72.318 | I25: 458.22 | J25: 12.001 | K25: 99.45 | L25: 1.9309 | M25: 1.8666 | N25: 12.186 | O25: 91.263 | P25: 1.6 | Q25: 12.205 | R25: 100.16 | S25: 412.96 | T25: 12.381 | U25: 86.012 | V25: 406.42 | W25: 12.45 | X25: 102.01 | Y25: 1.911 | Z25: 0 | AA25: 0 | AB25: 0 | AC25: 0 | AD25: 0 | AE25: 73.96 | AF25: 74.11 | AG25: 73.89 | AH25: 74.08 | AI25: 74.28 | AJ25: 74.32 | AK25: 1.3144 | AL25: 0 | AM25: 0
A26: pCO2 | B26: 36.73915667 | C26: -122.259965 | D26: 2013-03-16T18:09:21Z | E26: 2013-03-16T17:10:22Z | F26: 452.66 | G26: 11.923 | H26: 81.784 | I26: 444.68 | J26: 11.991 | K26: 99.558 | L26: 1.9152 | M26: 1.6732 | N26: 12.176 | O26: 91.452 | P26: 1.6513 | Q26: 12.205 | R26: 100.39 | S26: 413.83 | T26: 12.381 | U26: 86.039 | V26: 407.44 | W26: 12.44 | X26: 102.05 | Y26: 1.9252 | Z26: 0 | AA26: 0 | AB26: 0 | AC26: 0 | AD26: 0 | AE26: 74.48 | AF26: 74.42 | AG26: 74.59 | AH26: 74.63 | AI26: 74.38 | AJ26: 74.64 | AK26: 1.3138 | AL26: 0 | AM26: 0
A27: pCO2 | B27: 36.74627833 | C27: -122.2232917 | D27: 2013-03-16T19:09:21Z | E27: 2013-03-16T18:10:22Z | F27: 452.67 | G27: 11.962 | H27: 82.525 | I27: 442.45 | J27: 12.02 | K27: 99.827 | L27: 1.9265 | M27: 1.4712 | N27: 12.215 | O27: 91.479 | P27: 1.5727 | Q27: 12.244 | R27: 100.46 | S27: 414.04 | T27: 12.41 | U27: 86.066 | V27: 407.71 | W27: 12.469 | X27: 102.1 | Y27: 1.9271 | Z27: 0 | AA27: 0 | AB27: 0 | AC27: 0 | AD27: 0 | AE27: 74.71 | AF27: 74.7 | AG27: 74.79 | AH27: 74.8 | AI27: 74.83 | AJ27: 74.89 | AK27: 1.3113 | AL27: 0 | AM27: 0
A28: pCO2 | B28: 36.75394667 | C28: -122.1836633 | D28: 2013-03-16T20:09:21Z | E28: 2013-03-16T19:10:23Z | F28: 471.18 | G28: 11.952 | H28: 59.917 | I28: 454.09 | J28: 12.02 | K28: 99.207 | L28: 1.9463 | M28: 1.4933 | N28: 12.215 | O28: 91.263 | P28: 1.6983 | Q28: 12.244 | R28: 100.08 | S28: 413.55 | T28: 12.41 | U28: 86.106 | V28: 406.85 | W28: 12.469 | X28: 101.98 | Y28: 1.9043 | Z28: 0 | AA28: 0 | AB28: 0 | AC28: 0 | AD28: 0 | AE28: 75.06 | AF28: 75.12 | AG28: 75.2 | AH28: 75.28 | AI28: 75.37 | AJ28: 75.36 | AK28: 1.3087 | AL28: 0 | AM28: 0
A29: pCO2 | B29: 36.761575 | C29: -122.144155 | D29: 2013-03-16T21:09:20Z | E29: 2013-03-16T20:10:22Z | F29: 458.44 | G29: 11.981 | H29: 74.365 | I29: 449.74 | J29: 12.049 | K29: 99.342 | L29: 1.9286 | M29: 1.3528 | N29: 12.235 | O29: 91.317 | P29: 1.5023 | Q29: 12.264 | R29: 100.2 | S29: 414.05 | T29: 12.44 | U29: 86.025 | V29: 407.42 | W29: 12.498 | X29: 101.95 | Y29: 1.9279 | Z29: 0 | AA29: 0 | AB29: 0 | AC29: 0 | AD29: 0 | AE29: 75.39 | AF29: 75.34 | AG29: 75.36 | AH29: 75.42 | AI29: 75.19 | AJ29: 75.23 | AK29: 1.3051 | AL29: 0 | AM29: 0
A30: pCO2 | B30: 36.76972 | C30: -122.1028133 | D30: 2013-03-16T22:09:22Z | E30: 2013-03-16T21:10:22Z | F30: 529.06 | G30: 11.913 | H30: 71.739 | I30: 516.13 | J30: 11.981 | K30: 99.854 | L30: 1.9402 | M30: 1.4998 | N30: 12.166 | O30: 91.438 | P30: 1.7362 | Q30: 12.186 | R30: 99.733 | S30: 412.06 | T30: 12.362 | U30: 86.025 | V30: 405.94 | W30: 12.42 | X30: 101.89 | Y30: 1.924 | Z30: 0 | AA30: 0 | AB30: 0 | AC30: 0 | AD30: 0 | AE30: 75.03 | AF30: 74.72 | AG30: 74.35 | AH30: 74.01 | AI30: 73.81 | AJ30: 73.66 | AK30: 1.3041 | AL30: 0 | AM30: 0
A31: pCO2 | B31: 36.77759667 | C31: -122.0623333 | D31: 2013-03-16T23:09:21Z | E31: 2013-03-16T22:10:23Z | F31: 560.3 | G31: 11.787 | H31: 50.048 | I31: 543.14 | J31: 11.855 | K31: 84.1 | L31: 1.8731 | M31: 1.7329 | N31: 12.04 | O31: 83.184 | P31: 1.8845 | Q31: 12.069 | R31: 91.559 | S31: 413.01 | T31: 12.235 | U31: 86.079 | V31: 406.24 | W31: 12.293 | X31: 101.78 | Y31: 1.8635 | Z31: 0 | AA31: 0 | AB31: 0 | AC31: 0 | AD31: 0 | AE31: 72.89 | AF31: 73.22 | AG31: 73.25 | AH31: 73.08 | AI31: 72.35 | AJ31: 72.31 | AK31: 1.3014 | AL31: 0 | AM31: 0
A32: pCO2 | B32: 36.78205667 | C32: -122.0260933 | D32: 2013-03-17T00:09:23Z | E32: 2013-03-16T23:10:22Z | F32: 591.86 | G32: 11.69 | H32: 54.898 | I32: 569.37 | J32: 11.748 | K32: 97.551 | L32: 1.9514 | M32: 1.7112 | N32: 11.942 | O32: 89.244 | P32: 1.9793 | Q32: 11.962 | R32: 97.43 | S32: 412.74 | T32: 12.137 | U32: 85.972 | V32: 406.49 | W32: 12.196 | X32: 101.78 | Y32: 1.8939 | Z32: 0 | AA32: 0 | AB32: 0 | AC32: 0 | AD32: 0 | AE32: 72.21 | AF32: 72.39 | AG32: 71.92 | AH32: 72.3 | AI32: 72.09 | AJ32: 71.88 | AK32: 1.2998 | AL32: 0 | AM32: 0
A33: pCO2 | B33: 36.78523333 | C33: -121.9881 | D33: 2013-03-17T01:09:22Z | E33: 2013-03-17T00:10:24Z | F33: 546.43 | G33: 11.631 | H33: 49.374 | I33: 525.65 | J33: 11.709 | K33: 91.6 | L33: 1.93 | M33: 1.8548 | N33: 11.884 | O33: 86.766 | P33: 1.7991 | Q33: 11.913 | R33: 95.316 | S33: 412.45 | T33: 12.088 | U33: 86.066 | V33: 406.05 | W33: 12.157 | X33: 101.79 | Y33: 1.879 | Z33: 0 | AA33: 0 | AB33: 0 | AC33: 0 | AD33: 0 | AE33: 71.79 | AF33: 72.07 | AG33: 72.5 | AH33: 73.08 | AI33: 73.71 | AJ33: 74.72 | AK33: 1.2984 | AL33: 0 | AM33: 0
A34: pCO2 | B34: 36.78861333 | C34: -121.9468283 | D34: 2013-03-17T02:09:21Z | E34: 2013-03-17T01:10:22Z | F34: 457.67 | G34: 11.738 | H34: 54.356 | I34: 442.36 | J34: 11.806 | K34: 97.336 | L34: 1.9677 | M34: 1.677 | N34: 12.001 | O34: 89.876 | P34: 1.8715 | Q34: 12.02 | R34: 98.736 | S34: 412.41 | T34: 12.196 | U34: 85.958 | V34: 405.88 | W34: 12.264 | X34: 101.83 | Y34: 1.9048 | Z34: 0 | AA34: 0 | AB34: 0 | AC34: 0 | AD34: 0 | AE34: 75.72 | AF34: 76.18 | AG34: 76.55 | AH34: 76.22 | AI34: 76.11 | AJ34: 76.3 | AK34: 1.2975 | AL34: 0 | AM34: 0
A35: pCO2 | B35: 36.79169 | C35: -121.9106933 | D35: 2013-03-17T03:09:24Z | E35: 2013-03-17T02:10:22Z | F35: 403.83 | G35: 11.748 | H35: 63.58 | I35: 390.79 | J35: 11.816 | K35: 99.194 | L35: 1.9421 | M35: 1.52 | N35: 12.001 | O35: 90.94 | P35: 1.8774 | Q35: 12.03 | R35: 99.8 | S35: 412.49 | T35: 12.205 | U35: 85.999 | V35: 405.69 | W35: 12.264 | X35: 101.85 | Y35: 1.9131 | Z35: 0 | AA35: 0 | AB35: 0 | AC35: 0 | AD35: 0 | AE35: 76.01 | AF35: 76.18 | AG35: 76.43 | AH35: 76.44 | AI35: 76.39 | AJ35: 77.71 | AK35: 1.2965 | AL35: 0 | AM35: 0
A36: pCO2 | B36: 36.79468333 | C36: -121.8753617 | D36: 2013-03-17T04:09:24Z | E36: 2013-03-17T03:10:24Z | F36: 434.07 | G36: 11.758 | H36: 47.961 | I36: 418.92 | J36: 11.826 | K36: 83.333 | L36: 1.915 | M36: 1.8429 | N36: 12.001 | O36: 82.578 | P36: 1.8341 | Q36: 12.03 | R36: 90.954 | S36: 412.13 | T36: 12.215 | U36: 86.039 | V36: 405.47 | W36: 12.274 | X36: 101.9 | Y36: 1.8767 | Z36: 0 | AA36: 0 | AB36: 0 | AC36: 0 | AD36: 0 | AE36: 77.34 | AF36: 77.46 | AG36: 77.56 | AH36: 77.38 | AI36: 77.06 | AJ36: 76.72 | AK36: 1.2966 | AL36: 0 | AM36: 0
A37: pCO2 | B37: 36.79751 | C37: -121.8470417 | D37: 2013-03-17T05:09:22Z | E37: 2013-03-17T04:10:24Z | F37: 459.69 | G37: 11.923 | H37: 56.43 | I37: 443.23 | J37: 11.981 | K37: 98.036 | L37: 1.96 | M37: 1.6207 | N37: 12.176 | O37: 89.311 | P37: 1.6267 | Q37: 12.205 | R37: 98.157 | S37: 418.3 | T37: 12.381 | U37: 86.052 | V37: 411.61 | W37: 12.45 | X37: 101.93 | Y37: 1.9024 | Z37: 0 | AA37: 0 | AB37: 0 | AC37: 0 | AD37: 0 | AE37: 76.72 | AF37: 76.4 | AG37: 76.32 | AH37: 76.18 | AI37: 76.24 | AJ37: 76.31 | AK37: 1.2986 | AL37: 0 | AM37: 0
A38: pCO2 | B38: 36.795655 | C38: -121.87169 | D38: 2013-03-17T06:09:23Z | E38: 2013-03-17T05:10:22Z | F38: 341.49 | G38: 12.176 | H38: 84.1 | I38: 335.4 | J38: 12.244 | K38: 100.61 | L38: 1.9068 | M38: 1.3928 | N38: 12.43 | O38: 91.411 | P38: 1.4834 | Q38: 12.459 | R38: 100.45 | S38: 418.62 | T38: 12.635 | U38: 86.039 | V38: 411.94 | W38: 12.694 | X38: 102.01 | Y38: 1.9272 | Z38: 0 | AA38: 0 | AB38: 0 | AC38: 0 | AD38: 0 | AE38: 76.41 | AF38: 76.49 | AG38: 76.65 | AH38: 76.68 | AI38: 76.75 | AJ38: 76.74 | AK38: 1.2945 | AL38: 0 | AM38: 0
A39: pCO2 | B39: 36.79306333 | C39: -121.9018217 | D39: 2013-03-17T07:09:23Z | E39: 2013-03-17T06:10:22Z | F39: 420.35 | G39: 12.274 | H39: 84.113 | I39: 411.97 | J39: 12.332 | K39: 100.53 | L39: 1.9028 | M39: 1.4018 | N39: 12.508 | O39: 91.923 | P39: 1.4782 | Q39: 12.538 | R39: 101.03 | S39: 417.51 | T39: 12.714 | U39: 86.039 | V39: 411.18 | W39: 12.782 | X39: 102.02 | Y39: 1.926 | Z39: 0 | AA39: 0 | AB39: 0 | AC39: 0 | AD39: 0 | AE39: 76.64 | AF39: 76.69 | AG39: 76.68 | AH39: 76.6 | AI39: 76.6 | AJ39: 76.46 | AK39: 1.2942 | AL39: 0 | AM39: 0
A40: pCO2 | B40: 36.79012833 | C40: -121.9354667 | D40: 2013-03-17T08:09:23Z | E40: 2013-03-17T07:10:22Z | F40: 396.92 | G40: 12.059 | H40: 84.046 | I40: 389.9 | J40: 12.127 | K40: 100.43 | L40: 1.8966 | M40: 1.4562 | N40: 12.313 | O40: 91.95 | P40: 1.6069 | Q40: 12.342 | R40: 101 | S40: 417.54 | T40: 12.508 | U40: 86.066 | V40: 410.98 | W40: 12.567 | X40: 102.02 | Y40: 1.9179 | Z40: 0 | AA40: 0 | AB40: 0 | AC40: 0 | AD40: 0 | AE40: 76.29 | AF40: 76.15 | AG40: 76.06 | AH40: 75.98 | AI40: 75.99 | AJ40: 76 | AK40: 1.2968 | AL40: 0 | AM40: 0
A41: pCO2 | B41: 36.78680333 | C41: -121.9727217 | D41: 2013-03-17T09:09:22Z | E41: 2013-03-17T08:10:24Z | F41: 349.92 | G41: 11.952 | H41: 84.046 | I41: 344.77 | J41: 12.02 | K41: 100.39 | L41: 1.8889 | M41: 1.6635 | N41: 12.196 | O41: 91.788 | P41: 1.5939 | Q41: 12.225 | R41: 100.88 | S41: 421.09 | T41: 12.401 | U41: 86.025 | V41: 414.34 | W41: 12.45 | X41: 102.02 | Y41: 1.916 | Z41: 0 | AA41: 0 | AB41: 0 | AC41: 0 | AD41: 0 | AE41: 75.82 | AF41: 75.83 | AG41: 75.78 | AH41: 75.75 | AI41: 75.68 | AJ41: 75.76 | AK41: 1.2917 | AL41: 0 | AM41: 0
A42: pCO2 | B42: 36.78341167 | C42: -122.010725 | D42: 2013-03-17T10:09:24Z | E42: 2013-03-17T09:10:22Z | F42: 398.18 | G42: 11.787 | H42: 83.777 | I42: 390.81 | J42: 11.855 | K42: 100 | L42: 1.8775 | M42: 1.7379 | N42: 12.04 | O42: 91.425 | P42: 1.7518 | Q42: 12.069 | R42: 100.45 | S42: 420.39 | T42: 12.235 | U42: 85.999 | V42: 413.83 | W42: 12.293 | X42: 102.04 | Y42: 1.9112 | Z42: 0 | AA42: 0 | AB42: 0 | AC42: 0 | AD42: 0 | AE42: 75.9 | AF42: 76.01 | AG42: 76.04 | AH42: 76.03 | AI42: 75.95 | AJ42: 75.99 | AK42: 1.292 | AL42: 0 | AM42: 0
A43: pCO2 | B43: 36.7803 | C43: -122.0460883 | D43: 2013-03-17T11:09:22Z | E43: 2013-03-17T10:10:23Z | F43: 372.48 | G43: 11.651 | H43: 58.53 | I43: 399.95 | J43: 11.719 | K43: 99.49 | L43: 1.9555 | M43: 1.6059 | N43: 11.903 | O43: 91.371 | P43: 1.7136 | Q43: 11.933 | R43: 100.3 | S43: 420.03 | T43: 12.098 | U43: 86.133 | V43: 412.82 | W43: 12.157 | X43: 102.05 | Y43: 1.8994 | Z43: 0 | AA43: 0 | AB43: 0 | AC43: 0 | AD43: 0 | AE43: 76.1 | AF43: 76.27 | AG43: 76.32 | AH43: 76.32 | AI43: 76.31 | AJ43: 76.26 | AK43: 1.2895 | AL43: 0 | AM43: 0
A44: pCO2 | B44: 36.77502333 | C44: -122.07569 | D44: 2013-03-17T12:09:22Z | E44: 2013-03-17T11:10:23Z | F44: 485.98 | G44: 11.496 | H44: 83.844 | I44: 478.72 | J44: 11.563 | K44: 99.638 | L44: 1.8762 | M44: 1.8632 | N44: 11.748 | O44: 91.492 | P44: 1.8338 | Q44: 11.777 | R44: 100.53 | S44: 416.86 | T44: 11.933 | U44: 86.093 | V44: 410.26 | W44: 12.001 | X44: 102.04 | Y44: 1.9021 | Z44: 0 | AA44: 0 | AB44: 0 | AC44: 0 | AD44: 0 | AE44: 76.26 | AF44: 76.13 | AG44: 76.01 | AH44: 75.84 | AI44: 75.55 | AJ44: 75.31 | AK44: 1.2893 | AL44: 0 | AM44: 0
A45: pCO2 | B45: 36.76927167 | C45: -122.1052817 | D45: 2013-03-17T13:09:23Z | E45: 2013-03-17T12:10:22Z | F45: 581.41 | G45: 11.341 | H45: 64.307 | I45: 562.61 | J45: 11.418 | K45: 99.584 | L45: 1.915 | M45: 1.8651 | N45: 11.593 | O45: 91.411 | P45: 2.0066 | Q45: 11.622 | R45: 100.34 | S45: 420.3 | T45: 11.797 | U45: 86.133 | V45: 413.41 | W45: 11.855 | X45: 102.04 | Y45: 1.8844 | Z45: 103.3 | AA45: 447.06 | AB45: 12.079 | AC45: 102.02 | AD45: 1.7457 | AE45: 75.11 | AF45: 74.73 | AG45: 74.48 | AH45: 74.18 | AI45: 73.91 | AJ45: 73.62 | AK45: 1.294 | AL45: 0 | AM45: 0
A46: pCO2 | B46: 36.763995 | C46: -122.1322833 | D46: 2013-03-17T14:09:22Z | E46: 2013-03-17T13:10:22Z | F46: 587.78 | G46: 11.36 | H46: 83.992 | I46: 577.53 | J46: 11.428 | K46: 99.894 | L46: 1.858 | M46: 1.8157 | N46: 11.612 | O46: 91.815 | P46: 2.1388 | Q46: 11.641 | R46: 100.81 | S46: 418.04 | T46: 11.797 | U46: 86.12 | V46: 411.57 | W46: 11.865 | X46: 102.05 | Y46: 1.8927 | Z46: 0 | AA46: 0 | AB46: 0 | AC46: 0 | AD46: 0 | AE46: 73.3 | AF46: 72.95 | AG46: 72.69 | AH46: 72.37 | AI46: 72.07 | AJ46: 71.89 | AK46: 1.2912 | AL46: 0 | AM46: 0
A47: pCO2 | B47: 36.75844 | C47: -122.1611683 | D47: 2013-03-17T15:09:23Z | E47: 2013-03-17T14:10:22Z | F47: 589.99 | G47: 11.282 | H47: 76.654 | I47: 576.07 | J47: 11.36 | K47: 99.369 | L47: 1.9044 | M47: 2.045 | N47: 11.534 | O47: 92.004 | P47: 1.7706 | Q47: 11.563 | R47: 100.88 | S47: 414.26 | T47: 11.738 | U47: 86.214 | V47: 407.59 | W47: 11.806 | X47: 102.08 | Y47: 1.8881 | Z47: 0 | AA47: 0 | AB47: 0 | AC47: 0 | AD47: 0 | AE47: 71.62 | AF47: 71.41 | AG47: 71.13 | AH47: 71 | AI47: 70.8 | AJ47: 70.59 | AK47: 1.2914 | AL47: 0 | AM47: 0
A48: pCO2 | B48: 36.75368833 | C48: -122.1853083 | D48: 2013-03-17T16:09:22Z | E48: 2013-03-17T15:10:22Z | F48: 615.01 | G48: 11.263 | H48: 56.12 | I48: 590.51 | J48: 11.331 | K48: 98.467 | L48: 1.9408 | M48: 1.7565 | N48: 11.515 | O48: 91.331 | P48: 1.9608 | Q48: 11.544 | R48: 100.22 | S48: 414.38 | T48: 11.719 | U48: 86.227 | V48: 407.78 | W48: 11.767 | X48: 102.12 | Y48: 1.8863 | Z48: 0 | AA48: 0 | AB48: 0 | AC48: 0 | AD48: 0 | AE48: 70.36 | AF48: 70.12 | AG48: 70 | AH48: 69.87 | AI48: 69.73 | AJ48: 69.6 | AK48: 1.2929 | AL48: 0 | AM48: 0
A49: pCO2 | B49: 36.74897 | C49: -122.209465 | D49: 2013-03-17T17:09:22Z | E49: 2013-03-17T16:10:22Z | F49: 486.39 | G49: 11.36 | H49: 71.686 | I49: 472.79 | J49: 11.428 | K49: 99.598 | L49: 1.8992 | M49: 1.9647 | N49: 11.612 | O49: 91.196 | P49: 1.7555 | Q49: 11.641 | R49: 100.14 | S49: 414.54 | T49: 11.826 | U49: 86.187 | V49: 407.98 | W49: 11.884 | X49: 102.14 | Y49: 1.9074 | Z49: 0 | AA49: 0 | AB49: 0 | AC49: 0 | AD49: 0 | AE49: 69.56 | AF49: 69.6 | AG49: 69.67 | AH49: 69.93 | AI49: 70.2 | AJ49: 70.63 | AK49: 1.2912 | AL49: 0 | AM49: 0
A50: pCO2 | B50: 36.74481167 | C50: -122.2306433 | D50: 2013-03-17T18:09:23Z | E50: 2013-03-17T17:10:22Z | F50: 459.81 | G50: 11.69 | H50: 72.951 | I50: 446.82 | J50: 11.767 | K50: 99.571 | L50: 1.9078 | M50: 1.6092 | N50: 11.942 | O50: 91.331 | P50: 1.5632 | Q50: 11.972 | R50: 100.3 | S50: 414.35 | T50: 12.157 | U50: 86.201 | V50: 407.48 | W50: 12.215 | X50: 102.18 | Y50: 1.9165 | Z50: 0 | AA50: 0 | AB50: 0 | AC50: 0 | AD50: 0 | AE50: 70.73 | AF50: 71.14 | AG50: 71.45 | AH50: 71.74 | AI50: 71.85 | AJ50: 72.07 | AK50: 1.2878 | AL50: 0 | AM50: 0
A51: pCO2 | B51: 36.74092167 | C51: -122.250805 | D51: 2013-03-17T19:09:23Z | E51: 2013-03-17T18:10:23Z | F51: 460.31 | G51: 11.884 | H51: 69.168 | I51: 447.13 | J51: 11.952 | K51: 99.827 | L51: 1.9535 | M51: 1.6581 | N51: 12.137 | O51: 91.465 | P51: 1.7981 | Q51: 12.166 | R51: 100.42 | S51: 413.46 | T51: 12.342 | U51: 86.201 | V51: 407 | W51: 12.41 | X51: 102.17 | Y51: 1.9255 | Z51: 0 | AA51: 0 | AB51: 0 | AC51: 0 | AD51: 0 | AE51: 72.18 | AF51: 72.37 | AG51: 72.66 | AH51: 72.81 | AI51: 72.82 | AJ51: 73.05 | AK51: 1.2883 | AL51: 0 | AM51: 0
A52: pCO2 | B52: 36.73682167 | C52: -122.2716883 | D52: 2013-03-17T20:09:24Z | E52: 2013-03-17T19:10:22Z | F52: 451.53 | G52: 11.972 | H52: 71.659 | I52: 439.47 | J52: 12.04 | K52: 99.315 | L52: 1.9372 | M52: 1.3833 | N52: 12.225 | O52: 91.506 | P52: 1.6101 | Q52: 12.254 | R52: 100.53 | S52: 413.47 | T52: 12.43 | U52: 86.16 | V52: 406.89 | W52: 12.489 | X52: 102.16 | Y52: 1.9263 | Z52: 0 | AA52: 0 | AB52: 0 | AC52: 0 | AD52: 0 | AE52: 73.09 | AF52: 73.17 | AG52: 73.3 | AH52: 73.39 | AI52: 73.52 | AJ52: 73.47 | AK52: 1.2875 | AL52: 0 | AM52: 0
A53: pCO2 | B53: 36.73187 | C53: -122.2973233 | D53: 2013-03-17T21:09:22Z | E53: 2013-03-17T20:10:24Z | F53: 435.07 | G53: 12.03 | H53: 82.242 | I53: 429.07 | J53: 12.098 | K53: 99.733 | L53: 1.9186 | M53: 1.3848 | N53: 12.283 | O53: 92.125 | P53: 1.647 | Q53: 12.313 | R53: 101.17 | S53: 412.77 | T53: 12.489 | U53: 86.12 | V53: 406.25 | W53: 12.547 | X53: 102.13 | Y53: 1.9354 | Z53: 0 | AA53: 0 | AB53: 0 | AC53: 0 | AD53: 0 | AE53: 73.54 | AF53: 73.59 | AG53: 73.71 | AH53: 73.7 | AI53: 73.85 | AJ53: 74.04 | AK53: 1.2864 | AL53: 0 | AM53: 0
A54: pCO2 | B54: 36.72623 | C54: -122.326625 | D54: 2013-03-17T22:09:23Z | E54: 2013-03-17T21:10:22Z | F54: 455.39 | G54: 12.079 | H54: 65.451 | I54: 441.42 | J54: 12.137 | K54: 99.544 | L54: 1.9498 | M54: 1.5005 | N54: 12.332 | O54: 91.559 | P54: 1.6139 | Q54: 12.362 | R54: 99.921 | S54: 413.38 | T54: 12.528 | U54: 86.174 | V54: 406.79 | W54: 12.587 | X54: 102.09 | Y54: 1.9187 | Z54: 0 | AA54: 0 | AB54: 0 | AC54: 0 | AD54: 0 | AE54: 74.07 | AF54: 74.04 | AG54: 74.41 | AH54: 74.27 | AI54: 74.5 | AJ54: 74.56 | AK54: 1.2849 | AL54: 0 | AM54: 0
A55: pCO2 | B55: 36.72083333 | C55: -122.3539367 | D55: 2013-03-17T23:09:23Z | E55: 2013-03-17T22:10:22Z | F55: 469.34 | G55: 12.098 | H55: 57.655 | I55: 452.03 | J55: 12.176 | K55: 99.005 | L55: 1.9876 | M55: 1.5597 | N55: 12.352 | O55: 91.317 | P55: 1.7182 | Q55: 12.381 | R55: 100.18 | S55: 413.47 | T55: 12.557 | U55: 86.16 | V55: 406.92 | W55: 12.616 | X55: 102.02 | Y55: 1.9141 | Z55: 0 | AA55: 0 | AB55: 0 | AC55: 0 | AD55: 0 | AE55: 74.57 | AF55: 74.66 | AG55: 74.45 | AH55: 74.45 | AI55: 74.59 | AJ55: 74.51 | AK55: 1.284 | AL55: 0 | AM55: 0
A56: pCO2 | B56: 36.714055 | C56: -122.3781 | D56: 2013-03-18T00:09:24Z | E56: 2013-03-17T23:10:22Z | F56: 465.64 | G56: 12.118 | H56: 60.254 | I56: 448.26 | J56: 12.186 | K56: 99.086 | L56: 1.9676 | M56: 1.5251 | N56: 12.371 | O56: 91.25 | P56: 1.4951 | Q56: 12.401 | R56: 100.15 | S56: 413.35 | T56: 12.577 | U56: 86.066 | V56: 407 | W56: 12.635 | X56: 101.99 | Y56: 1.9132 | Z56: 0 | AA56: 0 | AB56: 0 | AC56: 0 | AD56: 0 | AE56: 74.7 | AF56: 75.14 | AG56: 74.88 | AH56: 74.82 | AI56: 74.82 | AJ56: 74.84 | AK56: 1.2839 | AL56: 0 | AM56: 0
A57: pCO2 | B57: 36.700455 | C57: -122.3779383 | D57: 2013-03-18T01:09:24Z | E57: 2013-03-18T00:10:23Z | F57: 485.33 | G57: 12.098 | H57: 51.206 | I57: 460.7 | J57: 12.166 | K57: 94.427 | L57: 1.9775 | M57: 1.5018 | N57: 12.352 | O57: 89.688 | P57: 1.7621 | Q57: 12.381 | R57: 98.48 | S57: 412.97 | T57: 12.557 | U57: 86.093 | V57: 406.92 | W57: 12.616 | X57: 101.98 | Y57: 1.9064 | Z57: 0 | AA57: 0 | AB57: 0 | AC57: 0 | AD57: 0 | AE57: 75.14 | AF57: 74.97 | AG57: 74.91 | AH57: 75.34 | AI57: 75.75 | AJ57: 75.87 | AK57: 1.2802 | AL57: 0 | AM57: 0
A58: pCO2 | B58: 36.71822 | C58: -122.367685 | D58: 2013-03-18T02:09:23Z | E58: 2013-03-18T01:10:24Z | F58: 481.56 | G58: 12.049 | H58: 47.826 | I58: 463.21 | J58: 12.118 | K58: 88.516 | L58: 1.9442 | M58: 1.8562 | N58: 12.313 | O58: 86.618 | P58: 1.7557 | Q58: 12.332 | R58: 95.195 | S58: 412.71 | T58: 12.508 | U58: 86.16 | V58: 406.43 | W58: 12.567 | X58: 101.98 | Y58: 1.8856 | Z58: 0 | AA58: 0 | AB58: 0 | AC58: 0 | AD58: 0 | AE58: 75.51 | AF58: 75.41 | AG58: 75.3 | AH58: 75.38 | AI58: 75.28 | AJ58: 75.58 | AK58: 1.2741 | AL58: 0 | AM58: 0
A59: pCO2 | B59: 36.725415 | C59: -122.3307617 | D59: 2013-03-18T03:09:22Z | E59: 2013-03-18T02:10:23Z | F59: 486.12 | G59: 12.049 | H59: 45.995 | I59: 468.35 | J59: 12.118 | K59: 83.184 | L59: 1.8752 | M59: 1.5271 | N59: 12.313 | O59: 83.279 | P59: 1.7054 | Q59: 12.332 | R59: 91.735 | S59: 412.76 | T59: 12.508 | U59: 86.093 | V59: 406.25 | W59: 12.567 | X59: 101.95 | Y59: 1.864 | Z59: 0 | AA59: 0 | AB59: 0 | AC59: 0 | AD59: 0 | AE59: 75.88 | AF59: 75.92 | AG59: 75.78 | AH59: 76.03 | AI59: 76.17 | AJ59: 76.17 | AK59: 1.2691 | AL59: 0 | AM59: 0
A60: pCO2 | B60: 36.73243333 | C60: -122.294395 | D60: 2013-03-18T04:09:23Z | E60: 2013-03-18T03:10:22Z | F60: 489.74 | G60: 12.03 | H60: 47.287 | I60: 471.33 | J60: 12.098 | K60: 82.956 | L60: 1.9235 | M60: 1.6938 | N60: 12.293 | O60: 82.7 | P60: 1.7434 | Q60: 12.323 | R60: 90.967 | S60: 412.73 | T60: 12.489 | U60: 86.254 | V60: 406.4 | W60: 12.547 | X60: 101.94 | Y60: 1.8785 | Z60: 0 | AA60: 0 | AB60: 0 | AC60: 0 | AD60: 0 | AE60: 76.12 | AF60: 76.01 | AG60: 76.01 | AH60: 75.93 | AI60: 75.91 | AJ60: 75.94 | AK60: 1.2684 | AL60: 0 | AM60: 0
A61: pCO2 | B61: 36.73997833 | C61: -122.2556833 | D61: 2013-03-18T05:09:23Z | E61: 2013-03-18T04:10:22Z | F61: 463.45 | G61: 12.01 | H61: 59.527 | I61: 446.15 | J61: 12.079 | K61: 98.979 | L61: 1.9555 | M61: 1.5488 | N61: 12.264 | O61: 89.526 | P61: 1.8657 | Q61: 12.283 | R61: 98.265 | S61: 412.64 | T61: 12.459 | U61: 86.187 | V61: 406.49 | W61: 12.528 | X61: 101.97 | Y61: 1.8986 | Z61: 0 | AA61: 0 | AB61: 0 | AC61: 0 | AD61: 0 | AE61: 76.04 | AF61: 75.83 | AG61: 76.01 | AH61: 76.12 | AI61: 76.03 | AJ61: 75.9 | AK61: 1.2669 | AL61: 0 | AM61: 0
A62: pCO2 | B62: 36.74696833 | C62: -122.2200017 | D62: 2013-03-18T06:09:23Z | E62: 2013-03-18T05:10:23Z | F62: 449.02 | G62: 11.991 | H62: 68.629 | I62: 436.08 | J62: 12.059 | K62: 99.261 | L62: 1.904 | M62: 1.6127 | N62: 12.235 | O62: 90.819 | P62: 1.4749 | Q62: 12.264 | R62: 99.84 | S62: 412.6 | T62: 12.44 | U62: 86.052 | V62: 406.14 | W62: 12.508 | X62: 101.99 | Y62: 1.8989 | Z62: 0 | AA62: 0 | AB62: 0 | AC62: 0 | AD62: 0 | AE62: 75.92 | AF62: 75.87 | AG62: 76.08 | AH62: 75.83 | AI62: 75.61 | AJ62: 75.6 | AK62: 1.2664 | AL62: 0 | AM62: 0
A63: pCO2 | B63: 36.75285667 | C63: -122.1895717 | D63: 2013-03-18T07:09:23Z | E63: 2013-03-18T06:10:23Z | F63: 464.09 | G63: 11.942 | H63: 66.192 | I63: 450.3 | J63: 12.01 | K63: 99.369 | L63: 1.918 | M63: 1.4473 | N63: 12.196 | O63: 91.236 | P63: 1.605 | Q63: 12.225 | R63: 100.28 | S63: 413.25 | T63: 12.401 | U63: 86.025 | V63: 406.39 | W63: 12.459 | X63: 102.04 | Y63: 1.8943 | Z63: 0 | AA63: 0 | AB63: 0 | AC63: 0 | AD63: 0 | AE63: 75.74 | AF63: 75.57 | AG63: 75.31 | AH63: 75.53 | AI63: 75.23 | AJ63: 75.24 | AK63: 1.2645 | AL63: 0 | AM63: 0
A64: pCO2 | B64: 36.75833333 | C64: -122.1609883 | D64: 2013-03-18T08:09:22Z | E64: 2013-03-18T07:10:22Z | F64: 506.76 | G64: 11.835 | H64: 69.181 | I64: 486.64 | J64: 11.903 | K64: 99.383 | L64: 1.9105 | M64: 1.7251 | N64: 12.079 | O64: 91.371 | P64: 1.7774 | Q64: 12.108 | R64: 100.42 | S64: 413.7 | T64: 12.284 | U64: 85.958 | V64: 407.18 | W64: 12.332 | X64: 101.98 | Y64: 1.8931 | Z64: 0 | AA64: 0 | AB64: 0 | AC64: 0 | AD64: 0 | AE64: 74.88 | AF64: 74.62 | AG64: 74.62 | AH64: 74.07 | AI64: 72.67 | AJ64: 71.87 | AK64: 1.2636 | AL64: 0 | AM64: 0
A65: pCO2 | B65: 36.76375667 | C65: -122.1334283 | D65: 2013-03-18T09:09:23Z | E65: 2013-03-18T08:10:22Z | F65: 582.77 | G65: 11.447 | H65: 83.561 | I65: 573.74 | J65: 11.515 | K65: 99.975 | L65: 1.851 | M65: 1.6507 | N65: 11.69 | O65: 91.519 | P65: 1.8386 | Q65: 11.719 | R65: 100.58 | S65: 414.13 | T65: 11.884 | U65: 85.931 | V65: 407.3 | W65: 11.942 | X65: 101.99 | Y65: 1.8907 | Z65: 0 | AA65: 0 | AB65: 0 | AC65: 0 | AD65: 0 | AE65: 71.06 | AF65: 70.75 | AG65: 70.16 | AH65: 69.68 | AI65: 69.52 | AJ65: 69.03 | AK65: 1.2656 | AL65: 0 | AM65: 0
A66: pCO2 | B66: 36.76975833 | C66: -122.1030267 | D66: 2013-03-18T10:09:23Z | E66: 2013-03-18T09:10:22Z | F66: 601.72 | G66: 11.224 | H66: 82.632 | I66: 594.57 | J66: 11.282 | K66: 99.719 | L66: 1.8484 | M66: 1.8121 | N66: 11.467 | O66: 91.425 | P66: 1.8593 | Q66: 11.496 | R66: 100.49 | S66: 414.5 | T66: 11.661 | U66: 85.945 | V66: 407.93 | W66: 11.729 | X66: 102.01 | Y66: 1.8825 | Z66: 0 | AA66: 0 | AB66: 0 | AC66: 0 | AD66: 0 | AE66: 68.93 | AF66: 68.72 | AG66: 68.61 | AH66: 68.1 | AI66: 67.96 | AJ66: 68.05 | AK66: 1.2635 | AL66: 0 | AM66: 0
A67: pCO2 | B67: 36.77546333 | C67: -122.0731317 | D67: 2013-03-18T11:09:23Z | E67: 2013-03-18T10:10:23Z | F67: 615.49 | G67: 11.05 | H67: 83.521 | I67: 605.53 | J67: 11.128 | K67: 99.665 | L67: 1.8402 | M67: 2.1362 | N67: 11.302 | O67: 91.452 | P67: 2.216 | Q67: 11.331 | R67: 100.5 | S67: 415.4 | T67: 11.505 | U67: 85.918 | V67: 408.45 | W67: 11.554 | X67: 101.94 | Y67: 1.8823 | Z67: 0 | AA67: 0 | AB67: 0 | AC67: 0 | AD67: 0 | AE67: 68.13 | AF67: 67.92 | AG67: 67.87 | AH67: 67.62 | AI67: 67.52 | AJ67: 67.43 | AK67: 1.2629 | AL67: 0 | AM67: 0
A68: pCO2 | B68: 36.78033 | C68: -122.04591 | D68: 2013-03-18T12:09:22Z | E68: 2013-03-18T11:10:22Z | F68: 625.19 | G68: 10.954 | H68: 67.175 | I68: 607.69 | J68: 11.021 | K68: 99.436 | L68: 1.8934 | M68: 2.0018 | N68: 11.205 | O68: 91.842 | P68: 2.0726 | Q68: 11.234 | R68: 100.86 | S68: 416.99 | T68: 11.408 | U68: 85.918 | V68: 410.09 | W68: 11.467 | X68: 101.91 | Y68: 1.8728 | Z68: 103.21 | AA68: 446.86 | AB68: 11.69 | AC68: 101.9 | AD68: 1.7367 | AE68: 67.29 | AF68: 67.38 | AG68: 67.31 | AH68: 67.44 | AI68: 67.53 | AJ68: 68.23 | AK68: 1.2624 | AL68: 0 | AM68: 0
A69: pCO2 | B69: 36.78262 | C69: -122.0193417 | D69: 2013-03-18T13:09:24Z | E69: 2013-03-18T12:10:22Z | F69: 530.85 | G69: 11.089 | H69: 59.433 | I69: 509.27 | J69: 11.157 | K69: 99.194 | L69: 1.9046 | M69: 1.8215 | N69: 11.341 | O69: 91.331 | P69: 2.0591 | Q69: 11.37 | R69: 100.26 | S69: 420.13 | T69: 11.544 | U69: 85.985 | V69: 413.86 | W69: 11.612 | X69: 101.9 | Y69: 1.8548 | Z69: 0 | AA69: 0 | AB69: 0 | AC69: 0 | AD69: 0 | AE69: 70.06 | AF69: 71.62 | AG69: 72.05 | AH69: 72.4 | AI69: 72.67 | AJ69: 72.66 | AK69: 1.2615 | AL69: 0 | AM69: 0
A70: pCO2 | B70: 36.784945 | C70: -121.9912583 | D70: 2013-03-18T14:09:23Z | E70: 2013-03-18T13:10:22Z | F70: 449.21 | G70: 11.176 | H70: 83.359 | I70: 442.04 | J70: 11.244 | K70: 99.746 | L70: 1.8267 | M70: 1.8755 | N70: 11.428 | O70: 91.465 | P70: 1.986 | Q70: 11.447 | R70: 100.5 | S70: 422.09 | T70: 11.631 | U70: 85.931 | V70: 415.6 | W70: 11.69 | X70: 101.94 | Y70: 1.8697 | Z70: 0 | AA70: 0 | AB70: 0 | AC70: 0 | AD70: 0 | AE70: 72.62 | AF70: 73.01 | AG70: 73.67 | AH70: 73.98 | AI70: 74.32 | AJ70: 74.54 | AK70: 1.2603 | AL70: 0 | AM70: 0
A71: pCO2 | B71: 36.7873 | C71: -121.9621933 | D71: 2013-03-18T15:09:24Z | E71: 2013-03-18T14:10:22Z | F71: 431.31 | G71: 11.253 | H71: 84.315 | I71: 423.52 | J71: 11.321 | K71: 101.04 | L71: 1.8245 | M71: 1.7303 | N71: 11.505 | O71: 92.152 | P71: 1.781 | Q71: 11.525 | R71: 101.21 | S71: 429.58 | T71: 11.699 | U71: 86.039 | V71: 423.09 | W71: 11.767 | X71: 102.01 | Y71: 1.8587 | Z71: 0 | AA71: 0 | AB71: 0 | AC71: 0 | AD71: 0 | AE71: 74.71 | AF71: 74.99 | AG71: 75.1 | AH71: 75.31 | AI71: 76.29 | AJ71: 76.36 | AK71: 1.2596 | AL71: 0 | AM71: 0
A72: pCO2 | B72: 36.78983667 | C72: -121.932785 | D72: 2013-03-18T16:09:23Z | E72: 2013-03-18T15:10:22Z | F72: 397.78 | G72: 11.35 | H72: 84.787 | I72: 390.67 | J72: 11.418 | K72: 101.79 | L72: 1.8334 | M72: 1.9136 | N72: 11.602 | O72: 92.744 | P72: 1.8318 | Q72: 11.631 | R72: 101.83 | S72: 427.66 | T72: 11.806 | U72: 86.066 | V72: 420.76 | W72: 11.865 | X72: 102.08 | Y72: 1.8674 | Z72: 0 | AA72: 0 | AB72: 0 | AC72: 0 | AD72: 0 | AE72: 76.78 | AF72: 76.82 | AG72: 76.86 | AH72: 76.82 | AI72: 76.76 | AJ72: 76.66 | AK72: 1.2568 | AL72: 0 | AM72: 0
A73: pCO2 | B73: 36.79227667 | C73: -121.9029033 | D73: 2013-03-18T17:09:23Z | E73: 2013-03-18T16:10:22Z | F73: 426.14 | G73: 11.428 | H73: 84.719 | I73: 418.51 | J73: 11.496 | K73: 101.68 | L73: 1.8632 | M73: 1.7494 | N73: 11.68 | O73: 92.771 | P73: 1.9364 | Q73: 11.699 | R73: 101.82 | S73: 429.17 | T73: 11.874 | U73: 86.16 | V73: 422.6 | W73: 11.942 | X73: 102.12 | Y73: 1.8865 | Z73: 0 | AA73: 0 | AB73: 0 | AC73: 0 | AD73: 0 | AE73: 76.62 | AF73: 76.56 | AG73: 76.44 | AH73: 76.25 | AI73: 76.18 | AJ73: 75.94 | AK73: 1.2573 | AL73: 0 | AM73: 0
A74: pCO2 | B74: 36.794575 | C74: -121.8760017 | D74: 2013-03-18T18:09:24Z | E74: 2013-03-18T17:10:22Z | F74: 413.98 | G74: 11.486 | H74: 84.921 | I74: 406.91 | J74: 11.554 | K74: 102.3 | L74: 1.8942 | M74: 1.7776 | N74: 11.738 | O74: 93.054 | P74: 1.8065 | Q74: 11.758 | R74: 102.18 | S74: 427.92 | T74: 11.942 | U74: 86.039 | V74: 421.57 | W74: 12.001 | X74: 102.14 | Y74: 1.9174 | Z74: 0 | AA74: 0 | AB74: 0 | AC74: 0 | AD74: 0 | AE74: 75.78 | AF74: 75.55 | AG74: 75.41 | AH74: 75.23 | AI74: 75.06 | AJ74: 74.92 | AK74: 1.2562 | AL74: 0 | AM74: 0
A75: pCO2 | B75: 36.79670833 | C75: -121.8510717 | D75: 2013-03-18T19:09:23Z | E75: 2013-03-18T18:10:22Z | F75: 470.1 | G75: 11.67 | H75: 84.585 | I75: 462.72 | J75: 11.738 | K75: 101.91 | L75: 1.9072 | M75: 1.6429 | N75: 11.923 | O75: 92.987 | P75: 1.799 | Q75: 11.952 | R75: 102.09 | S75: 426.34 | T75: 12.137 | U75: 86.025 | V75: 419.69 | W75: 12.196 | X75: 102.14 | Y75: 1.9318 | Z75: 0 | AA75: 0 | AB75: 0 | AC75: 0 | AD75: 0 | AE75: 74.77 | AF75: 74.54 | AG75: 74.38 | AH75: 74.09 | AI75: 73.98 | AJ75: 73.8 | AK75: 1.253 | AL75: 0 | AM75: 0
A76: pCO2 | B76: 36.79772167 | C76: -121.8524183 | D76: 2013-03-18T20:09:24Z | E76: 2013-03-18T19:10:22Z | F76: 509.61 | G76: 12.088 | H76: 84.531 | I76: 501.25 | J76: 12.157 | K76: 101.86 | L76: 1.9185 | M76: 1.567 | N76: 12.352 | O76: 92.946 | P76: 1.4937 | Q76: 12.381 | R76: 102.06 | S76: 427.5 | T76: 12.557 | U76: 86.025 | V76: 421.19 | W76: 12.616 | X76: 102.12 | Y76: 1.9392 | Z76: 0 | AA76: 0 | AB76: 0 | AC76: 0 | AD76: 0 | AE76: 73.68 | AF76: 73.48 | AG76: 73.23 | AH76: 72.93 | AI76: 72.83 | AJ76: 72.54 | AK76: 1.2518 | AL76: 0 | AM76: 0
A77: pCO2 | B77: 36.79563667 | C77: -121.8651967 | D77: 2013-03-18T21:09:23Z | E77: 2013-03-18T20:10:22Z | F77: 471.89 | G77: 12.196 | H77: 84.531 | I77: 464.51 | J77: 12.264 | K77: 101.95 | L77: 1.9238 | M77: 1.2497 | N77: 12.449 | O77: 92.879 | P77: 1.4972 | Q77: 12.479 | R77: 102.05 | S77: 422.71 | T77: 12.655 | U77: 85.972 | V77: 416.26 | W77: 12.714 | X77: 102.04 | Y77: 1.9459 | Z77: 0 | AA77: 0 | AB77: 0 | AC77: 0 | AD77: 0 | AE77: 72.24 | AF77: 72.05 | AG77: 71.98 | AH77: 71.78 | AI77: 71.53 | AJ77: 71.41 | AK77: 1.2516 | AL77: 0 | AM77: 0
A78: pCO2 | B78: 36.79285167 | C78: -121.8826817 | D78: 2013-03-18T22:09:24Z | E78: 2013-03-18T21:10:22Z | F78: 408.4 | G78: 12.186 | H78: 84.167 | I78: 401.42 | J78: 12.254 | K78: 101.51 | L78: 1.923 | M78: 1.306 | N78: 12.43 | O78: 92.583 | P78: 1.5106 | Q78: 12.459 | R78: 101.75 | S78: 418.69 | T78: 12.635 | U78: 85.85 | V78: 412.14 | W78: 12.694 | X78: 101.94 | Y78: 1.9467 | Z78: 0 | AA78: 0 | AB78: 0 | AC78: 0 | AD78: 0 | AE78: 71.4 | AF78: 71.29 | AG78: 71.12 | AH78: 71.21 | AI78: 71.3 | AJ78: 71.51 | AK78: 1.2531 | AL78: 0 | AM78: 0
A79: pCO2 | B79: 36.78960833 | C79: -121.9028783 | D79: 2013-03-18T23:09:23Z | E79: 2013-03-18T22:10:23Z | F79: 319.46 | G79: 12.137 | H79: 84.033 | I79: 313.81 | J79: 12.205 | K79: 101.32 | L79: 1.9208 | M79: 1.2572 | N79: 12.391 | O79: 92.529 | P79: 1.5575 | Q79: 12.41 | R79: 101.64 | S79: 414.79 | T79: 12.577 | U79: 85.837 | V79: 408.14 | W79: 12.645 | X79: 101.87 | Y79: 1.945 | Z79: 0 | AA79: 0 | AB79: 0 | AC79: 0 | AD79: 0 | AE79: 71.72 | AF79: 72.33 | AG79: 72.76 | AH79: 73.5 | AI79: 74.3 | AJ79: 74.87 | AK79: 1.2534 | AL79: 0 | AM79: 0
A80: pCO2 | B80: 36.78562833 | C80: -121.928015 | D80: 2013-03-19T00:09:23Z | E80: 2013-03-18T23:10:23Z | F80: 311.91 | G80: 12.04 | H80: 83.979 | I80: 306.21 | J80: 12.098 | K80: 100.68 | L80: 1.9137 | M80: 1.3432 | N80: 12.283 | O80: 91.977 | P80: 1.488 | Q80: 12.303 | R80: 101.08 | S80: 415.9 | T80: 12.479 | U80: 85.81 | V80: 408.77 | W80: 12.538 | X80: 101.89 | Y80: 1.9422 | Z80: 0 | AA80: 0 | AB80: 0 | AC80: 0 | AD80: 0 | AE80: 75.71 | AF80: 76.71 | AG80: 77.38 | AH80: 78.02 | AI80: 78.77 | AJ80: 79.24 | AK80: 1.2523 | AL80: 0 | AM80: 0
A81: pCO2 | B81: 36.78220833 | C81: -121.9497083 | D81: 2013-03-19T01:09:24Z | E81: 2013-03-19T00:10:22Z | F81: 339.5 | G81: 11.806 | H81: 83.992 | I81: 334.19 | J81: 11.874 | K81: 101.07 | L81: 1.9129 | M81: 1.521 | N81: 12.059 | O81: 92.112 | P81: 1.6758 | Q81: 12.079 | R81: 101.21 | S81: 416.38 | T81: 12.254 | U81: 85.824 | V81: 409.9 | W81: 12.313 | X81: 101.86 | Y81: 1.9398 | Z81: 0 | AA81: 0 | AB81: 0 | AC81: 0 | AD81: 0 | AE81: 79.43 | AF81: 79.57 | AG81: 79.59 | AH81: 79.61 | AI81: 79.52 | AJ81: 79.42 | AK81: 1.253 | AL81: 0 | AM81: 0
A82: pCO2 | B82: 36.77909833 | C82: -121.968875 | D82: 2013-03-19T02:09:23Z | E82: 2013-03-19T01:10:22Z | F82: 296.61 | G82: 11.806 | H82: 84.113 | I82: 291.27 | J82: 11.865 | K82: 101.23 | L82: 1.913 | M82: 1.728 | N82: 12.059 | O82: 92.367 | P82: 1.449 | Q82: 12.088 | R82: 101.47 | S82: 415.78 | T82: 12.264 | U82: 85.877 | V82: 409.41 | W82: 12.323 | X82: 101.94 | Y82: 1.938 | Z82: 0 | AA82: 0 | AB82: 0 | AC82: 0 | AD82: 0 | AE82: 79.47 | AF82: 79.57 | AG82: 79.78 | AH82: 80.04 | AI82: 80.41 | AJ82: 80.57 | AK82: 1.2504 | AL82: 0 | AM82: 0
A83: pCO2 | B83: 36.775355 | C83: -121.9922583 | D83: 2013-03-19T03:09:24Z | E83: 2013-03-19T02:10:22Z | F83: 319.61 | G83: 11.826 | H83: 83.494 | I83: 313.84 | J83: 11.894 | K83: 100.23 | L83: 1.9048 | M83: 1.6414 | N83: 12.079 | O83: 91.869 | P83: 1.654 | Q83: 12.108 | R83: 100.97 | S83: 412.93 | T83: 12.274 | U83: 85.985 | V83: 406.56 | W83: 12.332 | X83: 102.02 | Y83: 1.9346 | Z83: 0 | AA83: 0 | AB83: 0 | AC83: 0 | AD83: 0 | AE83: 80.84 | AF83: 81.19 | AG83: 81.39 | AH83: 81.47 | AI83: 81.47 | AJ83: 81.18 | AK83: 1.2474 | AL83: 0 | AM83: 0
A84: pCO2 | B84: 36.77096667 | C84: -122.0194167 | D84: 2013-03-19T04:09:24Z | E84: 2013-03-19T03:10:23Z | F84: 407.66 | G84: 11.631 | H84: 82.902 | I84: 400.9 | J84: 11.69 | K84: 99.706 | L84: 1.9127 | M84: 1.8272 | N84: 11.874 | O84: 91.344 | P84: 1.7138 | Q84: 11.894 | R84: 100.37 | S84: 412.09 | T84: 12.069 | U84: 86.025 | V84: 405.82 | W84: 12.137 | X84: 102.04 | Y84: 1.9305 | Z84: 0 | AA84: 0 | AB84: 0 | AC84: 0 | AD84: 0 | AE84: 80.72 | AF84: 80.16 | AG84: 79.39 | AH84: 78.7 | AI84: 77.81 | AJ84: 77.01 | AK84: 1.2497 | AL84: 0 | AM84: 0
A85: pCO2 | B85: 36.76592667 | C85: -122.05066 | D85: 2013-03-19T05:09:25Z | E85: 2013-03-19T04:10:22Z | F85: 523.21 | G85: 11.37 | H85: 83.508 | I85: 513.46 | J85: 11.437 | K85: 99.76 | L85: 1.8966 | M85: 1.8579 | N85: 11.612 | O85: 92.138 | P85: 1.8141 | Q85: 11.641 | R85: 101.2 | S85: 412.6 | T85: 11.806 | U85: 85.985 | V85: 405.79 | W85: 11.865 | X85: 102.02 | Y85: 1.9251 | Z85: 0 | AA85: 0 | AB85: 0 | AC85: 0 | AD85: 0 | AE85: 76.34 | AF85: 75.85 | AG85: 75.25 | AH85: 74.65 | AI85: 73.63 | AJ85: 72.65 | AK85: 1.2514 | AL85: 0 | AM85: 0
A86: pCO2 | B86: 36.76043 | C86: -122.0853867 | D86: 2013-03-19T06:09:23Z | E86: 2013-03-19T05:10:24Z | F86: 581.24 | G86: 11.108 | H86: 83.373 | I86: 572.92 | J86: 11.186 | K86: 99.813 | L86: 1.8897 | M86: 1.9498 | N86: 11.36 | O86: 91.25 | P86: 1.8892 | Q86: 11.389 | R86: 100.26 | S86: 413.02 | T86: 11.554 | U86: 86.025 | V86: 406.08 | W86: 11.612 | X86: 102.04 | Y86: 1.9186 | Z86: 0 | AA86: 0 | AB86: 0 | AC86: 0 | AD86: 0 | AE86: 71.98 | AF86: 71.21 | AG86: 70.41 | AH86: 69.97 | AI86: 69.78 | AJ86: 69.62 | AK86: 1.2506 | AL86: 0 | AM86: 0
A87: pCO2 | B87: 36.755425 | C87: -122.1159867 | D87: 2013-03-19T07:09:24Z | E87: 2013-03-19T06:10:22Z | F87: 558.45 | G87: 11.012 | H87: 83.508 | I87: 549.32 | J87: 11.079 | K87: 99.948 | L87: 1.8892 | M87: 1.9397 | N87: 11.263 | O87: 91.506 | P87: 2.0604 | Q87: 11.292 | R87: 100.55 | S87: 413.63 | T87: 11.467 | U87: 86.012 | V87: 407.49 | W87: 11.525 | X87: 102.08 | Y87: 1.9192 | Z87: 0 | AA87: 0 | AB87: 0 | AC87: 0 | AD87: 0 | AE87: 69.43 | AF87: 69.3 | AG87: 69.21 | AH87: 69.09 | AI87: 69.03 | AJ87: 69.02 | AK87: 1.2498 | AL87: 0 | AM87: 0
A88: pCO2 | B88: 36.752035 | C88: -122.1378083 | D88: 2013-03-19T08:09:23Z | E88: 2013-03-19T07:10:22Z | F88: 484.4 | G88: 11.099 | H88: 83.938 | I88: 478.29 | J88: 11.166 | K88: 100.42 | L88: 1.8993 | M88: 1.787 | N88: 11.36 | O88: 92.071 | P88: 1.8896 | Q88: 11.389 | R88: 101.15 | S88: 414.96 | T88: 11.564 | U88: 85.999 | V88: 408.18 | W88: 11.631 | X88: 102.06 | Y88: 1.9225 | Z88: 0 | AA88: 0 | AB88: 0 | AC88: 0 | AD88: 0 | AE88: 68.74 | AF88: 68.63 | AG88: 68.53 | AH88: 68.67 | AI88: 68.87 | AJ88: 69.64 | AK88: 1.2445 | AL88: 0 | AM88: 0
A89: pCO2 | B89: 36.74802333 | C89: -122.1629117 | D89: 2013-03-19T09:09:25Z | E89: 2013-03-19T08:10:22Z | F89: 451.21 | G89: 11.515 | H89: 83.642 | I89: 444.63 | J89: 11.593 | K89: 100.45 | L89: 1.901 | M89: 1.4794 | N89: 11.787 | O89: 92.287 | P89: 1.6414 | Q89: 11.816 | R89: 101.39 | S89: 415.52 | T89: 11.991 | U89: 85.972 | V89: 409.13 | W89: 12.059 | X89: 102.01 | Y89: 1.9266 | Z89: 0 | AA89: 0 | AB89: 0 | AC89: 0 | AD89: 0 | AE89: 70.34 | AF89: 70.7 | AG89: 71.18 | AH89: 71.84 | AI89: 72.76 | AJ89: 73.58 | AK89: 1.2424 | AL89: 0 | AM89: 0
A90: pCO2 | B90: 36.744415 | C90: -122.1851417 | D90: 2013-03-19T10:09:23Z | E90: 2013-03-19T09:10:24Z | F90: 437.76 | G90: 11.787 | H90: 83.831 | I90: 431.24 | J90: 11.845 | K90: 100.54 | L90: 1.9101 | M90: 1.7456 | N90: 12.04 | O90: 92.004 | P90: 1.7232 | Q90: 12.069 | R90: 101.16 | S90: 415.61 | T90: 12.244 | U90: 85.958 | V90: 409.26 | W90: 12.303 | X90: 102.01 | Y90: 1.9327 | Z90: 0 | AA90: 0 | AB90: 0 | AC90: 0 | AD90: 0 | AE90: 73.95 | AF90: 74.05 | AG90: 74.26 | AH90: 74.24 | AI90: 74.21 | AJ90: 74.29 | AK90: 1.2449 | AL90: 0 | AM90: 0
A91: pCO2 | B91: 36.74131 | C91: -122.2044233 | D91: 2013-03-19T11:09:23Z | E91: 2013-03-19T10:10:22Z | F91: 439.17 | G91: 11.884 | H91: 84.06 | I91: 432.36 | J91: 11.952 | K91: 100.69 | L91: 1.9118 | M91: 1.4648 | N91: 12.137 | O91: 91.95 | P91: 1.6705 | Q91: 12.166 | R91: 101.04 | S91: 414.9 | T91: 12.342 | U91: 85.945 | V91: 408.06 | W91: 12.401 | X91: 101.97 | Y91: 1.9355 | Z91: 103.29 | AA91: 447.11 | AB91: 12.626 | AC91: 101.97 | AD91: 1.7881 | AE91: 74.38 | AF91: 74.45 | AG91: 74.44 | AH91: 74.49 | AI91: 74.34 | AJ91: 74.27 | AK91: 1.2443 | AL91: 0 | AM91: 0
A92: pCO2 | B92: 36.73887167 | C92: -122.219645 | D92: 2013-03-19T12:09:24Z | E92: 2013-03-19T11:10:22Z | F92: 444.02 | G92: 11.981 | H92: 84.289 | I92: 435.91 | J92: 12.04 | K92: 100.93 | L92: 1.9085 | M92: 1.5323 | N92: 12.225 | O92: 92.152 | P92: 1.7432 | Q92: 12.244 | R92: 101.29 | S92: 415.67 | T92: 12.43 | U92: 85.864 | V92: 409.01 | W92: 12.479 | X92: 101.89 | Y92: 1.931 | Z92: 0 | AA92: 0 | AB92: 0 | AC92: 0 | AD92: 0 | AE92: 74.14 | AF92: 74.08 | AG92: 73.98 | AH92: 73.82 | AI92: 73.77 | AJ92: 73.68 | AK92: 1.2426 | AL92: 0 | AM92: 0
A93: pCO2 | B93: 36.73686667 | C93: -122.2324483 | D93: 2013-03-19T13:09:23Z | E93: 2013-03-19T12:10:22Z | F93: 448.23 | G93: 11.913 | H93: 84.302 | I93: 440.35 | J93: 11.981 | K93: 101.36 | L93: 1.8994 | M93: 1.5274 | N93: 12.176 | O93: 92.65 | P93: 1.5908 | Q93: 12.205 | R93: 101.74 | S93: 413.76 | T93: 12.371 | U93: 85.972 | V93: 407.44 | W93: 12.43 | X93: 101.9 | Y93: 1.9207 | Z93: 0 | AA93: 0 | AB93: 0 | AC93: 0 | AD93: 0 | AE93: 73.59 | AF93: 73.51 | AG93: 73.49 | AH93: 73.42 | AI93: 73.37 | AJ93: 73.3 | AK93: 1.2413 | AL93: 0 | AM93: 0
A94: pCO2 | B94: 36.73501833 | C94: -122.2441583 | D94: 2013-03-19T14:09:24Z | E94: 2013-03-19T13:10:22Z | F94: 452 | G94: 11.894 | H94: 84.369 | I94: 444.16 | J94: 11.962 | K94: 101.13 | L94: 1.8831 | M94: 1.3738 | N94: 12.147 | O94: 92.435 | P94: 1.7942 | Q94: 12.166 | R94: 101.5 | S94: 412.52 | T94: 12.342 | U94: 86.025 | V94: 406.01 | W94: 12.41 | X94: 101.95 | Y94: 1.9136 | Z94: 0 | AA94: 0 | AB94: 0 | AC94: 0 | AD94: 0 | AE94: 73.24 | AF94: 73.15 | AG94: 73.11 | AH94: 72.95 | AI94: 72.98 | AJ94: 72.84 | AK94: 1.2423 | AL94: 0 | AM94: 0
A95: pCO2 | B95: 36.73288333 | C95: -122.2572317 | D95: 2013-03-19T15:09:24Z | E95: 2013-03-19T14:10:22Z | F95: 449.67 | G95: 11.874 | H95: 84.383 | I95: 442.19 | J95: 11.942 | K95: 101.11 | L95: 1.8749 | M95: 1.4256 | N95: 12.127 | O95: 92.556 | P95: 1.6589 | Q95: 12.147 | R95: 101.66 | S95: 413.34 | T95: 12.323 | U95: 86.012 | V95: 406.5 | W95: 12.391 | X95: 102.01 | Y95: 1.9087 | Z95: 0 | AA95: 0 | AB95: 0 | AC95: 0 | AD95: 0 | AE95: 72.86 | AF95: 72.79 | AG95: 72.76 | AH95: 72.74 | AI95: 72.84 | AJ95: 72.85 | AK95: 1.2421 | AL95: 0 | AM95: 0
A96: pCO2 | B96: 36.73073 | C96: -122.2704967 | D96: 2013-03-19T16:09:24Z | E96: 2013-03-19T15:10:23Z | F96: 449.58 | G96: 11.884 | H96: 84.477 | I96: 441.44 | J96: 11.962 | K96: 101.03 | L96: 1.9067 | M96: 1.5022 | N96: 12.137 | O96: 92.529 | P96: 1.5764 | Q96: 12.166 | R96: 101.66 | S96: 413.49 | T96: 12.342 | U96: 86.025 | V96: 406.86 | W96: 12.401 | X96: 102.06 | Y96: 1.9315 | Z96: 0 | AA96: 0 | AB96: 0 | AC96: 0 | AD96: 0 | AE96: 72.82 | AF96: 72.76 | AG96: 72.66 | AH96: 72.72 | AI96: 72.63 | AJ96: 72.7 | AK96: 1.242 | AL96: 0 | AM96: 0
A97: pCO2 | B97: 36.72902333 | C97: -122.28151 | D97: 2013-03-19T17:09:24Z | E97: 2013-03-19T16:10:23Z | F97: 448.62 | G97: 11.913 | H97: 84.356 | I97: 440.77 | J97: 11.981 | K97: 101.27 | L97: 1.9142 | M97: 1.5355 | N97: 12.166 | O97: 92.448 | P97: 1.7557 | Q97: 12.186 | R97: 101.59 | S97: 412.12 | T97: 12.362 | U97: 85.999 | V97: 405.9 | W97: 12.43 | X97: 102.09 | Y97: 1.9367 | Z97: 0 | AA97: 0 | AB97: 0 | AC97: 0 | AD97: 0 | AE97: 72.71 | AF97: 72.7 | AG97: 72.7 | AH97: 72.69 | AI97: 72.67 | AJ97: 72.62 | AK97: 1.2417 | AL97: 0 | AM97: 0
A98: pCO2 | B98: 36.727125 | C98: -122.29275 | D98: 2013-03-19T18:09:24Z | E98: 2013-03-19T17:10:22Z | F98: 452.06 | G98: 11.972 | H98: 84.221 | I98: 443.8 | J98: 12.04 | K98: 101.39 | L98: 1.9163 | M98: 1.4313 | N98: 12.235 | O98: 93.121 | P98: 1.6316 | Q98: 12.264 | R98: 102.22 | S98: 414.18 | T98: 12.43 | U98: 86.12 | V98: 407.98 | W98: 12.498 | X98: 102.09 | Y98: 1.9403 | Z98: 0 | AA98: 0 | AB98: 0 | AC98: 0 | AD98: 0 | AE98: 72.62 | AF98: 72.59 | AG98: 72.46 | AH98: 72.43 | AI98: 72.36 | AJ98: 72.27 | AK98: 1.239 | AL98: 0 | AM98: 0
A99: pCO2 | B99: 36.72542333 | C99: -122.3035033 | D99: 2013-03-19T19:09:24Z | E99: 2013-03-19T18:10:22Z | F99: 458.3 | G99: 12.118 | H99: 84.396 | I99: 450.28 | J99: 12.186 | K99: 101.38 | L99: 1.9212 | M99: 1.4148 | N99: 12.371 | O99: 92.664 | P99: 1.5353 | Q99: 12.401 | R99: 101.73 | S99: 411.97 | T99: 12.577 | U99: 86.147 | V99: 405.96 | W99: 12.635 | X99: 102.14 | Y99: 1.9454 | Z99: 0 | AA99: 0 | AB99: 0 | AC99: 0 | AD99: 0 | AE99: 72.21 | AF99: 72.18 | AG99: 72.14 | AH99: 72.03 | AI99: 72 | AJ99: 71.91 | AK99: 1.2372 | AL99: 0 | AM99: 0
A100: pCO2 | B100: 36.724045 | C100: -122.3119333 | D100: 2013-03-19T20:09:23Z | E100: 2013-03-19T19:10:23Z | F100: 456.7 | G100: 12.283 | H100: 83.912 | I100: 449.43 | J100: 12.352 | K100: 101.48 | L100: 1.9327 | M100: 1.4293 | N100: 12.547 | O100: 92.704 | P100: 1.5269 | Q100: 12.577 | R100: 101.78 | S100: 412.25 | T100: 12.753 | U100: 86.133 | V100: 405.97 | W100: 12.812 | X100: 102.13 | Y100: 1.9512 | Z100: 0 | AA100: 0 | AB100: 0 | AC100: 0 | AD100: 0 | AE100: 71.86 | AF100: 71.8 | AG100: 71.81 | AH100: 71.77 | AI100: 71.78 | AJ100: 71.68 | AK100: 1.237 | AL100: 0 | AM100: 0
A101: pCO2 | B101: 36.72292333 | C101: -122.3192533 | D101: 2013-03-19T21:09:24Z | E101: 2013-03-19T20:10:22Z | F101: 457.73 | G101: 12.498 | H101: 84.289 | I101: 450.22 | J101: 12.567 | K101: 101.6 | L101: 1.9413 | M101: 1.2774 | N101: 12.743 | O101: 92.771 | P101: 1.3471 | Q101: 12.773 | R101: 101.87 | S101: 412.21 | T101: 12.959 | U101: 86.079 | V101: 405.91 | W101: 13.018 | X101: 102.09 | Y101: 1.9579 | Z101: 0 | AA101: 0 | AB101: 0 | AC101: 0 | AD101: 0 | AE101: 71.63 | AF101: 71.63 | AG101: 71.52 | AH101: 71.48 | AI101: 71.46 | AJ101: 71.36 | AK101: 1.2365 | AL101: 0 | AM101: 0
A102: pCO2 | B102: 36.72207333 | C102: -122.3243683 | D102: 2013-03-19T22:09:24Z | E102: 2013-03-19T21:10:22Z | F102: 450.91 | G102: 12.626 | H102: 84.504 | I102: 443.62 | J102: 12.684 | K102: 101.87 | L102: 1.941 | M102: 0.99585 | N102: 12.88 | O102: 92.906 | P102: 1.5287 | Q102: 12.89 | R102: 101.51 | S102: 412.1 | T102: 13.077 | U102: 86.079 | V102: 405.66 | W102: 13.136 | X102: 102.08 | Y102: 1.9583 | Z102: 0 | AA102: 0 | AB102: 0 | AC102: 0 | AD102: 0 | AE102: 71.38 | AF102: 71.46 | AG102: 71.5 | AH102: 71.42 | AI102: 71.39 | AJ102: 71.37 | AK102: 1.2356 | AL102: 0 | AM102: 0
A103: pCO2 | B103: 36.72091 | C103: -122.3314283 | D103: 2013-03-19T23:09:26Z | E103: 2013-03-19T22:10:22Z | F103: 443.6 | G103: 12.606 | H103: 84.356 | I103: 435.97 | J103: 12.665 | K103: 102.01 | L103: 1.9456 | M103: 1.2361 | N103: 12.851 | O103: 93 | P103: 1.4637 | Q103: 12.871 | R103: 102.13 | S103: 411.94 | T103: 13.047 | U103: 86.106 | V103: 405.77 | W103: 13.107 | X103: 102.08 | Y103: 1.9598 | Z103: 0 | AA103: 0 | AB103: 0 | AC103: 0 | AD103: 0 | AE103: 71.32 | AF103: 71.28 | AG103: 71.35 | AH103: 71.35 | AI103: 71.27 | AJ103: 71.38 | AK103: 1.2369 | AL103: 0 | AM103: 0
A104: pCO2 | B104: 36.71954833 | C104: -122.3403317 | D104: 2013-03-20T00:09:24Z | E104: 2013-03-19T23:10:23Z | F104: 436.94 | G104: 12.567 | H104: 84.504 | I104: 429.26 | J104: 12.635 | K104: 101.83 | L104: 1.9432 | M104: 1.1603 | N104: 12.822 | O104: 92.825 | P104: 1.2991 | Q104: 12.851 | R104: 101.91 | S104: 412.1 | T104: 13.018 | U104: 86.174 | V104: 405.76 | W104: 13.077 | X104: 102.16 | Y104: 1.9598 | Z104: 0 | AA104: 0 | AB104: 0 | AC104: 0 | AD104: 0 | AE104: 71.41 | AF104: 71.48 | AG104: 71.51 | AH104: 71.61 | AI104: 71.78 | AJ104: 71.89 | AK104: 1.2364 | AL104: 0 | AM104: 0
A105: pCO2 | B105: 36.71786833 | C105: -122.3521633 | D105: 2013-03-20T01:09:24Z | E105: 2013-03-20T00:10:22Z | F105: 430.42 | G105: 12.469 | H105: 84.437 | I105: 423.48 | J105: 12.537 | K105: 101.7 | L105: 1.9417 | M105: 1.3228 | N105: 12.724 | O105: 92.704 | P105: 1.4812 | Q105: 12.753 | R105: 101.82 | S105: 411.6 | T105: 12.91 | U105: 86.16 | V105: 405.63 | W105: 12.979 | X105: 102.17 | Y105: 1.9584 | Z105: 0 | AA105: 0 | AB105: 0 | AC105: 0 | AD105: 0 | AE105: 72.18 | AF105: 72.38 | AG105: 72.47 | AH105: 72.64 | AI105: 72.82 | AJ105: 73.03 | AK105: 1.2358 | AL105: 0 | AM105: 0
A106: pCO2 | B106: 36.70814333 | C106: -122.36503 | D106: 2013-03-20T02:09:24Z | E106: 2013-03-20T01:10:22Z | F106: 424.82 | G106: 12.371 | H106: 84.437 | I106: 418.6 | J106: 12.43 | K106: 101.6 | L106: 1.9383 | M106: 1.4259 | N106: 12.616 | O106: 92.771 | P106: 1.5342 | Q106: 12.645 | R106: 101.87 | S106: 411.72 | T106: 12.822 | U106: 86.227 | V106: 405.56 | W106: 12.881 | X106: 102.21 | Y106: 1.9537 | Z106: 0 | AA106: 0 | AB106: 0 | AC106: 0 | AD106: 0 | AE106: 73.09 | AF106: 73.08 | AG106: 73.2 | AH106: 73.2 | AI106: 73.16 | AJ106: 73.18 | AK106: 1.2362 | AL106: 0 | AM106: 0
A107: pCO2 | B107: 36.69770333 | C107: -122.3772033 | D107: 2013-03-20T03:09:24Z | E107: 2013-03-20T02:10:22Z | F107: 435.91 | G107: 12.322 | H107: 84.369 | I107: 429.18 | J107: 12.391 | K107: 101.52 | L107: 1.9335 | M107: 1.359 | N107: 12.567 | O107: 92.677 | P107: 1.4762 | Q107: 12.596 | R107: 101.77 | S107: 412.26 | T107: 12.773 | U107: 86.187 | V107: 405.76 | W107: 12.831 | X107: 102.1 | Y107: 1.9456 | Z107: 0 | AA107: 0 | AB107: 0 | AC107: 0 | AD107: 0 | AE107: 73.12 | AF107: 73.04 | AG107: 72.93 | AH107: 72.85 | AI107: 72.79 | AJ107: 72.68 | AK107: 1.2346 | AL107: 0 | AM107: 0
A108: pCO2 | B108: 36.70921167 | C108: -122.3648233 | D108: 2013-03-20T04:09:26Z | E108: 2013-03-20T03:10:22Z | F108: 446.81 | G108: 12.303 | H108: 84.571 | I108: 438.56 | J108: 12.371 | K108: 101.67 | L108: 1.9253 | M108: 1.5186 | N108: 12.547 | O108: 92.933 | P108: 1.3412 | Q108: 12.577 | R108: 102.01 | S108: 411.91 | T108: 12.753 | U108: 86.174 | V108: 405.65 | W108: 12.812 | X108: 102.09 | Y108: 1.9408 | Z108: 0 | AA108: 0 | AB108: 0 | AC108: 0 | AD108: 0 | AE108: 72.56 | AF108: 72.41 | AG108: 72.32 | AH108: 72.31 | AI108: 72.26 | AJ108: 72.15 | AK108: 1.2343 | AL108: 0 | AM108: 0
A109: pCO2 | B109: 36.71893333 | C109: -122.3445567 | D109: 2013-03-20T05:09:24Z | E109: 2013-03-20T04:10:24Z | F109: 440.71 | G109: 12.283 | H109: 84.76 | I109: 432.62 | J109: 12.352 | K109: 101.9 | L109: 1.9219 | M109: 1.4412 | N109: 12.528 | O109: 92.933 | P109: 1.5369 | Q109: 12.557 | R109: 102.09 | S109: 412.22 | T109: 12.724 | U109: 86.066 | V109: 405.41 | W109: 12.782 | X109: 102.06 | Y109: 1.9401 | Z109: 0 | AA109: 0 | AB109: 0 | AC109: 0 | AD109: 0 | AE109: 72.22 | AF109: 72.08 | AG109: 72.11 | AH109: 72.14 | AI109: 72.35 | AJ109: 72.43 | AK109: 1.2334 | AL109: 0 | AM109: 0
A110: pCO2 | B110: 36.72235667 | C110: -122.322655 | D110: 2013-03-20T06:09:26Z | E110: 2013-03-20T05:10:22Z | F110: 438.52 | G110: 12.215 | H110: 84.531 | I110: 431 | J110: 12.293 | K110: 101.66 | L110: 1.9199 | M110: 1.4466 | N110: 12.469 | O110: 92.771 | P110: 1.3068 | Q110: 12.498 | R110: 101.87 | S110: 413.13 | T110: 12.665 | U110: 86.039 | V110: 406.82 | W110: 12.733 | X110: 101.99 | Y110: 1.9367 | Z110: 0 | AA110: 0 | AB110: 0 | AC110: 0 | AD110: 0 | AE110: 72.43 | AF110: 72.43 | AG110: 72.46 | AH110: 72.59 | AI110: 72.51 | AJ110: 72.48 | AK110: 1.2334 | AL110: 0 | AM110: 0
A111: pCO2 | B111: 36.72603167 | C111: -122.29937 | D111: 2013-03-20T07:09:25Z | E111: 2013-03-20T06:10:24Z | F111: 443.63 | G111: 12.196 | H111: 84.571 | I111: 435.85 | J111: 12.264 | K111: 101.54 | L111: 1.9171 | M111: 1.2873 | N111: 12.449 | O111: 92.65 | P111: 1.4096 | Q111: 12.479 | R111: 101.77 | S111: 413.09 | T111: 12.645 | U111: 85.972 | V111: 406.94 | W111: 12.704 | X111: 101.94 | Y111: 1.9406 | Z111: 0 | AA111: 0 | AB111: 0 | AC111: 0 | AD111: 0 | AE111: 72.53 | AF111: 72.56 | AG111: 72.56 | AH111: 72.62 | AI111: 72.77 | AJ111: 72.9 | AK111: 1.2337 | AL111: 0 | AM111: 0
A112: pCO2 | B112: 36.73069167 | C112: -122.2693667 | D112: 2013-03-20T08:09:24Z | E112: 2013-03-20T07:10:22Z | F112: 449.91 | G112: 12.215 | H112: 84.342 | I112: 442.16 | J112: 12.293 | K112: 100.97 | L112: 1.9163 | M112: 1.5843 | N112: 12.469 | O112: 92.475 | P112: 1.4684 | Q112: 12.498 | R112: 101.54 | S112: 418.02 | T112: 12.675 | U112: 85.985 | V112: 411.39 | W112: 12.733 | X112: 101.95 | Y112: 1.9395 | Z112: 0 | AA112: 0 | AB112: 0 | AC112: 0 | AD112: 0 | AE112: 72.95 | AF112: 72.98 | AG112: 73.06 | AH112: 73.18 | AI112: 73.22 | AJ112: 73.28 | AK112: 1.2308 | AL112: 0 | AM112: 0
A113: pCO2 | B113: 36.73566167 | C113: -122.2377033 | D113: 2013-03-20T09:09:25Z | E113: 2013-03-20T08:10:22Z | F113: 451.7 | G113: 12.215 | H113: 84.383 | I113: 444.4 | J113: 12.274 | K113: 101.08 | L113: 1.9154 | M113: 1.3881 | N113: 12.459 | O113: 92.529 | P113: 1.4915 | Q113: 12.479 | R113: 101.62 | S113: 417.52 | T113: 12.665 | U113: 86.052 | V113: 411.08 | W113: 12.724 | X113: 101.98 | Y113: 1.9395 | Z113: 0 | AA113: 0 | AB113: 0 | AC113: 0 | AD113: 0 | AE113: 73.31 | AF113: 73.29 | AG113: 73.32 | AH113: 73.36 | AI113: 73.3 | AJ113: 73.25 | AK113: 1.2312 | AL113: 0 | AM113: 0
A114: pCO2 | B114: 36.73990667 | C114: -122.2106733 | D114: 2013-03-20T10:09:25Z | E114: 2013-03-20T09:10:22Z | F114: 447 | G114: 12.176 | H114: 84.558 | I114: 439 | J114: 12.244 | K114: 101.58 | L114: 1.9179 | M114: 1.4712 | N114: 12.43 | O114: 92.623 | P114: 1.5233 | Q114: 12.459 | R114: 101.68 | S114: 417.23 | T114: 12.626 | U114: 86.079 | V114: 410.87 | W114: 12.684 | X114: 102.06 | Y114: 1.9412 | Z114: 103.39 | AA114: 446.7 | AB114: 12.9 | AC114: 102.05 | AD114: 1.7909 | AE114: 73.16 | AF114: 73.12 | AG114: 73.14 | AH114: 73.04 | AI114: 73.02 | AJ114: 72.9 | AK114: 1.2316 | AL114: 0 | AM114: 0
A115: pCO2 | B115: 36.74349667 | C115: -122.187925 | D115: 2013-03-20T11:09:25Z | E115: 2013-03-20T10:10:22Z | F115: 450.3 | G115: 12.186 | H115: 84.746 | I115: 443.02 | J115: 12.254 | K115: 101.91 | L115: 1.9146 | M115: 1.4752 | N115: 12.43 | O115: 92.893 | P115: 1.5738 | Q115: 12.459 | R115: 101.44 | S115: 416.96 | T115: 12.635 | U115: 86.039 | V115: 410.77 | W115: 12.694 | X115: 102.02 | Y115: 1.9366 | Z115: 0 | AA115: 0 | AB115: 0 | AC115: 0 | AD115: 0 | AE115: 72.85 | AF115: 72.85 | AG115: 72.74 | AH115: 72.61 | AI115: 72.56 | AJ115: 72.49 | AK115: 1.2309 | AL115: 0 | AM115: 0
A116: pCO2 | B116: 36.74698333 | C116: -122.1654233 | D116: 2013-03-20T12:09:25Z | E116: 2013-03-20T11:10:22Z | F116: 448.12 | G116: 12.098 | H116: 84.679 | I116: 440.29 | J116: 12.166 | K116: 101.87 | L116: 1.9151 | M116: 1.327 | N116: 12.352 | O116: 92.825 | P116: 1.6391 | Q116: 12.381 | R116: 101.93 | S116: 418.59 | T116: 12.557 | U116: 86.079 | V116: 411.96 | W116: 12.616 | X116: 101.99 | Y116: 1.935 | Z116: 0 | AA116: 0 | AB116: 0 | AC116: 0 | AD116: 0 | AE116: 72.46 | AF116: 72.29 | AG116: 72.26 | AH116: 72.09 | AI116: 72.03 | AJ116: 71.89 | AK116: 1.23 | AL116: 0 | AM116: 0
A117: pCO2 | B117: 36.75026 | C117: -122.14454 | D117: 2013-03-20T13:09:24Z | E117: 2013-03-20T12:10:22Z | F117: 446.49 | G117: 12.079 | H117: 84.854 | I117: 439.12 | J117: 12.137 | K117: 102.08 | L117: 1.9116 | M117: 1.5152 | N117: 12.332 | O117: 93.041 | P117: 1.6758 | Q117: 12.362 | R117: 102.13 | S117: 417.67 | T117: 12.528 | U117: 86.039 | V117: 411.31 | W117: 12.587 | X117: 101.98 | Y117: 1.9316 | Z117: 0 | AA117: 0 | AB117: 0 | AC117: 0 | AD117: 0 | AE117: 71.7 | AF117: 71.64 | AG117: 71.56 | AH117: 71.45 | AI117: 71.54 | AJ117: 71.43 | AK117: 1.2283 | AL117: 0 | AM117: 0
A118: pCO2 | B118: 36.75352333 | C118: -122.1237367 | D118: 2013-03-20T14:09:25Z | E118: 2013-03-20T13:10:22Z | F118: 445.11 | G118: 12.049 | H118: 84.787 | I118: 437.24 | J118: 12.118 | K118: 101.97 | L118: 1.9047 | M118: 1.4892 | N118: 12.293 | O118: 92.906 | P118: 1.769 | Q118: 12.323 | R118: 102.01 | S118: 418.45 | T118: 12.498 | U118: 86.025 | V118: 411.96 | W118: 12.557 | X118: 101.99 | Y118: 1.9251 | Z118: 0 | AA118: 0 | AB118: 0 | AC118: 0 | AD118: 0 | AE118: 71.49 | AF118: 71.39 | AG118: 71.34 | AH118: 71.37 | AI118: 71.22 | AJ118: 71.15 | AK118: 1.2271 | AL118: 0 | AM118: 0
A119: pCO2 | B119: 36.75595667 | C119: -122.10858 | D119: 2013-03-20T15:09:24Z | E119: 2013-03-20T14:10:22Z | F119: 441.91 | G119: 12.02 | H119: 84.827 | I119: 434.67 | J119: 12.079 | K119: 102.1 | L119: 1.9074 | M119: 1.5738 | N119: 12.274 | O119: 92.987 | P119: 1.6946 | Q119: 12.303 | R119: 101.56 | S119: 412.99 | T119: 12.479 | U119: 86.012 | V119: 406.55 | W119: 12.538 | X119: 102.02 | Y119: 1.9293 | Z119: 0 | AA119: 0 | AB119: 0 | AC119: 0 | AD119: 0 | AE119: 71.12 | AF119: 71.09 | AG119: 71.12 | AH119: 70.99 | AI119: 70.92 | AJ119: 70.87 | AK119: 1.2265 | AL119: 0 | AM119: 0
A120: pCO2 | B120: 36.75803 | C120: -122.0954667 | D120: 2013-03-20T16:09:25Z | E120: 2013-03-20T15:10:22Z | F120: 441.49 | G120: 12.03 | H120: 84.921 | I120: 433.72 | J120: 12.098 | K120: 102.12 | L120: 1.9136 | M120: 1.4389 | N120: 12.283 | O120: 92.973 | P120: 1.5605 | Q120: 12.313 | R120: 102.1 | S120: 414.45 | T120: 12.489 | U120: 86.052 | V120: 408 | W120: 12.547 | X120: 102.08 | Y120: 1.9361 | Z120: 0 | AA120: 0 | AB120: 0 | AC120: 0 | AD120: 0 | AE120: 70.75 | AF120: 70.58 | AG120: 70.5 | AH120: 70.45 | AI120: 70.45 | AJ120: 70.28 | AK120: 1.2263 | AL120: 0 | AM120: 0
A121: pCO2 | B121: 36.75992333 | C121: -122.082835 | D121: 2013-03-20T17:09:24Z | E121: 2013-03-20T16:10:22Z | F121: 440.94 | G121: 12.079 | H121: 84.881 | I121: 432.94 | J121: 12.147 | K121: 102.09 | L121: 1.9232 | M121: 1.4978 | N121: 12.332 | O121: 93.027 | P121: 1.5949 | Q121: 12.362 | R121: 102.18 | S121: 421.27 | T121: 12.538 | U121: 86.16 | V121: 414.83 | W121: 12.596 | X121: 102.14 | Y121: 1.9437 | Z121: 0 | AA121: 0 | AB121: 0 | AC121: 0 | AD121: 0 | AE121: 70.31 | AF121: 70.21 | AG121: 70.12 | AH121: 70.05 | AI121: 70.07 | AJ121: 69.85 | AK121: 1.227 | AL121: 0 | AM121: 0
A122: pCO2 | B122: 36.762055 | C122: -122.0696333 | D122: 2013-03-20T18:09:24Z | E122: 2013-03-20T17:10:22Z | F122: 433.18 | G122: 12.088 | H122: 84.908 | I122: 425.41 | J122: 12.157 | K122: 102.2 | L122: 1.93 | M122: 1.4636 | N122: 12.352 | O122: 93.041 | P122: 1.6834 | Q122: 12.371 | R122: 102.24 | S122: 431.7 | T122: 12.547 | U122: 86.079 | V122: 424.9 | W122: 12.606 | X122: 102.1 | Y122: 1.95 | Z122: 0 | AA122: 0 | AB122: 0 | AC122: 0 | AD122: 0 | AE122: 69.82 | AF122: 69.58 | AG122: 69.47 | AH122: 69.42 | AI122: 69.33 | AJ122: 69.28 | AK122: 1.2247 | AL122: 0 | AM122: 0
A123: pCO2 | B123: 36.76396167 | C123: -122.0576783 | D123: 2013-03-20T19:09:25Z | E123: 2013-03-20T18:10:22Z | F123: 422.61 | G123: 12.166 | H123: 84.841 | I123: 415.25 | J123: 12.235 | K123: 102.14 | L123: 1.934 | M123: 1.3294 | N123: 12.41 | O123: 93.027 | P123: 1.3479 | Q123: 12.44 | R123: 102.18 | S123: 428.13 | T123: 12.616 | U123: 86.079 | V123: 420.91 | W123: 12.684 | X123: 102.13 | Y123: 1.9543 | Z123: 0 | AA123: 0 | AB123: 0 | AC123: 0 | AD123: 0 | AE123: 69.18 | AF123: 69.01 | AG123: 68.97 | AH123: 68.9 | AI123: 68.72 | AJ123: 68.64 | AK123: 1.2251 | AL123: 0 | AM123: 0
A124: pCO2 | B124: 36.76544 | C124: -122.0476933 | D124: 2013-03-20T20:09:24Z | E124: 2013-03-20T19:10:22Z | F124: 421.24 | G124: 12.264 | H124: 84.854 | I124: 413.28 | J124: 12.332 | K124: 102.13 | L124: 1.937 | M124: 1.2462 | N124: 12.528 | O124: 93.094 | P124: 1.3522 | Q124: 12.557 | R124: 102.21 | S124: 434.61 | T124: 12.733 | U124: 86.147 | V124: 427.76 | W124: 12.792 | X124: 102.14 | Y124: 1.956 | Z124: 0 | AA124: 0 | AB124: 0 | AC124: 0 | AD124: 0 | AE124: 68.55 | AF124: 68.23 | AG124: 68.15 | AH124: 67.92 | AI124: 67.85 | AJ124: 67.91 | AK124: 1.2256 | AL124: 0 | AM124: 0
A125: pCO2 | B125: 36.767085 | C125: -122.0372633 | D125: 2013-03-20T21:09:24Z | E125: 2013-03-20T20:10:22Z | F125: 423.09 | G125: 12.626 | H125: 84.814 | I125: 415.93 | J125: 12.694 | K125: 102.13 | L125: 1.9434 | M125: 1.2102 | N125: 12.88 | O125: 93.121 | P125: 1.3473 | Q125: 12.91 | R125: 102.3 | S125: 431.08 | T125: 13.087 | U125: 86.16 | V125: 424.51 | W125: 13.146 | X125: 102.17 | Y125: 1.9614 | Z125: 0 | AA125: 0 | AB125: 0 | AC125: 0 | AD125: 0 | AE125: 67.69 | AF125: 67.77 | AG125: 67.47 | AH125: 67.41 | AI125: 67.47 | AJ125: 67.44 | AK125: 1.2212 | AL125: 0 | AM125: 0
A126: pCO2 | B126: 36.76896333 | C126: -122.02518 | D126: 2013-03-20T22:09:27Z | E126: 2013-03-20T21:10:22Z | F126: 420.66 | G126: 12.626 | H126: 84.706 | I126: 413.52 | J126: 12.694 | K126: 102.17 | L126: 1.9444 | M126: 1.0413 | N126: 12.88 | O126: 93.094 | P126: 1.325 | Q126: 12.91 | R126: 102.24 | S126: 417.28 | T126: 13.077 | U126: 86.174 | V126: 410.45 | W126: 13.126 | X126: 102.14 | Y126: 1.9621 | Z126: 0 | AA126: 0 | AB126: 0 | AC126: 0 | AD126: 0 | AE126: 67.44 | AF126: 67.27 | AG126: 67.24 | AH126: 67.06 | AI126: 67.05 | AJ126: 66.86 | AK126: 1.2229 | AL126: 0 | AM126: 0
A127: pCO2 | B127: 36.76979333 | C127: -122.0206617 | D127: 2013-03-20T23:09:27Z | E127: 2013-03-20T22:10:24Z | F127: 413.39 | G127: 12.577 | H127: 84.625 | I127: 406.37 | J127: 12.645 | K127: 102.17 | L127: 1.9444 | M127: 1.0992 | N127: 12.822 | O127: 93.068 | P127: 1.4894 | Q127: 12.851 | R127: 102.21 | S127: 412.33 | T127: 13.018 | U127: 86.066 | V127: 405.86 | W127: 13.087 | X127: 102.1 | Y127: 1.9632 | Z127: 0 | AA127: 0 | AB127: 0 | AC127: 0 | AD127: 0 | AE127: 66.61 | AF127: 66.7 | AG127: 66.48 | AH127: 66.51 | AI127: 66.38 | AJ127: 66.16 | AK127: 1.2216 | AL127: 0 | AM127: 0
A128: pCO2 | B128: 36.77070833 | C128: -122.0143967 | D128: 2013-03-21T00:09:24Z | E128: 2013-03-20T23:10:24Z | F128: 412.9 | G128: 12.723 | H128: 84.517 | I128: 405.67 | J128: 12.792 | K128: 102.18 | L128: 1.9515 | M128: 1.138 | N128: 12.979 | O128: 93.135 | P128: 1.2873 | Q128: 13.008 | R128: 102.3 | S128: 412.42 | T128: 13.185 | U128: 86.025 | V128: 405.91 | W128: 13.244 | X128: 102.08 | Y128: 1.9682 | Z128: 0 | AA128: 0 | AB128: 0 | AC128: 0 | AD128: 0 | AE128: 65.87 | AF128: 65.9 | AG128: 65.87 | AH128: 66.01 | AI128: 65.66 | AJ128: 65.68 | AK128: 1.222 | AL128: 0 | AM128: 0
A129: pCO2 | B129: 36.77170333 | C129: -122.0081167 | D129: 2013-03-21T01:09:25Z | E129: 2013-03-21T00:10:22Z | F129: 409.08 | G129: 12.89 | H129: 84.504 | I129: 402.07 | J129: 12.959 | K129: 102.12 | L129: 1.9565 | M129: 0.98864 | N129: 13.146 | O129: 93.121 | P129: 1.2371 | Q129: 13.175 | R129: 102.24 | S129: 411.98 | T129: 13.353 | U129: 86.12 | V129: 405.65 | W129: 13.412 | X129: 102.08 | Y129: 1.9708 | Z129: 0 | AA129: 0 | AB129: 0 | AC129: 0 | AD129: 0 | AE129: 65.44 | AF129: 65.49 | AG129: 65.35 | AH129: 65.34 | AI129: 65.34 | AJ129: 65.26 | AK129: 1.2203 | AL129: 0 | AM129: 0
A130: pCO2 | B130: 36.77293333 | C130: -122.000185 | D130: 2013-03-21T02:09:25Z | E130: 2013-03-21T01:10:22Z | F130: 408.56 | G130: 12.988 | H130: 84.45 | I130: 401.53 | J130: 13.057 | K130: 102.1 | L130: 1.9614 | M130: 1.0299 | N130: 13.234 | O130: 93.054 | P130: 1.1806 | Q130: 13.264 | R130: 102.2 | S130: 411.71 | T130: 13.432 | U130: 86.106 | V130: 405.69 | W130: 13.501 | X130: 102.04 | Y130: 1.9736 | Z130: 0 | AA130: 0 | AB130: 0 | AC130: 0 | AD130: 0 | AE130: 65.18 | AF130: 65.26 | AG130: 65.26 | AH130: 65.29 | AI130: 65.47 | AJ130: 65.43 | AK130: 1.2181 | AL130: 0 | AM130: 0
A131: pCO2 | B131: 36.77469833 | C131: -121.9888883 | D131: 2013-03-21T03:09:25Z | E131: 2013-03-21T02:10:22Z | F131: 403.07 | G131: 12.792 | H131: 84.437 | I131: 396.53 | J131: 12.861 | K131: 102.04 | L131: 1.954 | M131: 1.1287 | N131: 13.038 | O131: 93 | P131: 1.332 | Q131: 13.067 | R131: 102.13 | S131: 411.78 | T131: 13.234 | U131: 86.133 | V131: 405.55 | W131: 13.294 | X131: 102.09 | Y131: 1.9687 | Z131: 0 | AA131: 0 | AB131: 0 | AC131: 0 | AD131: 0 | AE131: 65.62 | AF131: 65.69 | AG131: 65.78 | AH131: 65.86 | AI131: 65.9 | AJ131: 65.95 | AK131: 1.2191 | AL131: 0 | AM131: 0
A132: pCO2 | B132: 36.777115 | C132: -121.9732817 | D132: 2013-03-21T04:09:25Z | E132: 2013-03-21T03:10:23Z | F132: 410.98 | G132: 12.645 | H132: 84.342 | I132: 404.06 | J132: 12.704 | K132: 101.99 | L132: 1.9514 | M132: 1.2494 | N132: 12.9 | O132: 92.96 | P132: 1.2423 | Q132: 12.91 | R132: 102.12 | S132: 411.82 | T132: 13.087 | U132: 86.079 | V132: 405.49 | W132: 13.146 | X132: 102.08 | Y132: 1.9653 | Z132: 0 | AA132: 0 | AB132: 0 | AC132: 0 | AD132: 0 | AE132: 66.06 | AF132: 66.07 | AG132: 66.24 | AH132: 66.35 | AI132: 66.67 | AJ132: 66.75 | AK132: 1.2177 | AL132: 0 | AM132: 0
A133: pCO2 | B133: 36.780425 | C133: -121.9531133 | D133: 2013-03-21T05:09:25Z | E133: 2013-03-21T04:10:22Z | F133: 419.67 | G133: 12.361 | H133: 84.437 | I133: 412.65 | J133: 12.43 | K133: 101.98 | L133: 1.9446 | M133: 1.3336 | N133: 12.606 | O133: 92.987 | P133: 1.5342 | Q133: 12.635 | R133: 102.12 | S133: 411.88 | T133: 12.792 | U133: 86.174 | V133: 405.53 | W133: 12.851 | X133: 102.1 | Y133: 1.9607 | Z133: 0 | AA133: 0 | AB133: 0 | AC133: 0 | AD133: 0 | AE133: 66.83 | AF133: 66.98 | AG133: 67.07 | AH133: 67.33 | AI133: 67.44 | AJ133: 67.58 | AK133: 1.22 | AL133: 0 | AM133: 0
A134: pCO2 | B134: 36.78466833 | C134: -121.925255 | D134: 2013-03-21T06:09:25Z | E134: 2013-03-21T05:10:23Z | F134: 272.28 | G134: 12.244 | H134: 84.154 | I134: 266.09 | J134: 12.313 | K134: 101.39 | L134: 1.9377 | M134: 1.3592 | N134: 12.489 | O134: 92.758 | P134: 1.3283 | Q134: 12.518 | R134: 101.85 | S134: 412.2 | T134: 12.694 | U134: 86.241 | V134: 405.69 | W134: 12.763 | X134: 102.14 | Y134: 1.9554 | Z134: 0 | AA134: 0 | AB134: 0 | AC134: 0 | AD134: 0 | AE134: 67.66 | AF134: 68.03 | AG134: 68.73 | AH134: 69.6 | AI134: 70.2 | AJ134: 71.13 | AK134: 1.2214 | AL134: 0 | AM134: 0
A135: pCO2 | B135: 36.789905 | C135: -121.89199 | D135: 2013-03-21T07:09:25Z | E135: 2013-03-21T06:10:22Z | F135: 237.49 | G135: 12.371 | H135: 84.14 | I135: 233.07 | J135: 12.43 | K135: 101.05 | L135: 1.9341 | M135: 1.1853 | N135: 12.626 | O135: 92.542 | P135: 1.3999 | Q135: 12.655 | R135: 101.63 | S135: 412.53 | T135: 12.822 | U135: 86.174 | V135: 405.77 | W135: 12.89 | X135: 102.09 | Y135: 1.9552 | Z135: 0 | AA135: 0 | AB135: 0 | AC135: 0 | AD135: 0 | AE135: 72.21 | AF135: 73.39 | AG135: 74.85 | AH135: 75.95 | AI135: 76.97 | AJ135: 78.22 | AK135: 1.2168 | AL135: 0 | AM135: 0
A136: pCO2 | B136: 36.79535333 | C136: -121.8575067 | D136: 2013-03-21T08:09:25Z | E136: 2013-03-21T07:10:22Z | F136: 228.91 | G136: 12.352 | H136: 84.087 | I136: 224.71 | J136: 12.43 | K136: 100.58 | L136: 1.9301 | M136: 1.238 | N136: 12.606 | O136: 92.206 | P136: 1.1969 | Q136: 12.635 | R136: 101.28 | S136: 412.95 | T136: 12.812 | U136: 86.201 | V136: 406.16 | W136: 12.871 | X136: 102.12 | Y136: 1.9551 | Z136: 0 | AA136: 0 | AB136: 0 | AC136: 0 | AD136: 0 | AE136: 79.4 | AF136: 80.26 | AG136: 81.16 | AH136: 82 | AI136: 82.55 | AJ136: 83.4 | AK136: 1.2196 | AL136: 0 | AM136: 0
A137: pCO2 | B137: 36.797195 | C137: -121.8559983 | D137: 2013-03-21T09:09:25Z | E137: 2013-03-21T08:10:22Z | F137: 387.7 | G137: 12.264 | H137: 83.79 | I137: 381.72 | J137: 12.332 | K137: 100.51 | L137: 1.929 | M137: 1.4407 | N137: 12.508 | O137: 92.179 | P137: 1.5997 | Q137: 12.538 | R137: 101.25 | S137: 414.8 | T137: 12.694 | U137: 86.12 | V137: 408.02 | W137: 12.763 | X137: 102.1 | Y137: 1.9541 | Z137: 103.46 | AA137: 447.11 | AB137: 12.979 | AC137: 102.09 | AD137: 1.8018 | AE137: 84.2 | AF137: 84.12 | AG137: 83.74 | AH137: 82.96 | AI137: 82.16 | AJ137: 81.43 | AK137: 1.22 | AL137: 0 | AM137: 0
A138: pCO2 | B138: 36.79421 | C138: -121.8741417 | D138: 2013-03-21T10:09:25Z | E138: 2013-03-21T09:10:22Z | F138: 282.87 | G138: 12.118 | H138: 84.235 | I138: 278.1 | J138: 12.186 | K138: 100.96 | L138: 1.9272 | M138: 1.4802 | N138: 12.371 | O138: 92.179 | P138: 1.4178 | Q138: 12.401 | R138: 101.29 | S138: 412.3 | T138: 12.567 | U138: 86.039 | V138: 406.25 | W138: 12.626 | X138: 102.05 | Y138: 1.9494 | Z138: 0 | AA138: 0 | AB138: 0 | AC138: 0 | AD138: 0 | AE138: 80.61 | AF138: 80.37 | AG138: 80.72 | AH138: 81.28 | AI138: 81.73 | AJ138: 81.88 | AK138: 1.2202 | AL138: 0 | AM138: 0
A139: pCO2 | B139: 36.79077833 | C139: -121.8956517 | D139: 2013-03-21T11:09:25Z | E139: 2013-03-21T10:10:22Z | F139: 288.78 | G139: 12.069 | H139: 83.736 | I139: 284.9 | J139: 12.137 | K139: 100.37 | L139: 1.9273 | M139: 1.418 | N139: 12.313 | O139: 91.869 | P139: 1.5406 | Q139: 12.342 | R139: 100.98 | S139: 412.36 | T139: 12.518 | U139: 86.066 | V139: 406.15 | W139: 12.577 | X139: 102.04 | Y139: 1.9475 | Z139: 0 | AA139: 0 | AB139: 0 | AC139: 0 | AD139: 0 | AE139: 82.01 | AF139: 82.13 | AG139: 82.26 | AH139: 82.38 | AI139: 82.7 | AJ139: 83.18 | AK139: 1.2165 | AL139: 0 | AM139: 0
A140: pCO2 | B140: 36.78705333 | C140: -121.9192083 | D140: 2013-03-21T12:09:25Z | E140: 2013-03-21T11:10:22Z | F140: 330.96 | G140: 12.02 | H140: 82.336 | I140: 325.45 | J140: 12.088 | K140: 99.854 | L140: 1.9149 | M140: 1.4668 | N140: 12.274 | O140: 91.896 | P140: 1.5252 | Q140: 12.303 | R140: 100.39 | S140: 412.64 | T140: 12.469 | U140: 86.106 | V140: 406.24 | W140: 12.528 | X140: 102.02 | Y140: 1.9424 | Z140: 0 | AA140: 0 | AB140: 0 | AC140: 0 | AD140: 0 | AE140: 83.18 | AF140: 83.04 | AG140: 82.84 | AH140: 82.38 | AI140: 81.93 | AJ140: 81.39 | AK140: 1.2167 | AL140: 0 | AM140: 0
A141: pCO2 | B141: 36.78312833 | C141: -121.9433533 | D141: 2013-03-21T13:09:26Z | E141: 2013-03-21T12:10:22Z | F141: 389.84 | G141: 11.826 | H141: 69.329 | I141: 377.96 | J141: 11.884 | K141: 99.611 | L141: 1.9523 | M141: 1.6461 | N141: 12.069 | O141: 91.438 | P141: 1.5973 | Q141: 12.088 | R141: 100.42 | S141: 414.01 | T141: 12.264 | U141: 86.174 | V141: 406.99 | W141: 12.323 | X141: 102.01 | Y141: 1.9266 | Z141: 0 | AA141: 0 | AB141: 0 | AC141: 0 | AD141: 0 | AE141: 80.77 | AF141: 80.46 | AG141: 80.02 | AH141: 79.43 | AI141: 79.45 | AJ141: 79.58 | AK141: 1.2159 | AL141: 0 | AM141: 0
A142: pCO2 | B142: 36.77982667 | C142: -121.9642233 | D142: 2013-03-21T14:09:25Z | E142: 2013-03-21T13:10:22Z | F142: 374.33 | G142: 11.709 | H142: 82.242 | I142: 365.48 | J142: 11.777 | K142: 99.396 | L142: 1.9078 | M142: 1.4372 | N142: 11.962 | O142: 91.694 | P142: 1.5943 | Q142: 11.991 | R142: 100.76 | S142: 413.51 | T142: 12.157 | U142: 86.066 | V142: 407.08 | W142: 12.225 | X142: 101.97 | Y142: 1.9258 | Z142: 0 | AA142: 0 | AB142: 0 | AC142: 0 | AD142: 0 | AE142: 79.62 | AF142: 79.56 | AG142: 79.48 | AH142: 78.68 | AI142: 78.08 | AJ142: 77.14 | AK142: 1.216 | AL142: 0 | AM142: 0
A143: pCO2 | B143: 36.77648667 | C143: -121.9849167 | D143: 2013-03-21T15:09:25Z | E143: 2013-03-21T14:10:22Z | F143: 460.12 | G143: 11.66 | H143: 83.669 | I143: 451.13 | J143: 11.728 | K143: 100.51 | L143: 1.9059 | M143: 1.592 | N143: 11.913 | O143: 91.667 | P143: 1.6582 | Q143: 11.933 | R143: 100.74 | S143: 413.61 | T143: 12.108 | U143: 86.039 | V143: 407.17 | W143: 12.176 | X143: 101.97 | Y143: 1.9209 | Z143: 0 | AA143: 0 | AB143: 0 | AC143: 0 | AD143: 0 | AE143: 76.24 | AF143: 75.57 | AG143: 75.07 | AH143: 74.68 | AI143: 74.36 | AJ143: 74.33 | AK143: 1.2166 | AL143: 0 | AM143: 0
A144: pCO2 | B144: 36.77265667 | C144: -122.00893 | D144: 2013-03-21T16:09:25Z | E144: 2013-03-21T15:10:22Z | F144: 442.95 | G144: 11.767 | H144: 84.154 | I144: 434.12 | J144: 11.826 | K144: 99.975 | L144: 1.9022 | M144: 1.3978 | N144: 12.02 | O144: 91.586 | P144: 1.7179 | Q144: 12.049 | R144: 100.65 | S144: 413.91 | T144: 12.225 | U144: 86.106 | V144: 407.52 | W144: 12.284 | X144: 102.01 | Y144: 1.92 | Z144: 0 | AA144: 0 | AB144: 0 | AC144: 0 | AD144: 0 | AE144: 74.51 | AF144: 74.57 | AG144: 74.64 | AH144: 74.79 | AI144: 74.79 | AJ144: 74.74 | AK144: 1.2143 | AL144: 0 | AM144: 0
A145: pCO2 | B145: 36.768275 | C145: -122.036325 | D145: 2013-03-21T17:09:26Z | E145: 2013-03-21T16:10:23Z | F145: 448.25 | G145: 11.874 | H145: 83.642 | I145: 439.12 | J145: 11.942 | K145: 99.813 | L145: 1.9128 | M145: 1.4222 | N145: 12.127 | O145: 91.613 | P145: 1.7243 | Q145: 12.147 | R145: 100.69 | S145: 416.88 | T145: 12.323 | U145: 86.052 | V145: 410.13 | W145: 12.391 | X145: 102.02 | Y145: 1.9342 | Z145: 0 | AA145: 0 | AB145: 0 | AC145: 0 | AD145: 0 | AE145: 74.74 | AF145: 74.77 | AG145: 74.73 | AH145: 74.63 | AI145: 74.51 | AJ145: 74.43 | AK145: 1.2141 | AL145: 0 | AM145: 0
A146: pCO2 | B146: 36.76325167 | C146: -122.067985 | D146: 2013-03-21T18:09:25Z | E146: 2013-03-21T17:10:23Z | F146: 449.97 | G146: 11.894 | H146: 83.723 | I146: 442.17 | J146: 11.962 | K146: 100.26 | L146: 1.9187 | M146: 1.596 | N146: 12.157 | O146: 91.842 | P146: 1.8994 | Q146: 12.186 | R146: 100.93 | S146: 415.16 | T146: 12.352 | U146: 86.079 | V146: 408.77 | W146: 12.41 | X146: 102.05 | Y146: 1.9355 | Z146: 0 | AA146: 0 | AB146: 0 | AC146: 0 | AD146: 0 | AE146: 74.37 | AF146: 74.35 | AG146: 74.35 | AH146: 74.35 | AI146: 74.46 | AJ146: 74.5 | AK146: 1.2147 | AL146: 0 | AM146: 0
A147: pCO2 | B147: 36.75796667 | C147: -122.1003367 | D147: 2013-03-21T19:09:26Z | E147: 2013-03-21T18:10:22Z | F147: 445.43 | G147: 11.933 | H147: 83.588 | I147: 435.91 | J147: 12.001 | K147: 100 | L147: 1.9169 | M147: 1.5349 | N147: 12.196 | O147: 91.748 | P147: 1.7808 | Q147: 12.225 | R147: 100.85 | S147: 415.38 | T147: 12.391 | U147: 86.079 | V147: 409.23 | W147: 12.45 | X147: 102.04 | Y147: 1.9368 | Z147: 0 | AA147: 0 | AB147: 0 | AC147: 0 | AD147: 0 | AE147: 74.31 | AF147: 74.33 | AG147: 74.26 | AH147: 74.19 | AI147: 74.23 | AJ147: 74.25 | AK147: 1.2153 | AL147: 0 | AM147: 0
A148: pCO2 | B148: 36.752865 | C148: -122.1318133 | D148: 2013-03-21T20:09:27Z | E148: 2013-03-21T19:10:24Z | F148: 447.66 | G148: 12.02 | H148: 82.592 | I148: 439.65 | J148: 12.088 | K148: 99.786 | L148: 1.9299 | M148: 1.4767 | N148: 12.274 | O148: 91.613 | P148: 1.5882 | Q148: 12.303 | R148: 100.68 | S148: 415.35 | T148: 12.479 | U148: 86.093 | V148: 408.85 | W148: 12.538 | X148: 102.04 | Y148: 1.9384 | Z148: 0 | AA148: 0 | AB148: 0 | AC148: 0 | AD148: 0 | AE148: 74.32 | AF148: 74.44 | AG148: 74.61 | AH148: 74.63 | AI148: 74.62 | AJ148: 74.85 | AK148: 1.2146 | AL148: 0 | AM148: 0
A149: pCO2 | B149: 36.74803333 | C149: -122.16312 | D149: 2013-03-21T21:09:25Z | E149: 2013-03-21T20:10:23Z | F149: 446.6 | G149: 12.049 | H149: 69.329 | I149: 435.78 | J149: 12.118 | K149: 99.813 | L149: 1.9526 | M149: 1.257 | N149: 12.303 | O149: 91.479 | P149: 1.5149 | Q149: 12.323 | R149: 100.54 | S149: 416.56 | T149: 12.498 | U149: 86.039 | V149: 410.04 | W149: 12.567 | X149: 101.97 | Y149: 1.9277 | Z149: 0 | AA149: 0 | AB149: 0 | AC149: 0 | AD149: 0 | AE149: 75.03 | AF149: 75.09 | AG149: 75.49 | AH149: 75.65 | AI149: 75.89 | AJ149: 75.87 | AK149: 1.2169 | AL149: 0 | AM149: 0
A150: pCO2 | B150: 36.74327167 | C150: -122.192515 | D150: 2013-03-21T22:09:26Z | E150: 2013-03-21T21:10:22Z | F150: 468.08 | G150: 12.098 | H150: 52.458 | I150: 451.46 | J150: 12.176 | K150: 93.377 | L150: 1.9917 | M150: 1.3228 | N150: 12.352 | O150: 89.378 | P150: 1.4191 | Q150: 12.381 | R150: 98.251 | S150: 415.51 | T150: 12.557 | U150: 86.012 | V150: 408.89 | W150: 12.616 | X150: 101.86 | Y150: 1.9103 | Z150: 0 | AA150: 0 | AB150: 0 | AC150: 0 | AD150: 0 | AE150: 75.95 | AF150: 76 | AG150: 76.06 | AH150: 76.02 | AI150: 75.88 | AJ150: 75.77 | AK150: 1.2164 | AL150: 0 | AM150: 0
A151: pCO2 | B151: 36.73863 | C151: -122.2213517 | D151: 2013-03-21T23:09:28Z | E151: 2013-03-21T22:10:23Z | F151: 457.27 | G151: 12.098 | H151: 68.319 | I151: 444.29 | J151: 12.176 | K151: 99.463 | L151: 1.9436 | M151: 1.4261 | N151: 12.352 | O151: 90.981 | P151: 1.4493 | Q151: 12.381 | R151: 100.03 | S151: 415.21 | T151: 12.547 | U151: 85.904 | V151: 408.85 | W151: 12.616 | X151: 101.81 | Y151: 1.9229 | Z151: 0 | AA151: 0 | AB151: 0 | AC151: 0 | AD151: 0 | AE151: 75.68 | AF151: 75.57 | AG151: 75.48 | AH151: 75.4 | AI151: 75.46 | AJ151: 75.34 | AK151: 1.215 | AL151: 0 | AM151: 0
A152: pCO2 | B152: 36.73410333 | C152: -122.249405 | D152: 2013-03-22T00:09:25Z | E152: 2013-03-21T23:10:24Z | F152: 480.26 | G152: 12.049 | H152: 59.729 | I152: 462.37 | J152: 12.118 | K152: 98.83 | L152: 1.9462 | M152: 1.381 | N152: 12.303 | O152: 91.088 | P152: 1.6527 | Q152: 12.332 | R152: 100.08 | S152: 414.83 | T152: 12.508 | U152: 85.931 | V152: 408.15 | W152: 12.567 | X152: 101.77 | Y152: 1.905 | Z152: 0 | AA152: 0 | AB152: 0 | AC152: 0 | AD152: 0 | AE152: 75.26 | AF152: 75.23 | AG152: 75.14 | AH152: 75 | AI152: 74.88 | AJ152: 74.88 | AK152: 1.2134 | AL152: 0 | AM152: 0
A153: pCO2 | B153: 36.729715 | C153: -122.2768617 | D153: 2013-03-22T01:09:26Z | E153: 2013-03-22T00:10:22Z | F153: 506.24 | G153: 12.001 | H153: 46.708 | I153: 491.57 | J153: 12.079 | K153: 82.767 | L153: 1.9237 | M153: 1.5057 | N153: 12.264 | O153: 84.248 | P153: 1.6359 | Q153: 12.283 | R153: 93.014 | S153: 414.03 | T153: 12.459 | U153: 85.81 | V153: 407.74 | W153: 12.518 | X153: 101.75 | Y153: 1.8923 | Z153: 0 | AA153: 0 | AB153: 0 | AC153: 0 | AD153: 0 | AE153: 74.92 | AF153: 74.95 | AG153: 74.82 | AH153: 74.82 | AI153: 74.68 | AJ153: 74.82 | AK153: 1.2133 | AL153: 0 | AM153: 0
A154: pCO2 | B154: 36.72513 | C154: -122.3051983 | D154: 2013-03-22T02:09:25Z | E154: 2013-03-22T01:10:22Z | F154: 498.47 | G154: 11.991 | H154: 54.047 | I154: 479.01 | J154: 12.059 | K154: 97.107 | L154: 1.9534 | M154: 1.7476 | N154: 12.254 | O154: 89.486 | P154: 1.7612 | Q154: 12.274 | R154: 98.453 | S154: 413.15 | T154: 12.45 | U154: 85.85 | V154: 406.85 | W154: 12.508 | X154: 101.71 | Y154: 1.897 | Z154: 0 | AA154: 0 | AB154: 0 | AC154: 0 | AD154: 0 | AE154: 74.64 | AF154: 74.6 | AG154: 74.49 | AH154: 74.65 | AI154: 74.67 | AJ154: 74.71 | AK154: 1.2142 | AL154: 0 | AM154: 0
A155: pCO2 | B155: 36.72019167 | C155: -122.3364067 | D155: 2013-03-22T03:09:25Z | E155: 2013-03-22T02:10:22Z | F155: 492.83 | G155: 12.001 | H155: 49.967 | I155: 474.92 | J155: 12.069 | K155: 92.502 | L155: 1.9633 | M155: 1.4998 | N155: 12.254 | O155: 88.867 | P155: 1.6152 | Q155: 12.283 | R155: 97.78 | S155: 413.45 | T155: 12.459 | U155: 85.85 | V155: 406.73 | W155: 12.518 | X155: 101.79 | Y155: 1.8889 | Z155: 0 | AA155: 0 | AB155: 0 | AC155: 0 | AD155: 0 | AE155: 74.82 | AF155: 74.81 | AG155: 75.27 | AH155: 75.1 | AI155: 75.1 | AJ155: 75.17 | AK155: 1.2147 | AL155: 0 | AM155: 0
A156: pCO2 | B156: 36.70725167 | C156: -122.3661017 | D156: 2013-03-22T04:09:25Z | E156: 2013-03-22T03:10:22Z | F156: 494.4 | G156: 12.03 | H156: 47.005 | I156: 480.19 | J156: 12.098 | K156: 83.602 | L156: 1.9135 | M156: 1.5787 | N156: 12.293 | O156: 83.561 | P156: 1.8253 | Q156: 12.313 | R156: 92.26 | S156: 413.32 | T156: 12.489 | U156: 85.891 | V156: 406.82 | W156: 12.557 | X156: 101.81 | Y156: 1.8744 | Z156: 0 | AA156: 0 | AB156: 0 | AC156: 0 | AD156: 0 | AE156: 75.56 | AF156: 75.25 | AG156: 75.21 | AH156: 75.23 | AI156: 75.51 | AJ156: 75.4 | AK156: 1.2142 | AL156: 0 | AM156: 0
A157: pCO2 | B157: 36.70568167 | C157: -122.3696183 | D157: 2013-03-22T05:09:25Z | E157: 2013-03-22T04:10:22Z | F157: 503.06 | G157: 12.04 | H157: 46.345 | I157: 486.48 | J157: 12.108 | K157: 79.293 | L157: 1.8335 | M157: 2.0632 | N157: 12.293 | O157: 80.64 | P157: 1.6964 | Q157: 12.323 | R157: 88.557 | S157: 413.04 | T157: 12.489 | U157: 85.945 | V157: 406.73 | W157: 12.557 | X157: 101.81 | Y157: 1.845 | Z157: 0 | AA157: 0 | AB157: 0 | AC157: 0 | AD157: 0 | AE157: 75.34 | AF157: 75.64 | AG157: 75.5 | AH157: 75.48 | AI157: 75.11 | AJ157: 75.06 | AK157: 1.212 | AL157: 0 | AM157: 0
A158: pCO2 | B158: 36.71929333 | C158: -122.342025 | D158: 2013-03-22T06:09:26Z | E158: 2013-03-22T05:10:23Z | F158: 461.18 | G158: 12.03 | H158: 38.764 | I158: 510.97 | J158: 12.098 | K158: 67.269 | L158: 1.8198 | M158: 1.7435 | N158: 12.293 | O158: 73.611 | P158: 1.8255 | Q158: 12.313 | R158: 81.461 | S158: 412.98 | T158: 12.489 | U158: 85.972 | V158: 406.73 | W158: 12.557 | X158: 101.87 | Y158: 1.8697 | Z158: 0 | AA158: 0 | AB158: 0 | AC158: 0 | AD158: 0 | AE158: 75.02 | AF158: 75.31 | AG158: 75.09 | AH158: 75.3 | AI158: 75.06 | AJ158: 75.38 | AK158: 1.2083 | AL158: 0 | AM158: 0
A159: pCO2 | B159: 36.72482333 | C159: -122.30714 | D159: 2013-03-22T07:09:26Z | E159: 2013-03-22T06:10:22Z | F159: 472.58 | G159: 12.03 | H159: 60.927 | I159: 455.98 | J159: 12.098 | K159: 99.086 | L159: 1.9252 | M159: 1.421 | N159: 12.283 | O159: 87.426 | P159: 1.6517 | Q159: 12.303 | R159: 96.326 | S159: 412.9 | T159: 12.489 | U159: 85.877 | V159: 406.21 | W159: 12.547 | X159: 101.87 | Y159: 1.8914 | Z159: 0 | AA159: 0 | AB159: 0 | AC159: 0 | AD159: 0 | AE159: 75.29 | AF159: 75.22 | AG159: 75.19 | AH159: 74.87 | AI159: 74.9 | AJ159: 75.04 | AK159: 1.2074 | AL159: 0 | AM159: 0
A160: pCO2 | B160: 36.73064 | C160: -122.2702283 | D160: 2013-03-22T08:09:26Z | E160: 2013-03-22T07:10:22Z | F160: 512.45 | G160: 12.01 | H160: 45.618 | I160: 492.14 | J160: 12.079 | K160: 85.514 | L160: 1.8009 | M160: 1.6594 | N160: 12.254 | O160: 84.989 | P160: 1.9451 | Q160: 12.283 | R160: 93.835 | S160: 412.98 | T160: 12.459 | U160: 86.16 | V160: 406.36 | W160: 12.518 | X160: 101.83 | Y160: 1.8131 | Z160: 103.38 | AA160: 447.19 | AB160: 12.743 | AC160: 101.81 | AD160: 1.6549 | AE160: 75.21 | AF160: 75.02 | AG160: 74.75 | AH160: 74.64 | AI160: 74.77 | AJ160: 74.63 | AK160: 1.207 | AL160: 0 | AM160: 0
A161: pCO2 | B161: 36.73620833 | C161: -122.2342667 | D161: 2013-03-22T09:09:26Z | E161: 2013-03-22T08:10:22Z | F161: 528.21 | G161: 12.001 | H161: 46.601 | I161: 503.94 | J161: 12.069 | K161: 80.68 | L161: 1.9086 | M161: 1.8639 | N161: 12.254 | O161: 81.299 | P161: 1.8282 | Q161: 12.283 | R161: 89.809 | S161: 413.27 | T161: 12.45 | U161: 86.052 | V161: 406.31 | W161: 12.508 | X161: 101.81 | Y161: 1.8638 | Z161: 0 | AA161: 0 | AB161: 0 | AC161: 0 | AD161: 0 | AE161: 74.62 | AF161: 75 | AG161: 74.63 | AH161: 74.64 | AI161: 74.32 | AJ161: 74.16 | AK161: 1.2058 | AL161: 0 | AM161: 0
A162: pCO2 | B162: 36.74121 | C162: -122.2023067 | D162: 2013-03-22T10:09:26Z | E162: 2013-03-22T09:10:22Z | F162: 506.94 | G162: 11.894 | H162: 47.139 | I162: 489.58 | J162: 11.962 | K162: 86.685 | L162: 1.7819 | M162: 1.5736 | N162: 12.137 | O162: 84.289 | P162: 2.0159 | Q162: 12.166 | R162: 93.054 | S162: 413.29 | T162: 12.342 | U162: 85.999 | V162: 406.56 | W162: 12.401 | X162: 101.81 | Y162: 1.8048 | Z162: 0 | AA162: 0 | AB162: 0 | AC162: 0 | AD162: 0 | AE162: 73.96 | AF162: 74.14 | AG162: 73.97 | AH162: 73.75 | AI162: 73.94 | AJ162: 73.86 | AK162: 1.2055 | AL162: 0 | AM162: 0
A163: pCO2 | B163: 36.74571667 | C163: -122.1736467 | D163: 2013-03-22T11:09:27Z | E163: 2013-03-22T10:10:23Z | F163: 481.88 | G163: 11.806 | H163: 83.238 | I163: 474.34 | J163: 11.874 | K163: 99.504 | L163: 1.8712 | M163: 1.6641 | N163: 12.049 | O163: 90.146 | P163: 1.5359 | Q163: 12.069 | R163: 99.167 | S163: 415.82 | T163: 12.244 | U163: 85.985 | V163: 409.61 | W163: 12.313 | X163: 101.79 | Y163: 1.8936 | Z163: 0 | AA163: 0 | AB163: 0 | AC163: 0 | AD163: 0 | AE163: 73.84 | AF163: 73.69 | AG163: 73.48 | AH163: 73.4 | AI163: 73.34 | AJ163: 72.98 | AK163: 1.2052 | AL163: 0 | AM163: 0
A164: pCO2 | B164: 36.75042333 | C164: -122.14373 | D164: 2013-03-22T12:09:27Z | E164: 2013-03-22T11:10:23Z | F164: 470.31 | G164: 11.719 | H164: 82.067 | I164: 462.91 | J164: 11.787 | K164: 99.45 | L164: 1.866 | M164: 1.771 | N164: 11.962 | O164: 91.209 | P164: 1.8471 | Q164: 11.991 | R164: 100.3 | S164: 416.33 | T164: 12.166 | U164: 85.985 | V164: 409.85 | W164: 12.235 | X164: 101.75 | Y164: 1.8901 | Z164: 0 | AA164: 0 | AB164: 0 | AC164: 0 | AD164: 0 | AE164: 73.53 | AF164: 73.33 | AG164: 73.71 | AH164: 73.63 | AI164: 73.47 | AJ164: 73.31 | AK164: 1.2044 | AL164: 0 | AM164: 0
A165: pCO2 | B165: 36.75539833 | C165: -122.1118883 | D165: 2013-03-22T13:09:27Z | E165: 2013-03-22T12:10:24Z | F165: 513.44 | G165: 11.593 | H165: 82.807 | I165: 505.57 | J165: 11.651 | K165: 99.531 | L165: 1.8529 | M165: 1.8348 | N165: 11.835 | O165: 91.371 | P165: 1.8282 | Q165: 11.855 | R165: 100.47 | S165: 418.64 | T165: 12.03 | U165: 85.958 | V165: 411.87 | W165: 12.098 | X165: 101.74 | Y165: 1.8876 | Z165: 0 | AA165: 0 | AB165: 0 | AC165: 0 | AD165: 0 | AE165: 73.05 | AF165: 72.71 | AG165: 72.31 | AH165: 72.14 | AI165: 71.84 | AJ165: 71.63 | AK165: 1.2035 | AL165: 0 | AM165: 0
A166: pCO2 | B166: 36.760405 | C166: -122.0804483 | D166: 2013-03-22T14:09:26Z | E166: 2013-03-22T13:10:24Z | F166: 523.9 | G166: 11.341 | H166: 83.319 | I166: 515.51 | J166: 11.399 | K166: 99.706 | L166: 1.8401 | M166: 1.8625 | N166: 11.573 | O166: 91.479 | P166: 2.0933 | Q166: 11.602 | R166: 100.58 | S166: 426.46 | T166: 11.767 | U166: 85.985 | V166: 419.93 | W166: 11.835 | X166: 101.79 | Y166: 1.8744 | Z166: 0 | AA166: 0 | AB166: 0 | AC166: 0 | AD166: 0 | AE166: 71.05 | AF166: 70.84 | AG166: 70.82 | AH166: 70.76 | AI166: 70.13 | AJ166: 70.1 | AK166: 1.2057 | AL166: 0 | AM166: 0
A167: pCO2 | B167: 36.764855 | C167: -122.0514483 | D167: 2013-03-22T15:09:26Z | E167: 2013-03-22T14:10:22Z | F167: 595.84 | G167: 11.108 | H167: 64.388 | I167: 577.79 | J167: 11.186 | K167: 99.409 | L167: 1.8612 | M167: 1.9333 | N167: 11.36 | O167: 91.384 | P167: 2.0102 | Q167: 11.389 | R167: 100.37 | S167: 427.26 | T167: 11.564 | U167: 86.16 | V167: 420.58 | W167: 11.612 | X167: 101.83 | Y167: 1.8481 | Z167: 0 | AA167: 0 | AB167: 0 | AC167: 0 | AD167: 0 | AE167: 70.04 | AF167: 69.43 | AG167: 69.42 | AH167: 69.12 | AI167: 69.2 | AJ167: 69.58 | AK167: 1.2044 | AL167: 0 | AM167: 0
A168: pCO2 | B168: 36.769545 | C168: -122.0216933 | D168: 2013-03-22T16:09:26Z | E168: 2013-03-22T15:10:22Z | F168: 548.87 | G168: 11.099 | H168: 59.446 | I168: 529.68 | J168: 11.166 | K168: 98.575 | L168: 1.9307 | M168: 2.0557 | N168: 11.36 | O168: 91.142 | P168: 1.9849 | Q168: 11.389 | R168: 100.15 | S168: 425.13 | T168: 11.564 | U168: 86.12 | V168: 418.41 | W168: 11.622 | X168: 101.85 | Y168: 1.8772 | Z168: 0 | AA168: 0 | AB168: 0 | AC168: 0 | AD168: 0 | AE168: 69.79 | AF168: 69.98 | AG168: 69.87 | AH168: 70.33 | AI168: 70.19 | AJ168: 70.17 | AK168: 1.2044 | AL168: 0 | AM168: 0
A169: pCO2 | B169: 36.77483667 | C169: -121.9880683 | D169: 2013-03-22T17:09:28Z | E169: 2013-03-22T16:10:23Z | F169: 545.13 | G169: 11.234 | H169: 52.835 | I169: 523.48 | J169: 11.302 | K169: 96.151 | L169: 1.9091 | M169: 1.8111 | N169: 11.486 | O169: 90.388 | P169: 2.0121 | Q169: 11.515 | R169: 99.369 | S169: 426.69 | T169: 11.699 | U169: 86.079 | V169: 419.99 | W169: 11.748 | X169: 101.91 | Y169: 1.8682 | Z169: 0 | AA169: 0 | AB169: 0 | AC169: 0 | AD169: 0 | AE169: 70.13 | AF169: 70.33 | AG169: 70.39 | AH169: 70.39 | AI169: 70.67 | AJ169: 70.68 | AK169: 1.2029 | AL169: 0 | AM169: 0
A170: pCO2 | B170: 36.78049167 | C170: -121.9519417 | D170: 2013-03-22T18:09:26Z | E170: 2013-03-22T17:10:24Z | F170: 455.05 | G170: 11.408 | H170: 82.956 | I170: 448.13 | J170: 11.476 | K170: 99.625 | L170: 1.8928 | M170: 1.8955 | N170: 11.661 | O170: 91.344 | P170: 1.7379 | Q170: 11.68 | R170: 100.47 | S170: 425.28 | T170: 11.865 | U170: 86.039 | V170: 419.12 | W170: 11.923 | X170: 101.95 | Y170: 1.922 | Z170: 0 | AA170: 0 | AB170: 0 | AC170: 0 | AD170: 0 | AE170: 70.76 | AF170: 70.97 | AG170: 71.41 | AH170: 71.51 | AI170: 71.54 | AJ170: 71.72 | AK170: 1.2013 | AL170: 0 | AM170: 0
A171: pCO2 | B171: 36.786295 | C171: -121.9147417 | D171: 2013-03-22T19:09:28Z | E171: 2013-03-22T18:10:22Z | F171: 380.76 | G171: 11.651 | H171: 83.131 | I171: 372.86 | J171: 11.728 | K171: 99.908 | L171: 1.9083 | M171: 1.5026 | N171: 11.913 | O171: 91.721 | P171: 1.5581 | Q171: 11.942 | R171: 100.88 | S171: 424.58 | T171: 12.127 | U171: 86.066 | V171: 417.7 | W171: 12.186 | X171: 102.01 | Y171: 1.9349 | Z171: 0 | AA171: 0 | AB171: 0 | AC171: 0 | AD171: 0 | AE171: 72.13 | AF171: 72.24 | AG171: 72.77 | AH171: 73.25 | AI171: 73.75 | AJ171: 74.09 | AK171: 1.2005 | AL171: 0 | AM171: 0
A172: pCO2 | B172: 36.79187667 | C172: -121.8792983 | D172: 2013-03-22T20:09:26Z | E172: 2013-03-22T19:10:24Z | F172: 339.54 | G172: 11.933 | H172: 83.306 | I172: 333.65 | J172: 12.001 | K172: 100.39 | L172: 1.9224 | M172: 1.4065 | N172: 12.186 | O172: 91.883 | P172: 1.4558 | Q172: 12.205 | R172: 101.08 | S172: 420.95 | T172: 12.391 | U172: 86.039 | V172: 414.6 | W172: 12.45 | X172: 101.97 | Y172: 1.9436 | Z172: 0 | AA172: 0 | AB172: 0 | AC172: 0 | AD172: 0 | AE172: 74.41 | AF172: 74.77 | AG172: 75 | AH172: 75.27 | AI172: 75.61 | AJ172: 75.57 | AK172: 1.2022 | AL172: 0 | AM172: 0
A173: pCO2 | B173: 36.79818167 | C173: -121.84705 | D173: 2013-03-22T21:09:27Z | E173: 2013-03-22T20:10:22Z | F173: 281.57 | G173: 12.118 | H173: 83.75 | I173: 276.21 | J173: 12.196 | K173: 101.25 | L173: 1.9366 | M173: 1.2159 | N173: 12.371 | O173: 92.462 | P173: 1.4038 | Q173: 12.401 | R173: 101.7 | S173: 417.43 | T173: 12.586 | U173: 85.945 | V173: 410.86 | W173: 12.645 | X173: 101.93 | Y173: 1.9535 | Z173: 0 | AA173: 0 | AB173: 0 | AC173: 0 | AD173: 0 | AE173: 75.81 | AF173: 76.01 | AG173: 76.32 | AH173: 76.78 | AI173: 77.2 | AJ173: 77.61 | AK173: 1.2021 | AL173: 0 | AM173: 0
A174: pCO2 | B174: 36.79602 | C174: -121.8631267 | D174: 2013-03-22T22:09:27Z | E174: 2013-03-22T21:10:24Z | F174: 281.85 | G174: 12.42 | H174: 83.171 | I174: 277.39 | J174: 12.489 | K174: 100.14 | L174: 1.9373 | M174: 1.0826 | N174: 12.684 | O174: 91.91 | P174: 1.3902 | Q174: 12.704 | R174: 101.16 | S174: 415.67 | T174: 12.881 | U174: 85.891 | V174: 409.16 | W174: 12.939 | X174: 101.82 | Y174: 1.9539 | Z174: 0 | AA174: 0 | AB174: 0 | AC174: 0 | AD174: 0 | AE174: 77.86 | AF174: 78.25 | AG174: 78.55 | AH174: 78.85 | AI174: 79.06 | AJ174: 79.34 | AK174: 1.2012 | AL174: 0 | AM174: 0
A175: pCO2 | B175: 36.79381167 | C175: -121.87676 | D175: 2013-03-22T23:09:26Z | E175: 2013-03-22T22:10:23Z | F175: 274.33 | G175: 12.401 | H175: 68.212 | I175: 267.37 | J175: 12.469 | K175: 99.154 | L175: 1.991 | M175: 1.2703 | N175: 12.645 | O175: 91.182 | P175: 1.4409 | Q175: 12.675 | R175: 100.3 | S175: 414.8 | T175: 12.851 | U175: 85.85 | V175: 408.99 | W175: 12.91 | X175: 101.74 | Y175: 1.9471 | Z175: 0 | AA175: 0 | AB175: 0 | AC175: 0 | AD175: 0 | AE175: 79.66 | AF175: 79.97 | AG175: 80.4 | AH175: 80.66 | AI175: 80.93 | AJ175: 81.24 | AK175: 1.2014 | AL175: 0 | AM175: 0
A176: pCO2 | B176: 36.79118833 | C176: -121.8929967 | D176: 2013-03-23T00:09:27Z | E176: 2013-03-22T23:10:22Z | F176: 319 | G176: 12.205 | H176: 71.147 | I176: 310.15 | J176: 12.274 | K176: 99.45 | L176: 1.9487 | M176: 1.3013 | N176: 12.449 | O176: 91.371 | P176: 1.6031 | Q176: 12.479 | R176: 100.51 | S176: 414.84 | T176: 12.645 | U176: 85.837 | V176: 408.48 | W176: 12.704 | X176: 101.73 | Y176: 1.9433 | Z176: 0 | AA176: 0 | AB176: 0 | AC176: 0 | AD176: 0 | AE176: 81.49 | AF176: 81.74 | AG176: 81.84 | AH176: 81.8 | AI176: 81.74 | AJ176: 81.48 | AK176: 1.2021 | AL176: 0 | AM176: 0
A177: pCO2 | B177: 36.78818833 | C177: -121.91191 | D177: 2013-03-23T01:09:26Z | E177: 2013-03-23T00:10:24Z | F177: 360.01 | G177: 11.884 | H177: 82.727 | I177: 354.29 | J177: 11.942 | K177: 99.665 | L177: 1.9263 | M177: 1.5711 | N177: 12.118 | O177: 91.075 | P177: 1.6258 | Q177: 12.147 | R177: 100.22 | S177: 414.58 | T177: 12.323 | U177: 85.797 | V177: 407.72 | W177: 12.371 | X177: 101.71 | Y177: 1.9474 | Z177: 0 | AA177: 0 | AB177: 0 | AC177: 0 | AD177: 0 | AE177: 81.26 | AF177: 80.98 | AG177: 80.69 | AH177: 80.4 | AI177: 80.03 | AJ177: 79.6 | AK177: 1.2027 | AL177: 0 | AM177: 0
A178: pCO2 | B178: 36.784265 | C178: -121.93606 | D178: 2013-03-23T02:09:27Z | E178: 2013-03-23T01:10:22Z | F178: 428.43 | G178: 11.612 | H178: 63.23 | I178: 415.83 | J178: 11.67 | K178: 98.938 | L178: 1.9496 | M178: 1.5791 | N178: 11.855 | O178: 91.102 | P178: 1.8104 | Q178: 11.884 | R178: 100.16 | S178: 414.37 | T178: 12.049 | U178: 85.864 | V178: 407.82 | W178: 12.118 | X178: 101.7 | Y178: 1.9197 | Z178: 0 | AA178: 0 | AB178: 0 | AC178: 0 | AD178: 0 | AE178: 79.19 | AF178: 78.68 | AG178: 78.14 | AH178: 77.71 | AI178: 77.16 | AJ178: 76.8 | AK178: 1.2025 | AL178: 0 | AM178: 0
A179: pCO2 | B179: 36.78015333 | C179: -121.9624 | D179: 2013-03-23T03:09:27Z | E179: 2013-03-23T02:10:24Z | F179: 447.77 | G179: 11.428 | H179: 68.212 | I179: 437.84 | J179: 11.496 | K179: 99.288 | L179: 1.9399 | M179: 1.7427 | N179: 11.67 | O179: 90.994 | P179: 1.8455 | Q179: 11.699 | R179: 100.1 | S179: 413.98 | T179: 11.874 | U179: 85.824 | V179: 407.47 | W179: 11.933 | X179: 101.68 | Y179: 1.924 | Z179: 0 | AA179: 0 | AB179: 0 | AC179: 0 | AD179: 0 | AE179: 76.44 | AF179: 76.16 | AG179: 75.87 | AH179: 75.59 | AI179: 75.32 | AJ179: 75.05 | AK179: 1.2012 | AL179: 0 | AM179: 0
A180: pCO2 | B180: 36.7753 | C180: -121.9928233 | D180: 2013-03-23T04:09:27Z | E180: 2013-03-23T03:10:22Z | F180: 492.11 | G180: 11.273 | H180: 56.147 | I180: 472.78 | J180: 11.341 | K180: 98.534 | L180: 1.971 | M180: 1.8848 | N180: 11.525 | O180: 90.927 | P180: 1.7891 | Q180: 11.544 | R180: 99.948 | S180: 414.4 | T180: 11.719 | U180: 85.904 | V180: 408.03 | W180: 11.787 | X180: 101.77 | Y180: 1.9095 | Z180: 0 | AA180: 0 | AB180: 0 | AC180: 0 | AD180: 0 | AE180: 74.75 | AF180: 74.54 | AG180: 74.35 | AH180: 74.29 | AI180: 74.29 | AJ180: 74.17 | AK180: 1.2008 | AL180: 0 | AM180: 0
A181: pCO2 | B181: 36.770025 | C181: -122.024855 | D181: 2013-03-23T05:09:27Z | E181: 2013-03-23T04:10:22Z | F181: 512.23 | G181: 11.205 | H181: 65.317 | I181: 498.3 | J181: 11.273 | K181: 99.046 | L181: 1.9331 | M181: 1.9743 | N181: 11.457 | O181: 91.115 | P181: 1.7763 | Q181: 11.486 | R181: 100.2 | S181: 415.04 | T181: 11.651 | U181: 85.972 | V181: 408.59 | W181: 11.709 | X181: 101.89 | Y181: 1.912 | Z181: 0 | AA181: 0 | AB181: 0 | AC181: 0 | AD181: 0 | AE181: 74.17 | AF181: 73.85 | AG181: 73.54 | AH181: 73.01 | AI181: 72.36 | AJ181: 71.71 | AK181: 1.1997 | AL181: 0 | AM181: 0
A182: pCO2 | B182: 36.765665 | C182: -122.0527633 | D182: 2013-03-23T06:09:27Z | E182: 2013-03-23T05:10:22Z | F182: 588.25 | G182: 10.973 | H182: 67.35 | I182: 571.16 | J182: 11.05 | K182: 99.49 | L182: 1.8993 | M182: 2.0471 | N182: 11.224 | O182: 91.236 | P182: 1.89 | Q182: 11.253 | R182: 100.33 | S182: 415.23 | T182: 11.428 | U182: 85.985 | V182: 408.44 | W182: 11.486 | X182: 101.87 | Y182: 1.9005 | Z182: 0 | AA182: 0 | AB182: 0 | AC182: 0 | AD182: 0 | AE182: 70.99 | AF182: 70.13 | AG182: 69.61 | AH182: 69.51 | AI182: 69.44 | AJ182: 69.6 | AK182: 1.2018 | AL182: 0 | AM182: 0
A183: pCO2 | B183: 36.76078833 | C183: -122.0830633 | D183: 2013-03-23T07:09:26Z | E183: 2013-03-23T06:10:22Z | F183: 533.89 | G183: 11.002 | H183: 75.052 | I183: 523.64 | J183: 11.07 | K183: 99.544 | L183: 1.9044 | M183: 1.8016 | N183: 11.253 | O183: 91.182 | P183: 1.9284 | Q183: 11.273 | R183: 100.26 | S183: 414.41 | T183: 11.457 | U183: 86.052 | V183: 407.8 | W183: 11.525 | X183: 101.93 | Y183: 1.9092 | Z183: 103.37 | AA183: 446.93 | AB183: 11.748 | AC183: 101.93 | AD183: 1.7591 | AE183: 69.77 | AF183: 69.82 | AG183: 70 | AH183: 70.45 | AI183: 70.92 | AJ183: 71.28 | AK183: 1.1994 | AL183: 0 | AM183: 0
A184: pCO2 | B184: 36.75512333 | C184: -122.1182817 | D184: 2013-03-23T08:09:27Z | E184: 2013-03-23T07:10:22Z | F184: 518.89 | G184: 11.282 | H184: 74.554 | I184: 507.54 | J184: 11.35 | K184: 99.706 | L184: 1.9099 | M184: 1.9546 | N184: 11.534 | O184: 91.506 | P184: 1.9827 | Q184: 11.563 | R184: 100.58 | S184: 413.95 | T184: 11.738 | U184: 86.066 | V184: 407.85 | W184: 11.797 | X184: 101.95 | Y184: 1.9059 | Z184: 0 | AA184: 0 | AB184: 0 | AC184: 0 | AD184: 0 | AE184: 71.76 | AF184: 71.8 | AG184: 71.98 | AH184: 71.75 | AI184: 71.65 | AJ184: 71.48 | AK184: 1.1993 | AL184: 0 | AM184: 0
A185: pCO2 | B185: 36.749195 | C185: -122.1547983 | D185: 2013-03-23T09:09:27Z | E185: 2013-03-23T08:10:22Z | F185: 551.01 | G185: 11.273 | H185: 65.115 | I185: 534.84 | J185: 11.341 | K185: 99.45 | L185: 1.9123 | M185: 1.7879 | N185: 11.525 | O185: 91.506 | P185: 1.9819 | Q185: 11.554 | R185: 100.5 | S185: 414.36 | T185: 11.719 | U185: 86.12 | V185: 408.06 | W185: 11.787 | X185: 101.94 | Y185: 1.8919 | Z185: 0 | AA185: 0 | AB185: 0 | AC185: 0 | AD185: 0 | AE185: 71.41 | AF185: 71.37 | AG185: 71.41 | AH185: 70.98 | AI185: 70.82 | AJ185: 70.68 | AK185: 1.199 | AL185: 0 | AM185: 0
A186: pCO2 | B186: 36.74349167 | C186: -122.19098 | D186: 2013-03-23T10:09:26Z | E186: 2013-03-23T09:10:23Z | F186: 549.04 | G186: 11.244 | H186: 66.596 | I186: 533.36 | J186: 11.311 | K186: 99.329 | L186: 1.9345 | M186: 1.94 | N186: 11.496 | O186: 91.384 | P186: 1.9972 | Q186: 11.525 | R186: 100.39 | S186: 415.07 | T186: 11.699 | U186: 86.12 | V186: 408.49 | W186: 11.758 | X186: 101.94 | Y186: 1.8973 | Z186: 0 | AA186: 0 | AB186: 0 | AC186: 0 | AD186: 0 | AE186: 70.57 | AF186: 70.65 | AG186: 70.65 | AH186: 71.03 | AI186: 71.16 | AJ186: 71.29 | AK186: 1.2001 | AL186: 0 | AM186: 0
A187: pCO2 | B187: 36.73880167 | C187: -122.2200333 | D187: 2013-03-23T11:09:29Z | E187: 2013-03-23T10:10:22Z | F187: 539.14 | G187: 11.302 | H187: 76.331 | I187: 545.69 | J187: 11.36 | K187: 99.571 | L187: 1.929 | M187: 1.6712 | N187: 11.554 | O187: 91.371 | P187: 2.0499 | Q187: 11.583 | R187: 100.37 | S187: 417.52 | T187: 11.758 | U187: 86.106 | V187: 410.95 | W187: 11.816 | X187: 101.95 | Y187: 1.9 | Z187: 0 | AA187: 0 | AB187: 0 | AC187: 0 | AD187: 0 | AE187: 71.33 | AF187: 71.33 | AG187: 71.48 | AH187: 71.51 | AI187: 71.66 | AJ187: 71.97 | AK187: 1.2008 | AL187: 0 | AM187: 0
A188: pCO2 | B188: 36.73457167 | C188: -122.2464867 | D188: 2013-03-23T12:09:26Z | E188: 2013-03-23T11:10:24Z | F188: 483.65 | G188: 11.476 | H188: 83.359 | I188: 475.23 | J188: 11.544 | K188: 99.975 | L188: 1.8775 | M188: 1.8781 | N188: 11.728 | O188: 91.398 | P188: 1.8105 | Q188: 11.758 | R188: 100.5 | S188: 418.18 | T188: 11.942 | U188: 86.039 | V188: 411.77 | W188: 12.001 | X188: 101.9 | Y188: 1.9027 | Z188: 0 | AA188: 0 | AB188: 0 | AC188: 0 | AD188: 0 | AE188: 72.43 | AF188: 72.8 | AG188: 73.08 | AH188: 73.15 | AI188: 73.21 | AJ188: 73.24 | AK188: 1.199 | AL188: 0 | AM188: 0
A189: pCO2 | B189: 36.73017333 | C189: -122.2741983 | D189: 2013-03-23T13:09:26Z | E189: 2013-03-23T12:10:23Z | F189: 473.91 | G189: 11.641 | H189: 83.306 | I189: 465.88 | J189: 11.709 | K189: 99.517 | L189: 1.881 | M189: 1.537 | N189: 11.903 | O189: 91.506 | P189: 1.561 | Q189: 11.933 | R189: 100.63 | S189: 417.33 | T189: 12.108 | U189: 86.012 | V189: 411.04 | W189: 12.166 | X189: 101.93 | Y189: 1.9051 | Z189: 0 | AA189: 0 | AB189: 0 | AC189: 0 | AD189: 0 | AE189: 73.45 | AF189: 73.57 | AG189: 73.6 | AH189: 73.54 | AI189: 73.54 | AJ189: 73.5 | AK189: 1.1986 | AL189: 0 | AM189: 0
A190: pCO2 | B190: 36.72569 | C190: -122.3021433 | D190: 2013-03-23T14:09:27Z | E190: 2013-03-23T13:10:22Z | F190: 485.98 | G190: 11.719 | H190: 69.248 | I190: 471.64 | J190: 11.787 | K190: 99.544 | L190: 1.9207 | M190: 1.6506 | N190: 11.972 | O190: 91.533 | P190: 1.7001 | Q190: 11.991 | R190: 100.59 | S190: 417.96 | T190: 12.166 | U190: 86.052 | V190: 411.02 | W190: 12.235 | X190: 101.95 | Y190: 1.898 | Z190: 0 | AA190: 0 | AB190: 0 | AC190: 0 | AD190: 0 | AE190: 73.64 | AF190: 73.76 | AG190: 73.91 | AH190: 74.07 | AI190: 74.14 | AJ190: 74.15 | AK190: 1.1991 | AL190: 0 | AM190: 0
A191: pCO2 | B191: 36.72092167 | C191: -122.331735 | D191: 2013-03-23T15:09:28Z | E191: 2013-03-23T14:10:23Z | F191: 452.91 | G191: 11.767 | H191: 83.009 | I191: 443.86 | J191: 11.835 | K191: 99.8 | L191: 1.8887 | M191: 1.8905 | N191: 12.02 | O191: 91.869 | P191: 1.6895 | Q191: 12.049 | R191: 100.96 | S191: 416.13 | T191: 12.225 | U191: 86.12 | V191: 409.78 | W191: 12.284 | X191: 101.98 | Y191: 1.9034 | Z191: 0 | AA191: 0 | AB191: 0 | AC191: 0 | AD191: 0 | AE191: 74.29 | AF191: 74.28 | AG191: 74.27 | AH191: 74.46 | AI191: 74.37 | AJ191: 74.57 | AK191: 1.199 | AL191: 0 | AM191: 0
A192: pCO2 | B192: 36.71345667 | C192: -122.3590067 | D192: 2013-03-23T16:09:27Z | E192: 2013-03-23T15:10:24Z | F192: 455.37 | G192: 11.835 | H192: 83.386 | I192: 448.52 | J192: 11.903 | K192: 99.692 | L192: 1.9012 | M192: 1.5099 | N192: 12.079 | O192: 91.681 | P192: 1.8413 | Q192: 12.108 | R192: 100.8 | S192: 414.72 | T192: 12.284 | U192: 86.093 | V192: 407.87 | W192: 12.352 | X192: 102.06 | Y192: 1.9309 | Z192: 0 | AA192: 0 | AB192: 0 | AC192: 0 | AD192: 0 | AE192: 74.48 | AF192: 74.43 | AG192: 74.43 | AH192: 74.45 | AI192: 74.45 | AJ192: 74.44 | AK192: 1.1985 | AL192: 0 | AM192: 0
A193: pCO2 | B193: 36.69702 | C193: -122.3780117 | D193: 2013-03-23T17:09:27Z | E193: 2013-03-23T16:10:22Z | F193: 470.02 | G193: 11.884 | H193: 68.05 | I193: 457.93 | J193: 11.962 | K193: 99.679 | L193: 1.9578 | M193: 1.5181 | N193: 12.137 | O193: 91.708 | P193: 1.6497 | Q193: 12.166 | R193: 100.77 | S193: 414.5 | T193: 12.342 | U193: 86.133 | V193: 408.05 | W193: 12.401 | X193: 102.06 | Y193: 1.9251 | Z193: 0 | AA193: 0 | AB193: 0 | AC193: 0 | AD193: 0 | AE193: 74.68 | AF193: 74.59 | AG193: 74.56 | AH193: 74.61 | AI193: 74.5 | AJ193: 74.46 | AK193: 1.1975 | AL193: 0 | AM193: 0
A194: pCO2 | B194: 36.714025 | C194: -122.3586467 | D194: 2013-03-23T18:09:27Z | E194: 2013-03-23T17:10:22Z | F194: 453.15 | G194: 11.933 | H194: 83.063 | I194: 447.85 | J194: 12.001 | K194: 100.15 | L194: 1.9969 | M194: 1.6875 | N194: 12.186 | O194: 91.802 | P194: 1.5301 | Q194: 12.205 | R194: 100.86 | S194: 414.76 | T194: 12.381 | U194: 86.16 | V194: 408.04 | W194: 12.45 | X194: 102.06 | Y194: 1.9409 | Z194: 0 | AA194: 0 | AB194: 0 | AC194: 0 | AD194: 0 | AE194: 74.45 | AF194: 74.49 | AG194: 74.57 | AH194: 74.48 | AI194: 74.35 | AJ194: 74.34 | AK194: 1.1979 | AL194: 0 | AM194: 0
A195: pCO2 | B195: 36.72172167 | C195: -122.326775 | D195: 2013-03-23T19:09:28Z | E195: 2013-03-23T18:10:22Z | F195: 446.6 | G195: 11.972 | H195: 83.44 | I195: 439.32 | J195: 12.04 | K195: 100.19 | L195: 1.9177 | M195: 1.5923 | N195: 12.215 | O195: 91.815 | P195: 1.6066 | Q195: 12.244 | R195: 100.9 | S195: 415.77 | T195: 12.42 | U195: 86.133 | V195: 409.08 | W195: 12.489 | X195: 102.12 | Y195: 1.9451 | Z195: 0 | AA195: 0 | AB195: 0 | AC195: 0 | AD195: 0 | AE195: 74.37 | AF195: 74.3 | AG195: 74.52 | AH195: 74.59 | AI195: 74.66 | AJ195: 74.74 | AK195: 1.1958 | AL195: 0 | AM195: 0
A196: pCO2 | B196: 36.72755667 | C196: -122.289665 | D196: 2013-03-23T20:09:26Z | E196: 2013-03-23T19:10:24Z | F196: 440 | G196: 12.01 | H196: 83.292 | I196: 433.13 | J196: 12.079 | K196: 100.19 | L196: 1.9223 | M196: 1.3498 | N196: 12.274 | O196: 91.869 | P196: 1.8331 | Q196: 12.293 | R196: 100.97 | S196: 415.93 | T196: 12.469 | U196: 86.12 | V196: 408.87 | W196: 12.528 | X196: 102.09 | Y196: 1.9483 | Z196: 0 | AA196: 0 | AB196: 0 | AC196: 0 | AD196: 0 | AE196: 74.78 | AF196: 74.75 | AG196: 74.76 | AH196: 75.06 | AI196: 75.12 | AJ196: 75.16 | AK196: 1.1964 | AL196: 0 | AM196: 0
A197: pCO2 | B197: 36.73344833 | C197: -122.2519067 | D197: 2013-03-23T21:09:28Z | E197: 2013-03-23T20:10:22Z | F197: 431.71 | G197: 12.03 | H197: 83.131 | I197: 423.44 | J197: 12.098 | K197: 99.665 | L197: 1.9248 | M197: 1.4813 | N197: 12.283 | O197: 91.465 | P197: 1.5813 | Q197: 12.303 | R197: 100.58 | S197: 414.71 | T197: 12.489 | U197: 86.052 | V197: 408.5 | W197: 12.547 | X197: 102.05 | Y197: 1.9505 | Z197: 0 | AA197: 0 | AB197: 0 | AC197: 0 | AD197: 0 | AE197: 75.29 | AF197: 75.19 | AG197: 75.22 | AH197: 75.15 | AI197: 75.12 | AJ197: 75.2 | AK197: 1.1945 | AL197: 0 | AM197: 0
A198: pCO2 | B198: 36.739845 | C198: -122.21126 | D198: 2013-03-23T22:09:26Z | E198: 2013-03-23T21:10:23Z | F198: 442.03 | G198: 12.02 | H198: 82.875 | I198: 436.06 | J198: 12.088 | K198: 99.854 | L198: 1.9251 | M198: 1.3189 | N198: 12.274 | O198: 91.761 | P198: 1.5518 | Q198: 12.303 | R198: 100.28 | S198: 415.1 | T198: 12.479 | U198: 85.999 | V198: 408.47 | W198: 12.538 | X198: 101.98 | Y198: 1.9491 | Z198: 0 | AA198: 0 | AB198: 0 | AC198: 0 | AD198: 0 | AE198: 74.93 | AF198: 74.81 | AG198: 74.7 | AH198: 74.52 | AI198: 74.43 | AJ198: 74.48 | AK198: 1.195 | AL198: 0 | AM198: 0
A199: pCO2 | B199: 36.74489 | C199: -122.1787717 | D199: 2013-03-23T23:09:29Z | E199: 2013-03-23T22:10:23Z | F199: 439.85 | G199: 11.972 | H199: 83.386 | I199: 433.71 | J199: 12.04 | K199: 99.948 | L199: 1.9289 | M199: 1.4042 | N199: 12.225 | O199: 91.627 | P199: 1.4385 | Q199: 12.244 | R199: 100.8 | S199: 414.8 | T199: 12.42 | U199: 85.904 | V199: 409.07 | W199: 12.489 | X199: 101.95 | Y199: 1.9492 | Z199: 0 | AA199: 0 | AB199: 0 | AC199: 0 | AD199: 0 | AE199: 74.52 | AF199: 74.47 | AG199: 74.48 | AH199: 74.46 | AI199: 74.39 | AJ199: 74.57 | AK199: 1.1948 | AL199: 0 | AM199: 0
A200: pCO2 | B200: 36.74892333 | C200: -122.1534 | D200: 2013-03-24T00:09:29Z | E200: 2013-03-23T23:10:24Z | F200: 430.29 | G200: 11.942 | H200: 83.063 | I200: 424.99 | J200: 12.001 | K200: 100.07 | L200: 1.9291 | M200: 1.2973 | N200: 12.196 | O200: 91.438 | P200: 1.6898 | Q200: 12.205 | R200: 100.58 | S200: 415.4 | T200: 12.391 | U200: 85.945 | V200: 408.36 | W200: 12.45 | X200: 101.91 | Y200: 1.947 | Z200: 0 | AA200: 0 | AB200: 0 | AC200: 0 | AD200: 0 | AE200: 74.51 | AF200: 74.67 | AG200: 74.93 | AH200: 74.95 | AI200: 75.16 | AJ200: 75.22 | AK200: 1.1936 | AL200: 0 | AM200: 0
... 279 more rows

Sheet Sheet2
A1: latitude | B1: longitude | C1: sample | D1: ime | E1: Day | F1: Distance | G1: EquilPumpOn pco2 | H1: EquilPumpOn Temp | I1: EquilPumpOn Pressure | J1: EquilPumpOff pco2 | K1: EquilPumpOff Temp | L1: EquilPumpOff Pressure
A2: 36.80778333 | B2: -121.8528433 | C2: 2013-03-15 | D2: 18:10:24 | E2: =(C2+D2)-41274 -> 74.75722222 | F2: =ABS(Rhumb(36.806,A2,-121.791,B2)) -> 5.506652012 | G2: 407.39 | H2: 13.353 | I2: 84.639 | J2: 400.95 | K2: 13.412 | L2: 101.23
A3: 36.80342 | B3: -121.87255 | C3: 2013-03-15 | D3: 19:10:24 | E3: 74.79888889 | F3: =ABS(Rhumb(36.806,A3,-121.791,B3)) -> 7.262541788 | G3: 445.56 | H3: 12.616 | I3: 84.706 | J3: 438.12 | K3: 12.684 | L3: 101.5
A4: 36.79614667 | B4: -121.8976517 | C4: 2013-03-15 | D4: 20:10:24 | E4: 74.84055556 | F4: 9.554074779 | G4: 457.56 | H4: 12.43 | I4: 84.289 | J4: 450.68 | K4: 12.498 | L4: 100.66
A5: 36.78836167 | B5: -121.9248117 | C5: 2013-03-15 | D5: 21:10:24 | E5: 74.88222222 | F5: 12.06907236 | G5: 474.81 | H5: 12.547 | I5: 84.315 | J5: 467 | K5: 12.616 | L5: 100.8
A6: 36.78119667 | B6: -121.949645 | C6: 2013-03-15 | D6: 22:10:22 | E6: 74.92386574 | F6: 14.38620471 | G6: 474.74 | H6: 12.469 | I6: 83.413 | J6: 468.13 | K6: 12.528 | L6: 100.42
A7: 36.78405333 | B7: -121.97295 | C7: 2013-03-15 | D7: 23:10:24 | E7: 74.96555556 | F7: 16.37604709 | G7: 412.71 | H7: 12.274 | I7: 82.673 | J7: 406.62 | K7: 12.332 | L7: 99.827
A8: 36.79072167 | B8: -121.9935433 | C8: 2013-03-16 | D8: 00:10:22 | E8: 75.00719907 | F8: 18.10505641 | G8: 346.57 | H8: 12.205 | I8: 83.238 | J8: 341.38 | K8: 12.274 | L8: 99.49
A9: 36.799075 | B9: -122.018725 | C9: 2013-03-16 | D9: 01:10:22 | E9: 75.04886574 | F9: 20.27971776 | G9: 484.26 | H9: 12.049 | I9: 74.513 | J9: 473.69 | K9: 12.118 | L9: 99.423
A10: 36.79027333 | B10: -122.0480767 | C10: 2013-03-16 | D10: 02:10:22 | E10: 75.09053241 | F10: 22.94513112 | G10: 550.91 | H10: 11.864 | I10: 70.703 | J10: 535.63 | K10: 11.933 | L10: 99.477
A11: 36.78674333 | B11: -122.079245 | C11: 2013-03-16 | D11: 03:10:24 | E11: 75.13222222 | F11: 25.74200216 | G11: 541.75 | H11: 11.69 | I11: 73.436 | J11: 529.52 | K11: 11.767 | L11: 99.059
A12: 36.79006833 | B12: -122.1099067 | C12: 2013-03-16 | D12: 04:10:22 | E12: 75.17386574 | F12: 28.43619467 | G12: 538.35 | H12: 11.622 | I12: 66.434 | J12: 522.32 | K12: 11.69 | L12: 99.396
A13: 36.784555 | B13: -122.1410333 | C13: 2013-03-16 | D13: 05:10:22 | E13: 75.21553241 | F13: 31.24331028 | G13: 519.44 | H13: 11.622 | I13: 75.967 | J13: 507.26 | K13: 11.69 | L13: 99.584
A14: 36.77494 | B14: -122.1743133 | C14: 2013-03-16 | D14: 06:10:23 | E14: 75.25721065 | F14: 34.29053555 | G14: 562.62 | H14: 11.593 | I14: 61.358 | J14: 543.07 | K14: 11.67 | L14: 99.275
A15: 36.76576167 | B15: -122.2063517 | C15: 2013-03-16 | D15: 07:10:22 | E15: 75.29886574 | F15: 37.23967055 | G15: 520.66 | H15: 11.554 | I15: 71.376 | J15: 505.99 | K15: 11.631 | L15: 99.477
A16: 36.75613833 | B16: -122.2395283 | C16: 2013-03-16 | D16: 08:10:22 | E16: 75.34053241 | F16: 40.30854317 | G16: 505.26 | H16: 11.651 | I16: 54.168 | J16: 486.08 | K16: 11.728 | L16: 96.743
A17: 36.74699667 | B17: -122.2711283 | C17: 2013-03-16 | D17: 09:10:22 | E17: 75.38219907 | F17: 43.24143902 | G17: 470.82 | H17: 11.826 | I17: 64.953 | J17: 453.97 | K17: 11.894 | L17: 99.127
A18: 36.73802667 | B18: -122.301925 | C18: 2013-03-16 | D18: 10:10:22 | E18: 75.42386574 | F18: 46.10868905 | G18: 461.52 | H18: 11.933 | I18: 68.414 | J18: 448.8 | K18: 12.001 | L18: 99.356
A19: 36.72910833 | B19: -122.3329033 | C19: 2013-03-16 | D19: 11:10:22 | E19: 75.46553241 | F19: 48.99736541 | G19: 477.28 | H19: 11.952 | I19: 59.54 | J19: 460.71 | K19: 12.02 | L19: 98.992
A20: 36.72063167 | B20: -122.36218 | C20: 2013-03-16 | D20: 12:10:23 | E20: 75.50721065 | F20: 51.73327965 | G20: 485.07 | H20: 11.942 | I20: 57.144 | J20: 469.51 | K20: 12.01 | L20: 98.844
A21: 36.70485333 | B21: -122.3817283 | C21: 2013-03-16 | D21: 13:10:23 | E21: 75.54887731 | F21: 53.78978628 | G21: 472.52 | H21: 11.942 | I21: 65.451 | J21: 457.76 | K21: 12.01 | L21: 98.992
A22: 36.707925 | B22: -122.37757 | C22: 2013-03-16 | D22: 14:10:22 | E22: 75.59053241 | F22: 53.35587699 | G22: 452.99 | H22: 12.02 | I22: 83.346 | J22: 444.75 | K22: 12.088 | L22: 99.894
A23: 36.72021333 | B23: -122.357105 | C23: 2013-03-16 | D23: 15:10:22 | E23: 75.63219907 | F23: 51.29793118 | G23: 454.2 | H23: 11.962 | I23: 83.615 | J23: 445.52 | K23: 12.02 | L23: 99.315
A24: 36.72617833 | B24: -122.3269283 | C24: 2013-03-16 | D24: 16:10:23 | E24: 75.67387731 | F24: 48.53308319 | G24: 469.67 | H24: 11.933 | I24: 72.318 | J24: 458.22 | K24: 12.001 | L24: 99.45
A25: 36.73263833 | B25: -122.293695 | C25: 2013-03-16 | D25: 17:10:22 | E25: 75.71553241 | F25: 45.4912472 | G25: 452.66 | H25: 11.923 | I25: 81.784 | J25: 444.68 | K25: 11.991 | L25: 99.558
A26: 36.73915667 | B26: -122.259965 | C26: 2013-03-16 | D26: 18:10:22 | E26: 75.75719907 | F26: 42.40565196 | G26: 452.67 | H26: 11.962 | I26: 82.525 | J26: 442.45 | K26: 12.02 | L26: 99.827
A27: 36.74627833 | B27: -122.2232917 | C27: 2013-03-16 | D27: 19:10:23 | E27: 75.79887731 | F27: 39.05137589 | G27: 471.18 | H27: 11.952 | I27: 59.917 | J27: 454.09 | K27: 12.02 | L27: 99.207
A28: 36.75394667 | B28: -122.1836633 | C28: 2013-03-16 | D28: 20:10:22 | E28: 75.84053241 | F28: 35.42912857 | G28: 458.44 | H28: 11.981 | I28: 74.365 | J28: 449.74 | K28: 12.049 | L28: 99.342
A29: 36.761575 | B29: -122.144155 | C29: 2013-03-16 | D29: 21:10:22 | E29: 75.88219907 | F29: 31.82048597 | G29: 529.06 | H29: 11.913 | I29: 71.739 | J29: 516.13 | K29: 11.981 | L29: 99.854
A30: 36.76972 | B30: -122.1028133 | C30: 2013-03-16 | D30: 22:10:23 | E30: 75.92387731 | F30: 28.0450349 | G30: 560.3 | H30: 11.787 | I30: 50.048 | J30: 543.14 | K30: 11.855 | L30: 84.1
A31: 36.77759667 | B31: -122.0623333 | C31: 2013-03-16 | D31: 23:10:22 | E31: 75.96553241 | F31: 24.35480312 | G31: 591.86 | H31: 11.69 | I31: 54.898 | J31: 569.37 | K31: 11.748 | L31: 97.551
A32: 36.78205667 | B32: -122.0260933 | C32: 2013-03-17 | D32: 00:10:24 | E32: 76.00722222 | F32: 21.09182558 | G32: 546.43 | H32: 11.631 | I32: 49.374 | J32: 525.65 | K32: 11.709 | L32: 91.6
A33: 36.78523333 | B33: -121.9881 | C33: 2013-03-17 | D33: 01:10:22 | E33: 76.04886574 | F33: 17.69271586 | G33: 457.67 | H33: 11.738 | I33: 54.356 | J33: 442.36 | K33: 11.806 | L33: 97.336
A34: 36.78861333 | B34: -121.9468283 | C34: 2013-03-17 | D34: 02:10:22 | E34: 76.09053241 | F34: 14.00211292 | G34: 403.83 | H34: 11.748 | I34: 63.58 | J34: 390.79 | K34: 11.816 | L34: 99.194
A35: 36.79169 | B35: -121.9106933 | C35: 2013-03-17 | D35: 03:10:24 | E35: 76.13222222 | F35: 10.77013125 | G35: 434.07 | H35: 11.758 | I35: 47.961 | J35: 418.92 | K35: 11.826 | L35: 83.333
A36: 36.79468333 | B36: -121.8753617 | C36: 2013-03-17 | D36: 04:10:24 | E36: 76.17388889 | F36: 7.612233933 | G36: 459.69 | H36: 11.923 | I36: 56.43 | J36: 443.23 | K36: 11.981 | L36: 98.036
A37: 36.79751 | B37: -121.8470417 | C37: 2013-03-17 | D37: 05:10:22 | E37: 76.21553241 | F37: 5.075729058 | G37: 341.49 | H37: 12.176 | I37: 84.1 | J37: 335.4 | K37: 12.244 | L37: 100.61
A38: 36.795655 | B38: -121.87169 | C38: 2013-03-17 | D38: 06:10:22 | E38: 76.25719907 | F38: 7.272262134 | G38: 420.35 | H38: 12.274 | I38: 84.113 | J38: 411.97 | K38: 12.332 | L38: 100.53
A39: 36.79306333 | B39: -121.9018217 | C39: 2013-03-17 | D39: 07:10:22 | E39: 76.29886574 | F39: 9.966690253 | G39: 396.92 | H39: 12.059 | I39: 84.046 | J39: 389.9 | K39: 12.127 | L39: 100.43
A40: 36.79012833 | B40: -121.9354667 | C40: 2013-03-17 | D40: 08:10:24 | E40: 76.34055556 | F40: 12.97731014 | G40: 349.92 | H40: 11.952 | I40: 84.046 | J40: 344.77 | K40: 12.02 | L40: 100.39
A41: 36.78680333 | B41: -121.9727217 | C41: 2013-03-17 | D41: 09:10:22 | E41: 76.38219907 | F41: 16.31284635 | G41: 398.18 | H41: 11.787 | I41: 83.777 | J41: 390.81 | K41: 11.855 | L41: 100
A42: 36.78341167 | B42: -122.010725 | C42: 2013-03-17 | D42: 10:10:23 | E42: 76.42387731 | F42: 19.71582292 | G42: 372.48 | H42: 11.651 | I42: 58.53 | J42: 399.95 | K42: 11.719 | L42: 99.49
A43: 36.7803 | B43: -122.0460883 | C43: 2013-03-17 | D43: 11:10:23 | E43: 76.46554398 | F43: 22.88206617 | G43: 485.98 | H43: 11.496 | I43: 83.844 | J43: 478.72 | K43: 11.563 | L43: 99.638
A44: 36.77502333 | B44: -122.07569 | C44: 2013-03-17 | D44: 12:10:22 | E44: 76.50719907 | F44: 25.571392 | G44: 581.41 | H44: 11.341 | I44: 64.307 | J44: 562.61 | K44: 11.418 | L44: 99.584
A45: 36.76927167 | B45: -122.1052817 | C45: 2013-03-17 | D45: 13:10:22 | E45: 76.54886574 | F45: 28.26971085 | G45: 587.78 | H45: 11.36 | I45: 83.992 | J45: 577.53 | K45: 11.428 | L45: 99.894
A46: 36.763995 | B46: -122.1322833 | C46: 2013-03-17 | D46: 14:10:22 | E46: 76.59053241 | F46: 30.73450436 | G46: 589.99 | H46: 11.282 | I46: 76.654 | J46: 576.07 | K46: 11.36 | L46: 99.369
A47: 36.75844 | B47: -122.1611683 | C47: 2013-03-17 | D47: 15:10:22 | E47: 76.63219907 | F47: 33.37145974 | G47: 615.01 | H47: 11.263 | I47: 56.12 | J47: 590.51 | K47: 11.331 | L47: 98.467
A48: 36.75368833 | B48: -122.1853083 | C48: 2013-03-17 | D48: 16:10:22 | E48: 76.67386574 | F48: 35.57834339 | G48: 486.39 | H48: 11.36 | I48: 71.686 | J48: 472.79 | K48: 11.428 | L48: 99.598
A49: 36.74897 | B49: -122.209465 | C49: 2013-03-17 | D49: 17:10:22 | E49: 76.71553241 | F49: 37.78700659 | G49: 459.81 | H49: 11.69 | I49: 72.951 | J49: 446.82 | K49: 11.767 | L49: 99.571
A50: 36.74481167 | B50: -122.2306433 | C50: 2013-03-17 | D50: 18:10:23 | E50: 76.75721065 | F50: 39.72441571 | G50: 460.31 | H50: 11.884 | I50: 69.168 | J50: 447.13 | K50: 11.952 | L50: 99.827
A51: 36.74092167 | B51: -122.250805 | C51: 2013-03-17 | D51: 19:10:22 | E51: 76.79886574 | F51: 41.56798217 | G51: 451.53 | H51: 11.972 | I51: 71.659 | J51: 439.47 | K51: 12.04 | L51: 99.315
A52: 36.73682167 | B52: -122.2716883 | C52: 2013-03-17 | D52: 20:10:24 | E52: 76.84055556 | F52: 43.47936227 | G52: 435.07 | H52: 12.03 | I52: 82.242 | J52: 429.07 | K52: 12.098 | L52: 99.733
A53: 36.73187 | B53: -122.2973233 | C53: 2013-03-17 | D53: 21:10:22 | E53: 76.88219907 | F53: 45.82458078 | G53: 455.39 | H53: 12.079 | I53: 65.451 | J53: 441.42 | K53: 12.137 | L53: 99.544
A54: 36.72623 | B54: -122.326625 | C54: 2013-03-17 | D54: 22:10:22 | E54: 76.92386574 | F54: 48.50546879 | G54: 469.34 | H54: 12.098 | I54: 57.655 | J54: 452.03 | K54: 12.176 | L54: 99.005
A55: 36.72083333 | B55: -122.3539367 | C55: 2013-03-17 | D55: 23:10:22 | E55: 76.96553241 | F55: 51.00774487 | G55: 465.64 | H55: 12.118 | I55: 60.254 | J55: 448.26 | K55: 12.186 | L55: 99.086
A56: 36.714055 | B56: -122.3781 | C56: 2013-03-18 | D56: 00:10:23 | E56: 77.00721065 | F56: 53.26500761 | G56: 485.33 | H56: 12.098 | I56: 51.206 | J56: 460.7 | K56: 12.166 | L56: 94.427
A57: 36.700455 | B57: -122.3779383 | C57: 2013-03-18 | D57: 01:10:24 | E57: 77.04888889 | F57: 53.56630235 | G57: 481.56 | H57: 12.049 | I57: 47.826 | J57: 463.21 | K57: 12.118 | L57: 88.516
A58: 36.71822 | B58: -122.367685 | C58: 2013-03-18 | D58: 02:10:23 | E58: 77.09054398 | F58: 52.2653816 | G58: 486.12 | H58: 12.049 | I58: 45.995 | J58: 468.35 | K58: 12.118 | L58: 83.184
A59: 36.725415 | B59: -122.3307617 | C59: 2013-03-18 | D59: 03:10:22 | E59: 77.13219907 | F59: 48.88438334 | G59: 489.74 | H59: 12.03 | I59: 47.287 | J59: 471.33 | K59: 12.098 | L59: 82.956
A60: 36.73243333 | B60: -122.294395 | C60: 2013-03-18 | D60: 04:10:22 | E60: 77.17386574 | F60: 45.55670446 | G60: 463.45 | H60: 12.01 | I60: 59.527 | J60: 446.15 | K60: 12.079 | L60: 98.979
A61: 36.73997833 | B61: -122.2556833 | C61: 2013-03-18 | D61: 05:10:23 | E61: 77.21554398 | F61: 42.0141525 | G61: 449.02 | H61: 11.991 | I61: 68.629 | J61: 436.08 | K61: 12.059 | L61: 99.261
A62: 36.74696833 | B62: -122.2200017 | C62: 2013-03-18 | D62: 06:10:23 | E62: 77.25721065 | F62: 38.74955799 | G62: 464.09 | H62: 11.942 | I62: 66.192 | J62: 450.3 | K62: 12.01 | L62: 99.369
A63: 36.75285667 | B63: -122.1895717 | C63: 2013-03-18 | D63: 07:10:22 | E63: 77.29886574 | F63: 35.96806722 | G63: 506.76 | H63: 11.835 | I63: 69.181 | J63: 486.64 | K63: 11.903 | L63: 99.383
A64: 36.75833333 | B64: -122.1609883 | C64: 2013-03-18 | D64: 08:10:22 | E64: 77.34053241 | F64: 33.35754521 | G64: 582.77 | H64: 11.447 | I64: 83.561 | J64: 573.74 | K64: 11.515 | L64: 99.975
A65: 36.76375667 | B65: -122.1334283 | C65: 2013-03-18 | D65: 09:10:22 | E65: 77.38219907 | F65: 30.83931278 | G65: 601.72 | H65: 11.224 | I65: 82.632 | J65: 594.57 | K65: 11.282 | L65: 99.719
A66: 36.76975833 | B66: -122.1030267 | C66: 2013-03-18 | D66: 10:10:23 | E66: =(C66+D66)-41274 -> 77.42387731 | F66: 28.06321222 | G66: 615.49 | H66: 11.05 | I66: 83.521 | J66: 605.53 | K66: 11.128 | L66: 99.665
A67: 36.77546333 | B67: -122.0731317 | C67: 2013-03-18 | D67: 11:10:22 | E67: 77.46553241 | F67: =ABS(Rhumb(36.806,A67,-121.791,B67)) -> 25.33911453 | G67: 625.19 | H67: 10.954 | I67: 67.175 | J67: 607.69 | K67: 11.021 | L67: 99.436
A68: 36.78033 | B68: -122.04591 | C68: 2013-03-18 | D68: 12:10:22 | E68: 77.50719907 | F68: 22.86590069 | G68: 530.85 | H68: 11.089 | I68: 59.433 | J68: 509.27 | K68: 11.157 | L68: 99.194
A69: 36.78262 | B69: -122.0193417 | C69: 2013-03-18 | D69: 13:10:22 | E69: 77.54886574 | F69: 20.4877685 | G69: 449.21 | H69: 11.176 | I69: 83.359 | J69: 442.04 | K69: 11.244 | L69: 99.746
A70: 36.784945 | B70: -121.9912583 | C70: 2013-03-18 | D70: 14:10:22 | E70: 77.59053241 | F70: 17.97561031 | G70: 431.31 | H70: 11.253 | I70: 84.315 | J70: 423.52 | K70: 11.321 | L70: 101.04
A71: 36.7873 | B71: -121.9621933 | C71: 2013-03-18 | D71: 15:10:22 | E71: 77.63219907 | F71: 15.37678664 | G71: 397.78 | H71: 11.35 | I71: 84.787 | J71: 390.67 | K71: 11.418 | L71: 101.79
A72: 36.78983667 | B72: -121.932785 | C72: 2013-03-18 | D72: 16:10:22 | E72: 77.67386574 | F72: 12.74546867 | G72: 426.14 | H72: 11.428 | I72: 84.719 | J72: 418.51 | K72: 11.496 | L72: 101.68
A73: 36.79227667 | B73: -121.9029033 | C73: 2013-03-18 | D73: 17:10:22 | E73: 77.71553241 | F73: 10.07487459 | G73: 413.98 | H73: 11.486 | I73: 84.921 | J73: 406.91 | K73: 11.554 | L73: 102.3
A74: 36.794575 | B74: -121.8760017 | C74: 2013-03-18 | D74: 18:10:22 | E74: 77.75719907 | F74: 7.670402077 | G74: 470.1 | H74: 11.67 | I74: 84.585 | J74: 462.72 | K74: 11.738 | L74: 101.91
A75: 36.79670833 | B75: -121.8510717 | C75: 2013-03-18 | D75: 19:10:22 | E75: 77.79886574 | F75: 5.444749203 | G75: 509.61 | H75: 12.088 | I75: 84.531 | J75: 501.25 | K75: 12.157 | L75: 101.86
A76: 36.79772167 | B76: -121.8524183 | C76: 2013-03-18 | D76: 20:10:22 | E76: 77.84053241 | F76: 5.542594313 | G76: 471.89 | H76: 12.196 | I76: 84.531 | J76: 464.51 | K76: 12.264 | L76: 101.95
A77: 36.79563667 | B77: -121.8651967 | C77: 2013-03-18 | D77: 21:10:22 | E77: 77.88219907 | F77: 6.702663788 | G77: 408.4 | H77: 12.186 | I77: 84.167 | J77: 401.42 | K77: 12.254 | L77: 101.51
A78: 36.79285167 | B78: -121.8826817 | C78: 2013-03-18 | D78: 22:10:23 | E78: 77.92387731 | F78: 8.288980481 | G78: 319.46 | H78: 12.137 | I78: 84.033 | J78: 313.81 | K78: 12.205 | L78: 101.32
A79: 36.78960833 | B79: -121.9028783 | C79: 2013-03-18 | D79: 23:10:23 | E79: 77.96554398 | F79: 10.12204547 | G79: 311.91 | H79: 12.04 | I79: 83.979 | J79: 306.21 | K79: 12.098 | L79: 100.68
A80: 36.78562833 | B80: -121.928015 | C80: 2013-03-19 | D80: 00:10:22 | E80: 78.00719907 | F80: 12.40255962 | G80: 339.5 | H80: 11.806 | I80: 83.992 | J80: 334.19 | K80: 11.874 | L80: 101.07
A81: 36.78220833 | B81: -121.9497083 | C81: 2013-03-19 | D81: 01:10:22 | E81: 78.04886574 | F81: 14.37050872 | G81: 296.61 | H81: 11.806 | I81: 84.113 | J81: 291.27 | K81: 11.865 | L81: 101.23
A82: 36.77909833 | B82: -121.968875 | C82: 2013-03-19 | D82: 02:10:22 | E82: 78.09053241 | F82: 16.11117257 | G82: 319.61 | H82: 11.826 | I82: 83.494 | J82: 313.84 | K82: 11.894 | L82: 100.23
A83: 36.775355 | B83: -121.9922583 | C83: 2013-03-19 | D83: 03:10:23 | E83: 78.13221065 | F83: 18.23384843 | G83: 407.66 | H83: 11.631 | I83: 82.902 | J83: 400.9 | K83: 11.69 | L83: 99.706
A84: 36.77096667 | B84: -122.0194167 | C84: 2013-03-19 | D84: 04:10:22 | E84: 78.17386574 | F84: 20.7002263 | G84: 523.21 | H84: 11.37 | I84: 83.508 | J84: 513.46 | K84: 11.437 | L84: 99.76
A85: 36.76592667 | B85: -122.05066 | C85: 2013-03-19 | D85: 05:10:24 | E85: 78.21555556 | F85: 23.53759798 | G85: 581.24 | H85: 11.108 | I85: 83.373 | J85: 572.92 | K85: 11.186 | L85: 99.813
A86: 36.76043 | B86: -122.0853867 | C86: 2013-03-19 | D86: 06:10:22 | E86: 78.25719907 | F86: 26.68931239 | G86: 558.45 | H86: 11.012 | I86: 83.508 | J86: 549.32 | K86: 11.079 | L86: 99.948
A87: 36.755425 | B87: -122.1159867 | C87: 2013-03-19 | D87: 07:10:22 | E87: 78.29886574 | F87: 29.47013472 | G87: 484.4 | H87: 11.099 | I87: 83.938 | J87: 478.29 | K87: 11.166 | L87: 100.42
A88: 36.752035 | B88: -122.1378083 | C88: 2013-03-19 | D88: 08:10:22 | E88: 78.34053241 | F88: 31.44948465 | G88: 451.21 | H88: 11.515 | I88: 83.642 | J88: 444.63 | K88: 11.593 | L88: 100.45
A89: 36.74802333 | B89: -122.1629117 | C89: 2013-03-19 | D89: 09:10:24 | E89: 78.38222222 | F89: 33.72901618 | G89: 437.76 | H89: 11.787 | I89: 83.831 | J89: 431.24 | K89: 11.845 | L89: 100.54
A90: 36.744415 | B90: -122.1851417 | C90: 2013-03-19 | D90: 10:10:22 | E90: 78.42386574 | F90: 35.74892673 | G90: 439.17 | H90: 11.884 | I90: 84.06 | J90: 432.36 | K90: 11.952 | L90: 100.69
A91: 36.74131 | B91: -122.2044233 | C91: 2013-03-19 | D91: 11:10:22 | E91: 78.46553241 | F91: 37.50047831 | G91: 444.02 | H91: 11.981 | I91: 84.289 | J91: 435.91 | K91: 12.04 | L91: 100.93
A92: 36.73887167 | B92: -122.219645 | C92: 2013-03-19 | D92: 12:10:22 | E92: 78.50719907 | F92: 38.88299785 | G92: 448.23 | H92: 11.913 | I92: 84.302 | J92: 440.35 | K92: 11.981 | L92: 101.36
A93: 36.73686667 | B93: -122.2324483 | C93: 2013-03-19 | D93: 13:10:22 | E93: 78.54886574 | F93: 40.04490591 | G93: 452 | H93: 11.894 | I93: 84.369 | J93: 444.16 | K93: 11.962 | L93: 101.13
A94: 36.73501833 | B94: -122.2441583 | C94: 2013-03-19 | D94: 14:10:22 | E94: 78.59053241 | F94: 41.10793623 | G94: 449.67 | H94: 11.874 | I94: 84.383 | J94: 442.19 | K94: 11.942 | L94: 101.11
A95: 36.73288333 | B95: -122.2572317 | C95: 2013-03-19 | D95: 15:10:23 | E95: 78.63221065 | F95: 42.29631033 | G95: 449.58 | H95: 11.884 | I95: 84.477 | J95: 441.44 | K95: 11.962 | L95: 101.03
A96: 36.73073 | B96: -122.2704967 | C96: 2013-03-19 | D96: 16:10:23 | E96: 78.67387731 | F96: 43.50185456 | G96: 448.62 | H96: 11.913 | I96: 84.356 | J96: 440.77 | K96: 11.981 | L96: 101.27
A97: 36.72902333 | B97: -122.28151 | C97: 2013-03-19 | D97: 17:10:22 | E97: 78.71553241 | F97: 44.50102757 | G97: 452.06 | H97: 11.972 | I97: 84.221 | J97: 443.8 | K97: 12.04 | L97: 101.39
A98: 36.727125 | B98: -122.29275 | C98: 2013-03-19 | D98: 18:10:22 | E98: 78.75719907 | F98: 45.5241847 | G98: 458.3 | H98: 12.118 | I98: 84.396 | J98: 450.28 | K98: 12.186 | L98: 101.38
A99: 36.72542333 | B99: -122.3035033 | C99: 2013-03-19 | D99: 19:10:23 | E99: 78.79887731 | F99: 46.50057788 | G99: 456.7 | H99: 12.283 | I99: 83.912 | J99: 449.43 | K99: 12.352 | L99: 101.48
A100: 36.724045 | B100: -122.3119333 | C100: 2013-03-19 | D100: 20:10:22 | E100: 78.84053241 | F100: 47.26699429 | G100: 457.73 | H100: 12.498 | I100: 84.289 | J100: 450.22 | K100: 12.567 | L100: 101.6
A101: 36.72292333 | B101: -122.3192533 | C101: 2013-03-19 | D101: 21:10:22 | E101: 78.88219907 | F101: 47.93087165 | G101: 450.91 | H101: 12.626 | I101: 84.504 | J101: 443.62 | K101: 12.684 | L101: 101.87
A102: 36.72207333 | B102: -122.3243683 | C102: 2013-03-19 | D102: 22:10:22 | E102: 78.92386574 | F102: 48.39621445 | G102: 443.6 | H102: 12.606 | I102: 84.356 | J102: 435.97 | K102: 12.665 | L102: 102.01
A103: 36.72091 | B103: -122.3314283 | C103: 2013-03-19 | D103: 23:10:23 | E103: 78.96554398 | F103: 49.03829956 | G103: 436.94 | H103: 12.567 | I103: 84.504 | J103: 429.26 | K103: 12.635 | L103: 101.83
A104: 36.71954833 | B104: -122.3403317 | C104: 2013-03-20 | D104: 00:10:22 | E104: 79.00719907 | F104: 49.84575564 | G104: 430.42 | H104: 12.469 | I104: 84.437 | J104: 423.48 | K104: 12.537 | L104: 101.7
A105: 36.71786833 | B105: -122.3521633 | C105: 2013-03-20 | D105: 01:10:22 | E105: 79.04886574 | F105: 50.9159794 | G105: 424.82 | H105: 12.371 | I105: 84.437 | J105: 418.6 | K105: 12.43 | L105: 101.6
A106: 36.70814333 | B106: -122.36503 | C106: 2013-03-20 | D106: 02:10:22 | E106: 79.09053241 | F106: 52.25822616 | G106: 435.91 | H106: 12.322 | I106: 84.369 | J106: 429.18 | K106: 12.391 | L106: 101.52
A107: 36.69770333 | B107: -122.3772033 | C107: 2013-03-20 | D107: 03:10:22 | E107: 79.13219907 | F107: 53.57130506 | G107: 446.81 | H107: 12.303 | I107: 84.571 | J107: 438.56 | K107: 12.371 | L107: 101.67
A108: 36.70921167 | B108: -122.3648233 | C108: 2013-03-20 | D108: 04:10:24 | E108: 79.17388889 | F108: 52.21526233 | G108: 440.71 | H108: 12.283 | I108: 84.76 | J108: 432.62 | K108: 12.352 | L108: 101.9
A109: 36.71893333 | B109: -122.3445567 | C109: 2013-03-20 | D109: 05:10:22 | E109: 79.21553241 | F109: 50.22825119 | G109: 438.52 | H109: 12.215 | I109: 84.531 | J109: 431 | K109: 12.293 | L109: 101.66
A110: 36.72235667 | B110: -122.322655 | C110: 2013-03-20 | D110: 06:10:24 | E110: 79.25722222 | F110: 48.24037432 | G110: 443.63 | H110: 12.196 | I110: 84.571 | J110: 435.85 | K110: 12.264 | L110: 101.54
A111: 36.72603167 | B111: -122.29937 | C111: 2013-03-20 | D111: 07:10:22 | E111: 79.29886574 | F111: 46.12626769 | G111: 449.91 | H111: 12.215 | I111: 84.342 | J111: 442.16 | K111: 12.293 | L111: 100.97
A112: 36.73069167 | B112: -122.2693667 | C112: 2013-03-20 | D112: 08:10:22 | E112: 79.34053241 | F112: 43.40396818 | G112: 451.7 | H112: 12.215 | I112: 84.383 | J112: 444.4 | K112: 12.274 | L112: 101.08
A113: 36.73566167 | B113: -122.2377033 | C113: 2013-03-20 | D113: 09:10:22 | E113: 79.38219907 | F113: 40.53008318 | G113: 447 | H113: 12.176 | I113: 84.558 | J113: 439 | K113: 12.244 | L113: 101.58
A114: 36.73990667 | B114: -122.2106733 | C114: 2013-03-20 | D114: 10:10:22 | E114: 79.42386574 | F114: 38.07683474 | G114: 450.3 | H114: 12.186 | I114: 84.746 | J114: 443.02 | K114: 12.254 | L114: 101.91
A115: 36.74349667 | B115: -122.187925 | C115: 2013-03-20 | D115: 11:10:22 | E115: 79.46553241 | F115: 36.01191746 | G115: 448.12 | H115: 12.098 | I115: 84.679 | J115: 440.29 | K115: 12.166 | L115: 101.87
A116: 36.74698333 | B116: -122.1654233 | C116: 2013-03-20 | D116: 12:10:22 | E116: 79.50719907 | F116: 33.97087294 | G116: 446.49 | H116: 12.079 | I116: 84.854 | J116: 439.12 | K116: 12.137 | L116: 102.08
A117: 36.75026 | B117: -122.14454 | C117: 2013-03-20 | D117: 13:10:22 | E117: 79.54886574 | F117: 32.07582368 | G117: 445.11 | H117: 12.049 | I117: 84.787 | J117: 437.24 | K117: 12.118 | L117: 101.97
A118: 36.75352333 | B118: -122.1237367 | C118: 2013-03-20 | D118: 14:10:22 | E118: 79.59053241 | F118: 30.18812863 | G118: 441.91 | H118: 12.02 | I118: 84.827 | J118: 434.67 | K118: 12.079 | L118: 102.1
A119: 36.75595667 | B119: -122.10858 | C119: 2013-03-20 | D119: 15:10:22 | E119: 79.63219907 | F119: 28.81164738 | G119: 441.49 | H119: 12.03 | I119: 84.921 | J119: 433.72 | K119: 12.098 | L119: 102.12
A120: 36.75803 | B120: -122.0954667 | C120: 2013-03-20 | D120: 16:10:22 | E120: 79.67386574 | F120: 27.62146688 | G120: 440.94 | H120: 12.079 | I120: 84.881 | J120: 432.94 | K120: 12.147 | L120: 102.09
A121: 36.75992333 | B121: -122.082835 | C121: 2013-03-20 | D121: 17:10:22 | E121: 79.71553241 | F121: 26.47727579 | G121: 433.18 | H121: 12.088 | I121: 84.908 | J121: 425.41 | K121: 12.157 | L121: 102.2
A122: 36.762055 | B122: -122.0696333 | C122: 2013-03-20 | D122: 18:10:22 | E122: 79.75719907 | F122: 25.27817123 | G122: 422.61 | H122: 12.166 | I122: 84.841 | J122: 415.25 | K122: 12.235 | L122: 102.14
A123: 36.76396167 | B123: -122.0576783 | C123: 2013-03-20 | D123: 19:10:22 | E123: 79.79886574 | F123: 24.19284506 | G123: 421.24 | H123: 12.264 | I123: 84.854 | J123: 413.28 | K123: 12.332 | L123: 102.13
A124: 36.76544 | B124: -122.0476933 | C124: 2013-03-20 | D124: 20:10:22 | E124: 79.84053241 | F124: 23.28885546 | G124: 423.09 | H124: 12.626 | I124: 84.814 | J124: 415.93 | K124: 12.694 | L124: 102.13
A125: 36.767085 | B125: -122.0372633 | C125: 2013-03-20 | D125: 21:10:22 | E125: 79.88219907 | F125: 22.34241396 | G125: 420.66 | H125: 12.626 | I125: 84.706 | J125: 413.52 | K125: 12.694 | L125: 102.17
A126: 36.76896333 | B126: -122.02518 | C126: 2013-03-20 | D126: 22:10:24 | E126: 79.92388889 | F126: 21.24656733 | G126: 413.39 | H126: 12.577 | I126: 84.625 | J126: 406.37 | K126: 12.645 | L126: 102.17
A127: 36.76979333 | B127: -122.0206617 | C127: 2013-03-20 | D127: 23:10:24 | E127: 79.96555556 | F127: 20.83404099 | G127: 412.9 | H127: 12.723 | I127: 84.517 | J127: 405.67 | K127: 12.792 | L127: 102.18
A128: 36.77070833 | B128: -122.0143967 | C128: 2013-03-21 | D128: 00:10:22 | E128: 80.00719907 | F128: 20.26715094 | G128: 409.08 | H128: 12.89 | I128: 84.504 | J128: 402.07 | K128: 12.959 | L128: 102.12
A129: 36.77170333 | B129: -122.0081167 | C129: 2013-03-21 | D129: 01:10:22 | E129: 80.04886574 | F129: 19.69722689 | G129: 408.56 | H129: 12.988 | I129: 84.45 | J129: 401.53 | K129: 13.057 | L129: 102.1
A130: 36.77293333 | B130: -122.000185 | C130: 2013-03-21 | D130: 02:10:22 | E130: =(C130+D130)-41274 -> 80.09053241 | F130: 18.97799559 | G130: 403.07 | H130: 12.792 | I130: 84.437 | J130: 396.53 | K130: 12.861 | L130: 102.04
A131: 36.77469833 | B131: -121.9888883 | C131: 2013-03-21 | D131: 03:10:23 | E131: 80.13221065 | F131: =ABS(Rhumb(36.806,A131,-121.791,B131)) -> 17.9533668 | G131: 410.98 | H131: 12.645 | I131: 84.342 | J131: 404.06 | K131: 12.704 | L131: 101.99
A132: 36.777115 | B132: -121.9732817 | C132: 2013-03-21 | D132: 04:10:22 | E132: 80.17386574 | F132: 16.538332 | G132: 419.67 | H132: 12.361 | I132: 84.437 | J132: 412.65 | K132: 12.43 | L132: 101.98
A133: 36.780425 | B133: -121.9531133 | C133: 2013-03-21 | D133: 05:10:23 | E133: 80.21554398 | F133: 14.7056994 | G133: 272.28 | H133: 12.244 | I133: 84.154 | J133: 266.09 | K133: 12.313 | L133: 101.39
A134: 36.78466833 | B134: -121.925255 | C134: 2013-03-21 | D134: 06:10:22 | E134: 80.25719907 | F134: 12.18155042 | G134: 237.49 | H134: 12.371 | I134: 84.14 | J134: 233.07 | K134: 12.43 | L134: 101.05
A135: 36.789905 | B135: -121.89199 | C135: 2013-03-21 | D135: 07:10:22 | E135: 80.29886574 | F135: 9.164026163 | G135: 228.91 | H135: 12.352 | I135: 84.087 | J135: 224.71 | K135: 12.43 | L135: 100.58
A136: 36.79535333 | B136: -121.8575067 | C136: 2013-03-21 | D136: 08:10:22 | E136: 80.34053241 | F136: 6.035769476 | G136: 387.7 | H136: 12.264 | I136: 83.79 | J136: 381.72 | K136: 12.332 | L136: 100.51
A137: 36.797195 | B137: -121.8559983 | C137: 2013-03-21 | D137: 09:10:22 | E137: 80.38219907 | F137: 5.866502244 | G137: 282.87 | H137: 12.118 | I137: 84.235 | J137: 278.1 | K137: 12.186 | L137: 100.96
A138: 36.79421 | B138: -121.8741417 | C138: 2013-03-21 | D138: 10:10:22 | E138: 80.42386574 | F138: 7.514205199 | G138: 288.78 | H138: 12.069 | I138: 83.736 | J138: 284.9 | K138: 12.137 | L138: 100.37
A139: 36.79077833 | B139: -121.8956517 | C139: 2013-03-21 | D139: 11:10:22 | E139: 80.46553241 | F139: 9.465939289 | G139: 330.96 | H139: 12.02 | I139: 82.336 | J139: 325.45 | K139: 12.088 | L139: 99.854
A140: 36.78705333 | B140: -121.9192083 | C140: 2013-03-21 | D140: 12:10:22 | E140: 80.50719907 | F140: 11.60293438 | G140: 389.84 | H140: 11.826 | I140: 69.329 | J140: 377.96 | K140: 11.884 | L140: 99.611
A141: 36.78312833 | B141: -121.9433533 | C141: 2013-03-21 | D141: 13:10:22 | E141: 80.54886574 | F141: 13.79567375 | G141: 374.33 | H141: 11.709 | I141: 82.242 | J141: 365.48 | K141: 11.777 | L141: 99.396
A142: 36.77982667 | B142: -121.9642233 | C142: 2013-03-21 | D142: 14:10:22 | E142: 80.59053241 | F142: 15.68925687 | G142: 460.12 | H142: 11.66 | I142: 83.669 | J142: 451.13 | K142: 11.728 | L142: 100.51
A143: 36.77648667 | B143: -121.9849167 | C143: 2013-03-21 | D143: 15:10:22 | E143: 80.63219907 | F143: 17.56829346 | G143: 442.95 | H143: 11.767 | I143: 84.154 | J143: 434.12 | K143: 11.826 | L143: 99.975
A144: 36.77265667 | B144: -122.00893 | C144: 2013-03-21 | D144: 16:10:23 | E144: 80.67387731 | F144: 19.74795512 | G144: 448.25 | H144: 11.874 | I144: 83.642 | J144: 439.12 | K144: 11.942 | L144: 99.813
A145: 36.768275 | B145: -122.036325 | C145: 2013-03-21 | D145: 17:10:23 | E145: 80.71554398 | F145: 22.23497571 | G145: 449.97 | H145: 11.894 | I145: 83.723 | J145: 442.17 | K145: 11.962 | L145: 100.26
A146: 36.76325167 | B146: -122.067985 | C146: 2013-03-21 | D146: 18:10:22 | E146: 80.75719907 | F146: 25.1085188 | G146: 445.43 | H146: 11.933 | I146: 83.588 | J146: 435.91 | K146: 12.001 | L146: 100
A147: 36.75796667 | B147: -122.1003367 | C147: 2013-03-21 | D147: 19:10:24 | E147: 80.79888889 | F147: 28.04827742 | G147: 447.66 | H147: 12.02 | I147: 82.592 | J147: 439.65 | K147: 12.088 | L147: 99.786
A148: 36.752865 | B148: -122.1318133 | C148: 2013-03-21 | D148: 20:10:23 | E148: 80.84054398 | F148: 30.90786533 | G148: 446.6 | H148: 12.049 | I148: 69.329 | J148: 435.78 | K148: 12.118 | L148: 99.813
A149: 36.74803333 | B149: -122.16312 | C149: 2013-03-21 | D149: 21:10:22 | E149: 80.88219907 | F149: 33.74700265 | G149: 468.08 | H149: 12.098 | I149: 52.458 | J149: 451.46 | K149: 12.176 | L149: 93.377
A150: 36.74327167 | B150: -122.192515 | C150: 2013-03-21 | D150: 22:10:23 | E150: 80.92387731 | F150: 36.41776519 | G150: 457.27 | H150: 12.098 | I150: 68.319 | J150: 444.29 | K150: 12.176 | L150: 99.463
A151: 36.73863 | B151: -122.2213517 | C151: 2013-03-21 | D151: 23:10:24 | E151: 80.96555556 | F151: 39.0373277 | G151: 480.26 | H151: 12.049 | I151: 59.729 | J151: 462.37 | K151: 12.118 | L151: 98.83
A152: 36.73410333 | B152: -122.249405 | C152: 2013-03-22 | D152: 00:10:22 | E152: 81.00719907 | F152: 41.58611613 | G152: 506.24 | H152: 12.001 | I152: 46.708 | J152: 491.57 | K152: 12.079 | L152: 82.767
A153: 36.729715 | B153: -122.2768617 | C153: 2013-03-22 | D153: 01:10:22 | E153: 81.04886574 | F153: 44.07993246 | G153: 498.47 | H153: 11.991 | I153: 54.047 | J153: 479.01 | K153: 12.059 | L153: 97.107
A154: 36.72513 | B154: -122.3051983 | C154: 2013-03-22 | D154: 02:10:22 | E154: 81.09053241 | F154: 46.65503003 | G154: 492.83 | H154: 12.001 | I154: 49.967 | J154: 474.92 | K154: 12.069 | L154: 92.502
A155: 36.72019167 | B155: -122.3364067 | C155: 2013-03-22 | D155: 03:10:22 | E155: 81.13219907 | F155: 49.488856 | G155: 494.4 | H155: 12.03 | I155: 47.005 | J155: 480.19 | K155: 12.098 | L155: 83.602
A156: 36.70725167 | B156: -122.3661017 | C156: 2013-03-22 | D156: 04:10:22 | E156: 81.17386574 | F156: 52.37255313 | G156: 503.06 | H156: 12.04 | I156: 46.345 | J156: 486.48 | K156: 12.108 | L156: 79.293
A157: 36.70568167 | B157: -122.3696183 | C157: 2013-03-22 | D157: 05:10:23 | E157: 81.21554398 | F157: 52.7159419 | G157: 461.18 | H157: 12.03 | I157: 38.764 | J157: 510.97 | K157: 12.098 | L157: 67.269
A158: 36.71929333 | B158: -122.342025 | C158: 2013-03-22 | D158: 06:10:22 | E158: 81.25719907 | F158: 49.99923753 | G158: 472.58 | H158: 12.03 | I158: 60.927 | J158: 455.98 | K158: 12.098 | L158: 99.086
A159: 36.72482333 | B159: -122.30714 | C159: 2013-03-22 | D159: 07:10:22 | E159: 81.29886574 | F159: 46.83132511 | G159: 512.45 | H159: 12.01 | I159: 45.618 | J159: 492.14 | K159: 12.079 | L159: 85.514
A160: 36.73064 | B160: -122.2702283 | C160: 2013-03-22 | D160: 08:10:22 | E160: 81.34053241 | F160: 43.48035798 | G160: 528.21 | H160: 12.001 | I160: 46.601 | J160: 503.94 | K160: 12.069 | L160: 80.68
A161: 36.73620833 | B161: -122.2342667 | C161: 2013-03-22 | D161: 09:10:22 | E161: 81.38219907 | F161: 40.21801852 | G161: 506.94 | H161: 11.894 | I161: 47.139 | J161: 489.58 | K161: 11.962 | L161: 86.685
A162: 36.74121 | B162: -122.2023067 | C162: 2013-03-22 | D162: 10:10:23 | E162: 81.42387731 | F162: 37.31773742 | G162: 481.88 | H162: 11.806 | I162: 83.238 | J162: 474.34 | K162: 11.874 | L162: 99.504
A163: 36.74571667 | B163: -122.1736467 | C163: 2013-03-22 | D163: 11:10:23 | E163: 81.46554398 | F163: 34.71661206 | G163: 470.31 | H163: 11.719 | I163: 82.067 | J163: 462.91 | K163: 11.787 | L163: 99.45
A164: 36.75042333 | B164: -122.14373 | C164: 2013-03-22 | D164: 12:10:24 | E164: 81.50722222 | F164: 32.00153637 | G164: 513.44 | H164: 11.593 | I164: 82.807 | J164: 505.57 | K164: 11.651 | L164: 99.531
A165: 36.75539833 | B165: -122.1118883 | C165: 2013-03-22 | D165: 13:10:24 | E165: 81.54888889 | F165: 29.1126821 | G165: 523.9 | H165: 11.341 | I165: 83.319 | J165: 515.51 | K165: 11.399 | L165: 99.706
A166: 36.760405 | B166: -122.0804483 | C166: 2013-03-22 | D166: 14:10:22 | E166: 81.59053241 | F166: 26.25840515 | G166: 595.84 | H166: 11.108 | I166: 64.388 | J166: 577.79 | K166: 11.186 | L166: 99.409
A167: 36.764855 | B167: -122.0514483 | C167: 2013-03-22 | D167: 15:10:22 | E167: 81.63219907 | F167: 23.62944055 | G167: 548.87 | H167: 11.099 | I167: 59.446 | J167: 529.68 | K167: 11.166 | L167: 98.575
A168: 36.769545 | B168: -122.0216933 | C168: 2013-03-22 | D168: 16:10:23 | E168: 81.67387731 | F168: 20.92949996 | G168: 545.13 | H168: 11.234 | I168: 52.835 | J168: 523.48 | K168: 11.302 | L168: 96.151
A169: 36.77483667 | B169: -121.9880683 | C169: 2013-03-22 | D169: 17:10:24 | E169: 81.71555556 | F169: 17.87877088 | G169: 455.05 | H169: 11.408 | I169: 82.956 | J169: 448.13 | K169: 11.476 | L169: 99.625
A170: 36.78049167 | B170: -121.9519417 | C170: 2013-03-22 | D170: 18:10:22 | E170: 81.75719907 | F170: 14.60196108 | G170: 380.76 | H170: 11.651 | I170: 83.131 | J170: 372.86 | K170: 11.728 | L170: 99.908
A171: 36.786295 | B171: -121.9147417 | C171: 2013-03-22 | D171: 19:10:24 | E171: 81.79888889 | F171: 11.22846643 | G171: 339.54 | H171: 11.933 | I171: 83.306 | J171: 333.65 | K171: 12.001 | L171: 100.39
A172: 36.79187667 | B172: -121.8792983 | C172: 2013-03-22 | D172: 20:10:22 | E172: 81.84053241 | F172: 8.013367995 | G172: 281.57 | H172: 12.118 | I172: 83.75 | J172: 276.21 | K172: 12.196 | L172: 101.25
A173: 36.79818167 | B173: -121.84705 | C173: 2013-03-22 | D173: 21:10:24 | E173: 81.88222222 | F173: 5.06307599 | G173: 281.85 | H173: 12.42 | I173: 83.171 | J173: 277.39 | K173: 12.489 | L173: 100.14
A174: 36.79602 | B174: -121.8631267 | C174: 2013-03-22 | D174: 22:10:23 | E174: 81.92387731 | F174: 6.513858823 | G174: 274.33 | H174: 12.401 | I174: 68.212 | J174: 267.37 | K174: 12.469 | L174: 99.154
A175: 36.79381167 | B175: -121.87676 | C175: 2013-03-22 | D175: 23:10:22 | E175: 81.96553241 | F175: 7.751387354 | G175: 319 | H175: 12.205 | I175: 71.147 | J175: 310.15 | K175: 12.274 | L175: 99.45
A176: 36.79118833 | B176: -121.8929967 | C176: 2013-03-23 | D176: 00:10:24 | E176: 82.00722222 | F176: 9.225292346 | G176: 360.01 | H176: 11.884 | I176: 82.727 | J176: 354.29 | K176: 11.942 | L176: 99.665
A177: 36.78818833 | B177: -121.91191 | C177: 2013-03-23 | D177: 01:10:22 | E177: 82.04886574 | F177: 10.94121703 | G177: 428.43 | H177: 11.612 | I177: 63.23 | J177: 415.83 | K177: 11.67 | L177: 98.938
A178: 36.784265 | B178: -121.93606 | C178: 2013-03-23 | D178: 02:10:24 | E178: 82.09055556 | F178: 13.1343117 | G178: 447.77 | H178: 11.428 | I178: 68.212 | J178: 437.84 | K178: 11.496 | L178: 99.288
A179: 36.78015333 | B179: -121.9624 | C179: 2013-03-23 | D179: 03:10:22 | E179: 82.13219907 | F179: 15.52302979 | G179: 492.11 | H179: 11.273 | I179: 56.147 | J179: 472.78 | K179: 11.341 | L179: 98.534
A180: 36.7753 | B180: -121.9928233 | C180: 2013-03-23 | D180: 04:10:22 | E180: 82.17386574 | F180: 18.28439882 | G180: 512.23 | H180: 11.205 | I180: 65.317 | J180: 498.3 | K180: 11.273 | L180: 99.046
A181: 36.770025 | B181: -122.024855 | C181: 2013-03-23 | D181: 05:10:22 | E181: 82.21553241 | F181: 21.19545119 | G181: 588.25 | H181: 10.973 | I181: 67.35 | J181: 571.16 | K181: 11.05 | L181: 99.49
A182: 36.765665 | B182: -122.0527633 | C182: 2013-03-23 | D182: 06:10:22 | E182: 82.25719907 | F182: 23.72697271 | G182: 533.89 | H182: 11.002 | I182: 75.052 | J182: 523.64 | K182: 11.07 | L182: 99.544
A183: 36.76078833 | B183: -122.0830633 | C183: 2013-03-23 | D183: 07:10:22 | E183: 82.29886574 | F183: 26.47863955 | G183: 518.89 | H183: 11.282 | I183: 74.554 | J183: 507.54 | K183: 11.35 | L183: 99.706
A184: 36.75512333 | B184: -122.1182817 | C184: 2013-03-23 | D184: 08:10:22 | E184: 82.34053241 | F184: 29.67712733 | G184: 551.01 | H184: 11.273 | I184: 65.115 | J184: 534.84 | K184: 11.341 | L184: 99.45
A185: 36.749195 | B185: -122.1547983 | C185: 2013-03-23 | D185: 09:10:23 | E185: 82.38221065 | F185: 32.99494213 | G185: 549.04 | H185: 11.244 | I185: 66.596 | J185: 533.36 | K185: 11.311 | L185: 99.329
A186: 36.74349167 | B186: -122.19098 | C186: 2013-03-23 | D186: 10:10:22 | E186: 82.42386574 | F186: 36.27891121 | G186: 539.14 | H186: 11.302 | I186: 76.331 | J186: 545.69 | K186: 11.36 | L186: 99.571
A187: 36.73880167 | B187: -122.2200333 | C187: 2013-03-23 | D187: 11:10:24 | E187: 82.46555556 | F187: 38.91843438 | G187: 483.65 | H187: 11.476 | I187: 83.359 | J187: 475.23 | K187: 11.544 | L187: 99.975
A188: 36.73457167 | B188: -122.2464867 | C188: 2013-03-23 | D188: 12:10:23 | E188: 82.50721065 | F188: 41.32102171 | G188: 473.91 | H188: 11.641 | I188: 83.306 | J188: 465.88 | K188: 11.709 | L188: 99.517
A189: 36.73017333 | B189: -122.2741983 | C189: 2013-03-23 | D189: 13:10:22 | E189: 82.54886574 | F189: 43.83730978 | G189: 485.98 | H189: 11.719 | I189: 69.248 | J189: 471.64 | K189: 11.787 | L189: 99.544
A190: 36.72569 | B190: -122.3021433 | C190: 2013-03-23 | D190: 14:10:23 | E190: 82.59054398 | F190: 46.37597251 | G190: 452.91 | H190: 11.767 | I190: 83.009 | J190: 443.86 | K190: 11.835 | L190: 99.8
A191: 36.72092167 | B191: -122.331735 | C191: 2013-03-23 | D191: 15:10:24 | E191: 82.63222222 | F191: 49.06483988 | G191: 455.37 | H191: 11.835 | I191: 83.386 | J191: 448.52 | K191: 11.903 | L191: 99.692
A192: 36.71345667 | B192: -122.3590067 | C192: 2013-03-23 | D192: 16:10:22 | E192: 82.67386574 | F192: 51.61102484 | G192: 470.02 | H192: 11.884 | I192: 68.05 | J192: 457.93 | K192: 11.962 | L192: 99.679
A193: 36.69702 | B193: -122.3780117 | C193: 2013-03-23 | D193: 17:10:22 | E193: 82.71553241 | F193: 53.65878693 | G193: 453.15 | H193: 11.933 | I193: 83.063 | J193: 447.85 | K193: 12.001 | L193: 100.15
A194: 36.714025 | B194: -122.3586467 | C194: 2013-03-23 | D194: 18:10:22 | E194: =(C194+D194)-41274 -> 82.75719907 | F194: 51.5668608 | G194: 446.6 | H194: 11.972 | I194: 83.44 | J194: 439.32 | K194: 12.04 | L194: 100.19
A195: 36.72172167 | B195: -122.326775 | C195: 2013-03-23 | D195: 19:10:24 | E195: 82.79888889 | F195: =ABS(Rhumb(36.806,A195,-121.791,B195)) -> 48.61411864 | G195: 440 | H195: 12.01 | I195: 83.292 | J195: 433.13 | K195: 12.079 | L195: 100.19
A196: 36.72755667 | B196: -122.289665 | C196: 2013-03-23 | D196: 20:10:22 | E196: 82.84053241 | F196: 45.24529961 | G196: 431.71 | H196: 12.03 | I196: 83.131 | J196: 423.44 | K196: 12.098 | L196: 99.665
A197: 36.73344833 | B197: -122.2519067 | C197: 2013-03-23 | D197: 21:10:23 | E197: 82.88221065 | F197: 41.818864 | G197: 442.03 | H197: 12.02 | I197: 82.875 | J197: 436.06 | K197: 12.088 | L197: 99.854
A198: 36.739845 | B198: -122.21126 | C198: 2013-03-23 | D198: 22:10:23 | E198: 82.92387731 | F198: 38.12942128 | G198: 439.85 | H198: 11.972 | I198: 83.386 | J198: 433.71 | K198: 12.04 | L198: 99.948
A199: 36.74489 | B199: -122.1787717 | C199: 2013-03-23 | D199: 23:10:24 | E199: 82.96555556 | F199: 35.18218709 | G199: 430.29 | H199: 11.942 | I199: 83.063 | J199: 424.99 | K199: 12.001 | L199: 100.07
A200: 36.74892333 | B200: -122.1534 | C200: 2013-03-24 | D200: 00:10:23 | E200: 83.00721065 | F200: 32.87865254 | G200: 456.77 | H200: 11.884 | I200: 71.753 | J200: 445.7 | K200: 11.942 | L200: 99.558
... 372 more rows

Sheet Sheet3
